Body,Invoice Date,Supplier Name,Proclass Category,Service Area,Cost Centre Name,Invoiced
Rochdale BC,29/01/2014,4COURT PHARMACY,Healthcare,PUBLIC HEALTH,STOP SMOKING,511.87
Rochdale BC,22/01/2014,7 PDS,Information Communication Technology,CORPORATE SERVICES,REFRESH PROGRAMME,800.00
Rochdale BC,30/01/2014,9TH HEYWOOD ST MICHAELS SCOUT GROUP,Public Bodies,CORPORATE SERVICES,WARD CAPITAL FUND,982.62
Rochdale BC,03/01/2014,A & W DAWSON,Unclassifiable,ECONOMY AND ENVIRONMENT,EDUCATION HOME TO SCHOOL,500.00
Rochdale BC,03/01/2014,A & W DAWSON,Unclassifiable,ECONOMY AND ENVIRONMENT,EDUCATION HOME TO SCHOOL,839.60
Rochdale BC,21/01/2014,A & W DAWSON,Unclassifiable,ECONOMY AND ENVIRONMENT,EDUCATION HOME TO SCHOOL,922.40
Rochdale BC,21/01/2014,A & W DAWSON,Unclassifiable,ECONOMY AND ENVIRONMENT,EDUCATION HOME TO SCHOOL,500.00
Rochdale BC,23/01/2014,A & W DAWSON,Unclassifiable,ECONOMY AND ENVIRONMENT,EDUCATION HOME TO SCHOOL,500.00
Rochdale BC,23/01/2014,A & W DAWSON,Unclassifiable,ECONOMY AND ENVIRONMENT,EDUCATION HOME TO SCHOOL,821.20
Rochdale BC,30/01/2014,A & W DAWSON,Unclassifiable,ECONOMY AND ENVIRONMENT,EDUCATION HOME TO SCHOOL,500.00
Rochdale BC,30/01/2014,A & W DAWSON,Unclassifiable,ECONOMY AND ENVIRONMENT,EDUCATION HOME TO SCHOOL,827.60
Rochdale BC,13/01/2014,A J COCKER ASSOCIATES LIMITED,Consultancy,EARLY HELP AND SCHOOLS,BOARSHAW - PLACE PLANNING,"1,500.00"
Rochdale BC,13/01/2014,A J COCKER ASSOCIATES LIMITED,Consultancy,EARLY HELP AND SCHOOLS,HOPWOOD - PLACE PLANNING,"5,750.00"
Rochdale BC,13/01/2014,A J COCKER ASSOCIATES LIMITED,Consultancy,EARLY HELP AND SCHOOLS,MIDDLETON PARISH - PLACE PLANNING,"2,500.00"
Rochdale BC,09/01/2014,A W COLEMAN,Unclassifiable,ECONOMY AND ENVIRONMENT,EDUCATION HOME TO SCHOOL,"5,023.80"
Rochdale BC,02/01/2014,A1 PLUMBING & HEATING,Building Construction Materials,PHYSICAL DIS & OLDER PEOPLE,DISABLED FACILITIES GRANT,"3,699.00"
Rochdale BC,31/12/2013,ABC INDUSTRIAL DOORS LTD,Building Construction Materials,CHILDREN�S SOCIAL CARE,CROSSFIELD MILL,"1,581.00"
Rochdale BC,10/01/2014,ABC INDUSTRIAL DOORS LTD,Building Construction Materials,PROPERTY AND HIGHWAYS,PARKS ROCHDALE,625.00
Rochdale BC,20/01/2014,ABC INDUSTRIAL DOORS LTD,Building Construction Materials,PROPERTY AND HIGHWAYS,PHOENIX CLOSE IND ESTATE - MICRO,781.00
Rochdale BC,10/01/2014,ABC INDUSTRIAL DOORS LTD,Building Construction Materials,PROPERTY AND HIGHWAYS,SPOTLAND LIBRARY,"2,962.00"
Rochdale BC,07/01/2014,ABM (LANCASHIRE) LIMITED,Building Construction Materials,EARLY HELP AND SCHOOLS,Heybrook Refurbishment of EYFS toilets,763.00
Rochdale BC,14/01/2014,ABM (LANCASHIRE) LIMITED,Building Construction Materials,EARLY HELP AND SCHOOLS,NORDEN,"1,090.84"
Rochdale BC,06/01/2014,ABRACADABRA PRE SCHOOL,Financial Services,EARLY HELP AND SCHOOLS,FREE NURSERY PLACES 2 YEAR OLDS,"1,960.20"
Rochdale BC,06/01/2014,ABRACADABRA PRE SCHOOL,Financial Services,EARLY HELP AND SCHOOLS,NURSERY EDUCATION GRANT  3YR OLDS,"6,904.26"
Rochdale BC,01/01/2014,ACORN TREATMENT & HOUSING,Housing Management,LEARNING DIS & MENTAL HEALTH,AGENCY PLACEMENTS,"14,500.00"
Rochdale BC,01/01/2014,ACORN TREATMENT & HOUSING,Housing Management,CORPORATE SERVICES,DRUGS & ALCOHOL - SPECIALIST D&A SRVC,"33,600.00"
Rochdale BC,28/01/2014,ADAPT BUILDING SERVICES LTD,"Works - Construction, Repair & Maintenance",PHYSICAL DIS & OLDER PEOPLE,DISABLED FACILITIES GRANT,"3,435.00"
Rochdale BC,28/01/2014,ADAPT BUILDING SERVICES LTD,"Works - Construction, Repair & Maintenance",PHYSICAL DIS & OLDER PEOPLE,DISABLED FACILITIES GRANT,898.06
Rochdale BC,01/01/2014,ADDICTION DEPENDANCY SOLUTIONS,Social Community Care Supplies & Services,LEARNING DIS & MENTAL HEALTH,AGENCY PLACEMENTS,"36,250.00"
Rochdale BC,01/01/2014,ADDICTION DEPENDANCY SOLUTIONS,Social Community Care Supplies & Services,CORPORATE SERVICES,DRUGS & ALCOHOL - SPECIALIST D&A SRVC,"94,046.00"
Rochdale BC,20/01/2014,ADOPTION MATTERS,Human Resources,CHILDREN�S SOCIAL CARE,INDEPENDENT FOSTER CARE,750.00
Rochdale BC,20/01/2014,ADOPTION MATTERS,Human Resources,CHILDREN�S SOCIAL CARE,INDEPENDENT FOSTER CARE,"1,500.00"
Rochdale BC,20/01/2014,ADOPTION MATTERS,Human Resources,CHILDREN�S SOCIAL CARE,INDEPENDENT FOSTER CARE,750.00
Rochdale BC,20/01/2014,ADOPTION MATTERS,Human Resources,CHILDREN�S SOCIAL CARE,INTER AGENCY ADOPTION,"18,000.00"
Rochdale BC,29/01/2014,AFTER ADOPTION,Social Community Care Supplies & Services,CHILDREN�S SOCIAL CARE,INTER AGENCY ADOPTION,"18,000.00"
Rochdale BC,23/01/2014,AIM PROJECT,Social Community Care Supplies & Services,CHILDREN�S SOCIAL CARE,YOT MANAGEMENT,"1,500.00"
Rochdale BC,30/01/2014,ALCO MINI TRAVEL,Public Transport,ECONOMY AND ENVIRONMENT,EDUCATION HOME TO SCHOOL,"1,720.80"
Rochdale BC,06/01/2014,ALKRINGTON PRE SCHOOL,Financial Services,EARLY HELP AND SCHOOLS,NURSERY EDUCATION GRANT  3YR OLDS,"9,192.74"
Rochdale BC,02/01/2014,ALLIANCE CARE AND EDUCATION,Social Community Care Supplies & Services,CHILDREN�S SOCIAL CARE,EXTERNAL RESIDENTIAL PLACEMENTS,"13,285.71"
Rochdale BC,30/01/2014,ALLIANCE DISPOSABLES LIMITED,Catering,ECONOMY AND ENVIRONMENT,NO 1 RIVERSIDE CLEANING,595.56
Rochdale BC,06/01/2014,ALLIED HEALTHCARE GROUP LIMITED,Healthcare,LEARNING DIS & MENTAL HEALTH,LD FORUM - PERSONAL BUDGETS,"1,044.04"
Rochdale BC,06/01/2014,ALLIED HEALTHCARE GROUP LIMITED,Healthcare,PHYSICAL DIS & OLDER PEOPLE,NHS DELAYED TRANSFER,"1,959.75"
Rochdale BC,09/01/2014,ALLIED HEALTHCARE GROUP LIMITED,Healthcare,PHYSICAL DIS & OLDER PEOPLE,NHS DELAYED TRANSFER,"1,959.75"
Rochdale BC,16/01/2014,ALLIED HEALTHCARE GROUP LIMITED,Healthcare,PHYSICAL DIS & OLDER PEOPLE,NHS DELAYED TRANSFER,500.00
Rochdale BC,27/01/2014,ALLIED HEALTHCARE GROUP LIMITED,Healthcare,PHYSICAL DIS & OLDER PEOPLE,NHS DELAYED TRANSFER,"1,658.25"
Rochdale BC,31/01/2014,ALLIED HEALTHCARE GROUP LIMITED,Healthcare,PHYSICAL DIS & OLDER PEOPLE,NHS DELAYED TRANSFER,"2,110.50"
Rochdale BC,03/01/2014,ALLIED HEALTHCARE GROUP LIMITED,Healthcare,PHYSICAL DIS & OLDER PEOPLE,OLDER PEOPLES AGENCY PROVISION,"11,329.84"
Rochdale BC,10/01/2014,ALLIED HEALTHCARE GROUP LIMITED,Healthcare,PHYSICAL DIS & OLDER PEOPLE,OLDER PEOPLES AGENCY PROVISION,"10,477.44"
Rochdale BC,16/01/2014,ALLIED HEALTHCARE GROUP LIMITED,Healthcare,PHYSICAL DIS & OLDER PEOPLE,OLDER PEOPLES AGENCY PROVISION,"10,200.56"
Rochdale BC,24/01/2014,ALLIED HEALTHCARE GROUP LIMITED,Healthcare,PHYSICAL DIS & OLDER PEOPLE,OLDER PEOPLES AGENCY PROVISION,"10,863.55"
Rochdale BC,31/01/2014,ALLIED HEALTHCARE GROUP LIMITED,Healthcare,PHYSICAL DIS & OLDER PEOPLE,OLDER PEOPLES AGENCY PROVISION,"10,041.19"
Rochdale BC,03/01/2014,ALMIN TRAVEL,Human Resources,ECONOMY AND ENVIRONMENT,EDUCATION HOME TO SCHOOL,"1,500.00"
Rochdale BC,07/01/2014,ALPHA ELECTRONICS (NORTHERN) LTD,Environmental Services,PROPERTY AND HIGHWAYS,MANAGED PROPERTY SERVICE,"3,125.00"
Rochdale BC,14/01/2014,AMTOLL LIMITED,Cleaning & Janitorial,ECONOMY AND ENVIRONMENT,NO 1 RIVERSIDE CLEANING,603.50
Rochdale BC,03/01/2014,ANDY HARROP,Unclassifiable,ECONOMY AND ENVIRONMENT,EDUCATION HOME TO SCHOOL,"2,160.00"
Rochdale BC,06/01/2014,ANGLIA DNA SERVICES LTD,Human Resources,CHILDREN�S SOCIAL CARE,CSC PUBLIC LAW PROCEEDINGS EXTERNAL FEES,560.00
Rochdale BC,23/01/2014,ANGLIA DNA SERVICES LTD,Human Resources,CHILDREN�S SOCIAL CARE,CSC PUBLIC LAW PROCEEDINGS EXTERNAL FEES,560.00
Rochdale BC,08/01/2014,ANGLIA SIGN CASTING COMPANY LIMITED,Building Construction Materials,ECONOMY AND ENVIRONMENT,ALL CREMETORIA,690.50
Rochdale BC,14/01/2014,ANIMAL WARDENS LIMITED,Environmental Services,ECONOMY AND ENVIRONMENT,DOG WARDEN,756.20
Rochdale BC,14/01/2014,ANIMAL WARDENS LIMITED,Environmental Services,ECONOMY AND ENVIRONMENT,DOG WARDEN,"1,373.10"
Rochdale BC,14/01/2014,ANTHONY COLLINS SOLICITORS LLP,"Works - Construction, Repair & Maintenance",ECONOMY AND ENVIRONMENT,HOMELESS TRANSFER COSTS,"1,160.00"
Rochdale BC,30/01/2014,AQUABLAST SERVICES LIMITED,Building Construction Materials,ECONOMY AND ENVIRONMENT,DEPOT GREEN LANE GENERAL,"1,240.00"
Rochdale BC,21/01/2014,ARCO GROUP LIMITED,Clothing,PROPERTY AND HIGHWAYS,BUSINESS SUPPORT TEAM,772.16
Rochdale BC,22/01/2014,ARISTI LIMITED,Consultancy,CORPORATE SERVICES,REFRESH PROGRAMME,"1,690.00"
Rochdale BC,16/01/2014,ASC RENEWABLES LTD,Utilities,ECONOMY AND ENVIRONMENT,WIND ENERGY PROJECT - PILOT PHASE,"24,814.64"
Rochdale BC,27/01/2014,ASHWOODS AUTOMOTIVE LTD,Vehicle Management,ECONOMY AND ENVIRONMENT,VEHICLE REPLACEMENT PROGRAM,"58,794.00"
Rochdale BC,23/01/2014,ASSET PEOPLE SOLUTIONS,Human Resources,CORPORATE SERVICES,D&A DIP COMMISSIONED,"30,000.00"
Rochdale BC,15/01/2014,ASSOCIATION  PUBLIC SERVICE EXCELLENCE,Financial Services,ECONOMY AND ENVIRONMENT,WIND ENERGY PROJECT - PILOT PHASE,"5,430.88"
Rochdale BC,13/01/2014,AST HAMPSONS,Legal Services,ECONOMY AND ENVIRONMENT,EMPTY PROPERTY GRANT,"69,000.00"
Rochdale BC,09/01/2014,ASTOR-BANNERMAN (MEDICAL) LTD,Social Community Care Supplies & Services,PHYSICAL DIS & OLDER PEOPLE,DISABLED FACILITIES GRANT,618.95
Rochdale BC,22/01/2014,ASTOR-BANNERMAN (MEDICAL) LTD,Social Community Care Supplies & Services,EARLY HELP AND SCHOOLS,DOWLING STREET OCC THERAPY,649.00
Rochdale BC,30/01/2014,A-TEC DESIGN OFFICE SOLUTIONS LIMITED,Facilities & Management Services,PROPERTY AND HIGHWAYS,BUSINESS SUPPORT TEAM,625.90
Rochdale BC,30/01/2014,A-TEC DESIGN OFFICE SOLUTIONS LIMITED,Facilities & Management Services,CORPORATE SERVICES,REFRESH PROGRAMME,600.00
Rochdale BC,01/01/2014,ATLAS ONE LTD,"Works - Construction, Repair & Maintenance",LEARNING DIS & MENTAL HEALTH,DAY SERVICES MANAGEMENT/ADMIN,"2,500.00"
Rochdale BC,06/01/2014,AUNT MARYS PRIVATE DAY NURSERY,Financial Services,EARLY HELP AND SCHOOLS,FREE NURSERY PLACES 2 YEAR OLDS,"1,960.20"
Rochdale BC,06/01/2014,AUNT MARYS PRIVATE DAY NURSERY,Financial Services,EARLY HELP AND SCHOOLS,NURSERY EDUCATION GRANT  3YR OLDS,"8,128.89"
Rochdale BC,09/01/2014,AVENTIS SOLUTIONS LIMITED,Consultancy,EARLY HELP AND SCHOOLS,ADVISORY SERVICE  GENERAL,"1,225.00"
Rochdale BC,09/01/2014,AVENTIS SOLUTIONS LIMITED,Consultancy,EARLY HELP AND SCHOOLS,ADVISORY SERVICE  GENERAL,600.00
Rochdale BC,13/01/2014,AVENTIS SOLUTIONS LIMITED,Consultancy,EARLY HELP AND SCHOOLS,ADVISORY SERVICE  GENERAL,"1,750.00"
Rochdale BC,13/01/2014,AVENTIS SOLUTIONS LIMITED,Consultancy,EARLY HELP AND SCHOOLS,ADVISORY SERVICE  GENERAL,"1,200.00"
Rochdale BC,24/01/2014,AVENTIS SOLUTIONS LIMITED,Consultancy,EARLY HELP AND SCHOOLS,ADVISORY SERVICE  GENERAL,700.00
Rochdale BC,24/01/2014,AVENTIS SOLUTIONS LIMITED,Consultancy,EARLY HELP AND SCHOOLS,ADVISORY SERVICE  GENERAL,600.00
Rochdale BC,24/01/2014,AVENTIS SOLUTIONS LIMITED,Consultancy,EARLY HELP AND SCHOOLS,ADVISORY SERVICE  GENERAL,"1,750.00"
Rochdale BC,24/01/2014,AVENTIS SOLUTIONS LIMITED,Consultancy,EARLY HELP AND SCHOOLS,ADVISORY SERVICE  GENERAL,"1,500.00"
Rochdale BC,06/01/2014,AVENTIS SOLUTIONS LIMITED,Consultancy,CHILDREN�S SOCIAL CARE,MANAGEMENT STRUCTURE,624.00
Rochdale BC,06/01/2014,AVENTIS SOLUTIONS LIMITED,Consultancy,CHILDREN�S SOCIAL CARE,MANAGEMENT STRUCTURE,832.00
Rochdale BC,06/01/2014,AVENTIS SOLUTIONS LIMITED,Consultancy,CHILDREN�S SOCIAL CARE,MANAGEMENT STRUCTURE,832.00
Rochdale BC,13/01/2014,AVENTIS SOLUTIONS LIMITED,Consultancy,CHILDREN�S SOCIAL CARE,MANAGEMENT STRUCTURE,832.00
Rochdale BC,23/01/2014,AVENTIS SOLUTIONS LIMITED,Consultancy,CHILDREN�S SOCIAL CARE,MANAGEMENT STRUCTURE,"1,040.00"
Rochdale BC,23/01/2014,AVENTIS SOLUTIONS LIMITED,Consultancy,CHILDREN�S SOCIAL CARE,MANAGEMENT STRUCTURE,832.00
Rochdale BC,22/01/2014,AWARDING BODY CONSORTIUM,Human Resources,EARLY HELP AND SCHOOLS,GENERAL BOROUGHWIDE YOUTH SERVICE,742.05
Rochdale BC,23/01/2014,AXIOM EDUCATION (ROCHDALE) LIMITED,Education,EARLY HELP AND SCHOOLS,HOLLIN - PLACE PLANNING,"8,840.00"
Rochdale BC,13/01/2014,AXIOM EDUCATION (ROCHDALE) LIMITED,Education,EARLY HELP AND SCHOOLS,PFI CONTRACT GENERAL,"670,770.61"
Rochdale BC,13/01/2014,AXIOM EDUCATION (ROCHDALE) LIMITED,Education,EARLY HELP AND SCHOOLS,PFI CONTRACT GENERAL,"17,708.70"
Rochdale BC,13/01/2014,AXIOM EDUCATION (ROCHDALE) LIMITED,Education,EARLY HELP AND SCHOOLS,PFI CONTRACT GENERAL,"2,217.56"
Rochdale BC,24/01/2014,AXIOM EDUCATION (ROCHDALE) LIMITED,Education,EARLY HELP AND SCHOOLS,PFI CONTRACT GENERAL,"16,711.98"
Rochdale BC,22/01/2014,AXIOM EDUCATION (ROCHDALE) LIMITED,Education,EARLY HELP AND SCHOOLS,PFI VARIATIONS,810.80
Rochdale BC,10/01/2014,B E T R A,Financial Services,LEARNING DIS & MENTAL HEALTH,DAY SERVICES MANAGEMENT/ADMIN,800.00
Rochdale BC,14/01/2014,BADENOCH & CLARK,Human Resources,CORPORATE SERVICES,LEGAL SERVICES,"2,150.00"
Rochdale BC,14/01/2014,BADENOCH & CLARK,Human Resources,CORPORATE SERVICES,LEGAL SERVICES,"1,550.00"
Rochdale BC,17/01/2014,BADENOCH & CLARK,Human Resources,CORPORATE SERVICES,LEGAL SERVICES,737.50
Rochdale BC,08/01/2014,BALMER`S GARDEN MACHINERY CENTRE,Horticultural,ECONOMY AND ENVIRONMENT,GROUNDS MTCE EQUIPMENT,"7,000.00"
Rochdale BC,08/01/2014,BAMFORD ACADEMY,Financial Services,EARLY HELP AND SCHOOLS,SEN SUPPORT MAINSTREAM  LEA,"2,981.49"
Rochdale BC,20/01/2014,BAMFORD ACADEMY,Financial Services,EARLY HELP AND SCHOOLS,SEN SUPPORT MAINSTREAM  LEA,816.85
Rochdale BC,06/01/2014,BAMFORD PLAYGROUP,Financial Services,EARLY HELP AND SCHOOLS,FREE NURSERY PLACES 2 YEAR OLDS,980.10
Rochdale BC,06/01/2014,BAMFORD PLAYGROUP,Financial Services,EARLY HELP AND SCHOOLS,NURSERY EDUCATION GRANT  3YR OLDS,"8,832.13"
Rochdale BC,29/01/2014,BARKATH LIMITED,Healthcare,CORPORATE SERVICES,CORONERS SERVICE GENERAL,"3,047.00"
Rochdale BC,17/01/2014,BARNARDOS,Financial Services,CHILDREN�S SOCIAL CARE,HEAD OF SERVICE,"13,750.00"
Rochdale BC,31/01/2014,BARNARDOS,Financial Services,EARLY HELP AND SCHOOLS,SUPPORT FOR FAMILIES DSBLD CHLDN < 5,"12,500.00"
Rochdale BC,01/01/2014,BARNARDOS NORTH WEST,Financial Services,EARLY HELP AND SCHOOLS,SHORT BREAKS REVENUE,"5,783.75"
Rochdale BC,01/01/2014,BARNARDOS NORTH WEST,Financial Services,EARLY HELP AND SCHOOLS,SHORT BREAKS REVENUE,"2,786.25"
Rochdale BC,01/01/2014,BARNARDOS NORTH WEST,Financial Services,EARLY HELP AND SCHOOLS,SHORT BREAKS REVENUE,"1,738.67"
Rochdale BC,29/01/2014,BAUER RADIO LTD,Facilities & Management Services,PUBLIC HEALTH,SPECIALIST PUBLIC HEALTH TEAM,"2,100.00"
Rochdale BC,29/01/2014,BAUER RADIO LTD,Facilities & Management Services,PUBLIC HEALTH,SPECIALIST PUBLIC HEALTH TEAM,"3,340.00"
Rochdale BC,06/01/2014,BEECH HOUSE SCHOOL LTD,Financial Services,EARLY HELP AND SCHOOLS,FREE NURSERY PLACES 2 YEAR OLDS,"1,960.20"
Rochdale BC,21/01/2014,BEECH HOUSE SCHOOL LTD,Financial Services,EARLY HELP AND SCHOOLS,IND SCHOOLS  RESIDENTIAL,603.60
Rochdale BC,21/01/2014,BEECH HOUSE SCHOOL LTD,Financial Services,EARLY HELP AND SCHOOLS,IND SCHOOLS  RESIDENTIAL,"3,960.60"
Rochdale BC,06/01/2014,BEECH HOUSE SCHOOL LTD,Financial Services,EARLY HELP AND SCHOOLS,NURSERY EDUCATION GRANT  3YR OLDS,"17,820.00"
Rochdale BC,21/01/2014,BELMONT SCHOOL LIMITED,Financial Services,EARLY HELP AND SCHOOLS,IND SCHOOLS  RESIDENTIAL,"10,658.00"
Rochdale BC,30/01/2014,BEMROSE BOOTH,Unclassifiable,PROPERTY AND HIGHWAYS,CAR PARKS  GENERAL,"1,917.00"
Rochdale BC,13/01/2014,BERTRAM TRADING LIMITED,Education,CORPORATE SERVICES,BIBS UNIT,947.11
Rochdale BC,31/01/2014,BERTRAM TRADING LIMITED,Education,CORPORATE SERVICES,BIBS UNIT,679.25
Rochdale BC,31/01/2014,BERTRAM TRADING LIMITED,Education,CORPORATE SERVICES,BIBS UNIT,627.65
Rochdale BC,31/01/2014,BERTRAM TRADING LIMITED,Education,CORPORATE SERVICES,BIBS UNIT,"1,079.16"
Rochdale BC,31/01/2014,BERTRAM TRADING LIMITED,Education,CORPORATE SERVICES,BIBS UNIT,"1,250.39"
Rochdale BC,01/01/2014,BEVA INVESTMENTS LIMITED,Facilities & Management Services,CORPORATE SERVICES,LEARNING & DEVELOPMENT,"14,125.00"
Rochdale BC,06/01/2014,BEVAN BRITTAN LLP,Consultancy,EARLY HELP AND SCHOOLS,BSF DEVELOPMENT (MOD0809),"1,876.80"
Rochdale BC,03/01/2014,BGG PROJECT MANAGEMENT LIMITED,Facilities & Management Services,CORPORATE SERVICES,COMMITTEE SERVICES,"2,100.00"
Rochdale BC,27/01/2014,BGG PROJECT MANAGEMENT LIMITED,Facilities & Management Services,CORPORATE SERVICES,COMMITTEE SERVICES,700.00
Rochdale BC,08/01/2014,BIBLIOTHECA,Education,CORPORATE SERVICES,THIRD PARTY CONTRACTS,"3,553.00"
Rochdale BC,06/01/2014,BLACKBURN WITH DARWEN BC,Social Community Care Supplies & Services,CHILDREN�S SOCIAL CARE,FOSTERING TEAM,"28,500.00"
Rochdale BC,20/01/2014,BLUE & RED LTD,Information Communication Technology,CORPORATE SERVICES,THIRD PARTY CONTRACTS,815.50
Rochdale BC,22/01/2014,BLUE ORCHILD MANAGEMENT CONSULTING LTD,Consultancy,ECONOMY AND ENVIRONMENT,ENTERPRISE COACHING,"25,000.00"
Rochdale BC,23/01/2014,BLUE PITS HOUSING ACTION,Consultancy,LEARNING DIS & MENTAL HEALTH,GENERAL,910.00
Rochdale BC,23/01/2014,BLUE PITS HOUSING ACTION,Consultancy,LEARNING DIS & MENTAL HEALTH,GENERAL,559.00
Rochdale BC,30/12/2013,BOARSHAW PHARMACY LTD,Unclassifiable,PUBLIC HEALTH,SEXUAL HEALTH SERVICES,533.80
Rochdale BC,16/01/2014,BOARSHAW PHARMACY LTD,Unclassifiable,PUBLIC HEALTH,STOP SMOKING,"3,092.29"
Rochdale BC,21/01/2014,BOARSHURST LOFTS & DORMERS,Building Construction Materials,LEARNING DIS & MENTAL HEALTH,CARERS RESOURCE CENTRE,"1,360.38"
Rochdale BC,13/01/2014,BODEN & DAVIES LTD,Building Construction Materials,ECONOMY AND ENVIRONMENT,BOWLEE AND GARDEN MAILSHOP,786.00
Rochdale BC,15/01/2014,BOLTON M B C,Social Community Care Supplies & Services,CHILDREN�S SOCIAL CARE,ADOPTION PAYMENTS,"28,500.00"
Rochdale BC,20/01/2014,BOLTON M B C,Social Community Care Supplies & Services,CHILDREN�S SOCIAL CARE,INDEPENDENT FOSTER CARE,"33,631.00"
Rochdale BC,28/01/2014,BOOKSOURCE,Education,CORPORATE SERVICES,MASKEW BEQUEST SPECIFIED,545.58
Rochdale BC,30/12/2013,BOOTS OPTICIANS,Healthcare,PUBLIC HEALTH,SEXUAL HEALTH SERVICES,500.51
Rochdale BC,13/01/2014,BRADSHAWS BUS & COACH,Human Resources,EARLY HELP AND SCHOOLS,14-19 TEAM 11/12,"4,995.00"
Rochdale BC,28/01/2014,BRAHM FUNDCO 2 LTD,Housing Management,ECONOMY AND ENVIRONMENT,HEYWOOD JSC - PHOENIX CENTRE,"21,887.30"
Rochdale BC,28/01/2014,BRAHM FUNDCO 2 LTD,Housing Management,ECONOMY AND ENVIRONMENT,HEYWOOD JSC - PHOENIX CENTRE,"18,545.36"
Rochdale BC,23/01/2014,BRAKE BROS FOOD SERVICE LTD,Catering,ECONOMY AND ENVIRONMENT,GREENBANK,631.29
Rochdale BC,28/01/2014,BRAKE BROS FOOD SERVICE LTD,Catering,ECONOMY AND ENVIRONMENT,GREENBANK,591.25
Rochdale BC,13/01/2014,BRAKE BROS FOOD SERVICE LTD,Catering,ECONOMY AND ENVIRONMENT,ROCHDALE TOWN HALL CROFTERS,553.27
Rochdale BC,03/01/2014,BRAMBLETON LIMITED,Social Community Care Supplies & Services,PHYSICAL DIS & OLDER PEOPLE,OLDER PEOPLES AGENCY PROVISION,"9,440.72"
Rochdale BC,10/01/2014,BRAMBLETON LIMITED,Social Community Care Supplies & Services,PHYSICAL DIS & OLDER PEOPLE,OLDER PEOPLES AGENCY PROVISION,"8,393.44"
Rochdale BC,16/01/2014,BRAMBLETON LIMITED,Social Community Care Supplies & Services,PHYSICAL DIS & OLDER PEOPLE,OLDER PEOPLES AGENCY PROVISION,"8,853.03"
Rochdale BC,24/01/2014,BRAMBLETON LIMITED,Social Community Care Supplies & Services,PHYSICAL DIS & OLDER PEOPLE,OLDER PEOPLES AGENCY PROVISION,"9,413.52"
Rochdale BC,31/01/2014,BRAMBLETON LIMITED,Social Community Care Supplies & Services,PHYSICAL DIS & OLDER PEOPLE,OLDER PEOPLES AGENCY PROVISION,"9,600.07"
Rochdale BC,16/01/2014,BRENNAN PAVING COMPANY LIMITED,"Works - Construction, Repair & Maintenance",PROPERTY AND HIGHWAYS,HEYWOOD STRUCTURAL PATCHING CAP,"12,843.28"
Rochdale BC,28/01/2014,BRENNAN PAVING COMPANY LIMITED,"Works - Construction, Repair & Maintenance",PROPERTY AND HIGHWAYS,HEYWOOD STRUCTURAL PATCHING CAP,"7,838.06"
Rochdale BC,16/01/2014,BRENNAN PAVING COMPANY LIMITED,"Works - Construction, Repair & Maintenance",PROPERTY AND HIGHWAYS,MIDDLETON STRUCTURAL PATCHING CAP,"6,232.75"
Rochdale BC,02/01/2014,BRENNAN PAVING COMPANY LIMITED,"Works - Construction, Repair & Maintenance",PROPERTY AND HIGHWAYS,PENNINES STRUCTURAL PATCHING CAP,"2,408.73"
Rochdale BC,02/01/2014,BRENNAN PAVING COMPANY LIMITED,"Works - Construction, Repair & Maintenance",PROPERTY AND HIGHWAYS,PENNINES STRUCTURAL PATCHING CAP,"3,853.75"
Rochdale BC,02/01/2014,BRENNAN PAVING COMPANY LIMITED,"Works - Construction, Repair & Maintenance",PROPERTY AND HIGHWAYS,PENNINES STRUCTURAL PATCHING CAP,"1,974.90"
Rochdale BC,02/01/2014,BRENNAN PAVING COMPANY LIMITED,"Works - Construction, Repair & Maintenance",PROPERTY AND HIGHWAYS,PENNINES STRUCTURAL PATCHING DFT,"1,210.03"
Rochdale BC,16/01/2014,BRENNAN PAVING COMPANY LIMITED,"Works - Construction, Repair & Maintenance",PROPERTY AND HIGHWAYS,ROCHDALE STRUCTURAL PATCHING CAP,"12,357.82"
Rochdale BC,16/01/2014,BRENNAN PAVING COMPANY LIMITED,"Works - Construction, Repair & Maintenance",PROPERTY AND HIGHWAYS,ROCHDALE STRUCTURAL PATCHING CAP,"3,993.78"
Rochdale BC,16/01/2014,BRENNAN PAVING COMPANY LIMITED,"Works - Construction, Repair & Maintenance",PROPERTY AND HIGHWAYS,ROCHDALE STRUCTURAL PATCHING CAP,"23,975.37"
Rochdale BC,16/01/2014,BRENNAN PAVING COMPANY LIMITED,"Works - Construction, Repair & Maintenance",PROPERTY AND HIGHWAYS,ROCHDALE STRUCTURAL PATCHING CAP,"2,787.28"
Rochdale BC,16/01/2014,BRENNAN PAVING COMPANY LIMITED,"Works - Construction, Repair & Maintenance",PROPERTY AND HIGHWAYS,ROCHDALE STRUCTURAL PATCHING CAP,"2,587.91"
Rochdale BC,28/01/2014,BRENNAN PAVING COMPANY LIMITED,"Works - Construction, Repair & Maintenance",PROPERTY AND HIGHWAYS,ROCHDALE STRUCTURAL PATCHING CAP,"3,336.97"
Rochdale BC,28/01/2014,BRENNAN PAVING COMPANY LIMITED,"Works - Construction, Repair & Maintenance",PROPERTY AND HIGHWAYS,ROCHDALE STRUCTURAL PATCHING CAP,"4,470.99"
Rochdale BC,16/01/2014,BRENNAN PAVING COMPANY LIMITED,"Works - Construction, Repair & Maintenance",PROPERTY AND HIGHWAYS,ROCHDALE STRUCTURAL PATCHING DFT,"7,068.61"
Rochdale BC,28/01/2014,BRENNAN PAVING COMPANY LIMITED,"Works - Construction, Repair & Maintenance",PROPERTY AND HIGHWAYS,ROCHDALE STRUCTURAL PATCHING DFT,"4,356.54"
Rochdale BC,28/01/2014,BRENNAN PAVING COMPANY LIMITED,"Works - Construction, Repair & Maintenance",PROPERTY AND HIGHWAYS,ROCHDALE STRUCTURAL PATCHING DFT,"8,163.09"
Rochdale BC,28/01/2014,BRENNAN PAVING COMPANY LIMITED,"Works - Construction, Repair & Maintenance",PROPERTY AND HIGHWAYS,ROCHDALE STRUCTURAL PATCHING DFT,"7,473.75"
Rochdale BC,02/01/2014,BRENNAN PAVING COMPANY LIMITED,"Works - Construction, Repair & Maintenance",PROPERTY AND HIGHWAYS,ROCHDALE STRUCTURAL PATCHING HIP,"1,774.59"
Rochdale BC,28/01/2014,BRENNAN PAVING COMPANY LIMITED,"Works - Construction, Repair & Maintenance",PROPERTY AND HIGHWAYS,ROCHDALE STRUCTURAL PATCHING HIP,"2,034.78"
Rochdale BC,28/01/2014,BRENNAN PAVING COMPANY LIMITED,"Works - Construction, Repair & Maintenance",PROPERTY AND HIGHWAYS,ROCHDALE STRUCTURAL PATCHING HIP,"2,215.19"
Rochdale BC,28/01/2014,BRENNAN PAVING COMPANY LIMITED,"Works - Construction, Repair & Maintenance",PROPERTY AND HIGHWAYS,ROCHDALE STRUCTURAL PATCHING HIP,"1,822.17"
Rochdale BC,29/01/2014,BRIGHOUSE HIGH SCHOOL,Public Bodies,EARLY HELP AND SCHOOLS,PRE 16 RDALE PUPILS  IN OLA MAINSTREAM,"2,010.00"
Rochdale BC,29/01/2014,BRIGHOUSE HIGH SCHOOL,Public Bodies,EARLY HELP AND SCHOOLS,PRE 16 RDALE PUPILS  IN OLA MAINSTREAM,"1,507.00"
Rochdale BC,17/01/2014,BRITISH GAS BUSINESS,Utilities,ECONOMY AND ENVIRONMENT,BOWLING GREENS,"1,595.43"
Rochdale BC,17/01/2014,BRITISH GAS BUSINESS,Utilities,PROPERTY AND HIGHWAYS,CAR PARKS  GENERAL,892.27
Rochdale BC,17/01/2014,BRITISH GAS BUSINESS,Utilities,ECONOMY AND ENVIRONMENT,CEMETERIES GENERAL,548.59
Rochdale BC,17/01/2014,BRITISH GAS BUSINESS,Utilities,CHILDREN�S SOCIAL CARE,CROSSFIELD MILL,"2,641.41"
Rochdale BC,17/01/2014,BRITISH GAS BUSINESS,Utilities,ECONOMY AND ENVIRONMENT,DEPOT GREEN LANE GENERAL,"2,369.28"
Rochdale BC,17/01/2014,BRITISH GAS BUSINESS,Utilities,ECONOMY AND ENVIRONMENT,GREAT HOWARTH HOSTEL,720.08
Rochdale BC,17/01/2014,BRITISH GAS BUSINESS,Utilities,PROPERTY AND HIGHWAYS,HANSON CLOSE INDUSTRIAL ESTATE,828.69
Rochdale BC,17/01/2014,BRITISH GAS BUSINESS,Utilities,ECONOMY AND ENVIRONMENT,HOLLINGWORTH LAKE GENERAL,974.37
Rochdale BC,17/01/2014,BRITISH GAS BUSINESS,Utilities,LEARNING DIS & MENTAL HEALTH,LD PROVIDER MANAGEMENT & ADMIN,619.23
Rochdale BC,17/01/2014,BRITISH GAS BUSINESS,Utilities,ECONOMY AND ENVIRONMENT,LEOPOLD COURT,816.26
Rochdale BC,17/01/2014,BRITISH GAS BUSINESS,Utilities,PROPERTY AND HIGHWAYS,MANAGEMENT OF PROPERTIES,"1,297.70"
Rochdale BC,17/01/2014,BRITISH GAS BUSINESS,Utilities,EARLY HELP AND SCHOOLS,NEWBOLD CHILDRENS CENTRE,588.14
Rochdale BC,17/01/2014,BRITISH GAS BUSINESS,Utilities,ECONOMY AND ENVIRONMENT,PARKS HEYWOOD,663.75
Rochdale BC,17/01/2014,BRITISH GAS BUSINESS,Utilities,ECONOMY AND ENVIRONMENT,PARKS ROCHDALE,"1,688.99"
Rochdale BC,17/01/2014,BRITISH GAS BUSINESS,Utilities,PROPERTY AND HIGHWAYS,PHOENIX CLOSE IND ESTATE - MICRO,"1,560.09"
Rochdale BC,17/01/2014,BRITISH GAS BUSINESS,Utilities,CORPORATE SERVICES,RENAISSANCE,512.15
Rochdale BC,17/01/2014,BRITISH GAS BUSINESS,Utilities,PHYSICAL DIS & OLDER PEOPLE,SPRINGHILL EMI UNIT,"1,135.05"
Rochdale BC,17/01/2014,BRITISH GAS BUSINESS,Utilities,ECONOMY AND ENVIRONMENT,TELEGRAPH HOUSE SERVICE CHARGE ACCOUNT,571.15
Rochdale BC,17/01/2014,BRITISH GAS BUSINESS,Utilities,CHILDREN�S SOCIAL CARE,TOWNHEAD,646.52
Rochdale BC,17/01/2014,BRITISH GAS BUSINESS,Utilities,PHYSICAL DIS & OLDER PEOPLE,TUDOR COURT REHAB UNIT,679.25
Rochdale BC,15/01/2014,BRITISH TELECOMMUNICATIONS PLC,Information Communication Technology,PROPERTY AND HIGHWAYS,SOUTH HEYWOOD IMP HOPWOOD TRIANGLE,"3,500.00"
Rochdale BC,07/01/2014,BROOKE EDGLEY SPECIALIST TECH SERV LTD,Health & Safety�,ECONOMY AND ENVIRONMENT,TELEGRAPH HOUSE SERVICE CHARGE ACCOUNT,"1,855.00"
Rochdale BC,21/01/2014,BROWNS BOOK FOR STUDENTS,Education,CHILDREN�S SOCIAL CARE,ASYE - DFE,595.00
Rochdale BC,08/01/2014,BTW SHIELLS,Facilities & Management Services,CORPORATE SERVICES,WHEATSHEAF LIBRARY,"22,466.37"
Rochdale BC,06/01/2014,BUILDING BLOCKS DAY NURSERY NW LTD,Social Community Care Supplies & Services,EARLY HELP AND SCHOOLS,FREE NURSERY PLACES 2 YEAR OLDS,"10,291.05"
Rochdale BC,06/01/2014,BUILDING BLOCKS DAY NURSERY NW LTD,Social Community Care Supplies & Services,EARLY HELP AND SCHOOLS,NURSERY EDUCATION GRANT  3YR OLDS,"7,623.00"
Rochdale BC,27/01/2014,BUILDING DESIGN PARTNERSHIP,"Works - Construction, Repair & Maintenance",ECONOMY AND ENVIRONMENT,TOWN HALL FEASIBILITY,"23,708.40"
Rochdale BC,08/01/2014,BUILDING SERVICES DESIGN,Consultancy,ECONOMY AND ENVIRONMENT,TOWN CENTRE EAST FEASIBILITY 51K 07/08,900.00
Rochdale BC,01/01/2014,BURNSIDE CENTRE MANAGERS,Financial Services,CORPORATE SERVICES,BURNSIDE CENTRE,"6,550.00"
Rochdale BC,06/01/2014,BURNSIDE PRE-SCHOOL ACCOUNT,Financial Services,EARLY HELP AND SCHOOLS,FREE NURSERY PLACES 2 YEAR OLDS,"4,900.50"
Rochdale BC,06/01/2014,BURNSIDE PRE-SCHOOL ACCOUNT,Financial Services,EARLY HELP AND SCHOOLS,NURSERY EDUCATION GRANT  3YR OLDS,"6,732.54"
Rochdale BC,06/01/2014,BUTTERCUPS PRIVATE DAY NURSERY,Financial Services,EARLY HELP AND SCHOOLS,FREE NURSERY PLACES 2 YEAR OLDS,"1,960.20"
Rochdale BC,06/01/2014,BUTTERCUPS PRIVATE DAY NURSERY,Financial Services,EARLY HELP AND SCHOOLS,NURSERY EDUCATION GRANT  3YR OLDS,"7,775.46"
Rochdale BC,06/01/2014,BUTTONS & BOWS PLAYGROUP,Financial Services,EARLY HELP AND SCHOOLS,FREE NURSERY PLACES 2 YEAR OLDS,"5,390.55"
Rochdale BC,06/01/2014,BUTTONS & BOWS PLAYGROUP,Financial Services,EARLY HELP AND SCHOOLS,NURSERY EDUCATION GRANT  3YR OLDS,"2,744.28"
Rochdale BC,02/01/2014,C H W LODGINGS LTD,Social Community Care Supplies & Services,CHILDREN�S SOCIAL CARE,EXTERNAL RESIDENTIAL PLACEMENTS,"3,985.71"
Rochdale BC,30/01/2014,C2C SYSTEMS LTD,Information Communication Technology,CORPORATE SERVICES,THIRD PARTY CONTRACTS,"9,500.00"
Rochdale BC,06/01/2014,CABBAGE PATCH PRESCHOOL,Financial Services,EARLY HELP AND SCHOOLS,FREE NURSERY PLACES 2 YEAR OLDS,"7,350.75"
Rochdale BC,06/01/2014,CABBAGE PATCH PRESCHOOL,Financial Services,EARLY HELP AND SCHOOLS,NURSERY EDUCATION GRANT  3YR OLDS,"10,546.47"
Rochdale BC,08/01/2014,CABLE & WIRELESS,Information Communication Technology,CORPORATE SERVICES,THIRD PARTY CONTRACTS,908.81
Rochdale BC,13/01/2014,CABLE & WIRELESS,Information Communication Technology,CORPORATE SERVICES,THIRD PARTY CONTRACTS,"2,750.06"
Rochdale BC,30/01/2014,CABLE & WIRELESS,Information Communication Technology,CORPORATE SERVICES,THIRD PARTY CONTRACTS,855.07
Rochdale BC,29/01/2014,CACI LIMITED,Information Communication Technology,CHILDREN�S SOCIAL CARE,PREVENTION,792.59
Rochdale BC,15/01/2014,CAPITA BUSINESS SERVICES LIMITED,Human Resources,FINANCE SERVICES,TECHNICAL SUPPORT,500.00
Rochdale BC,09/01/2014,CAR 2000 (HEYWOOD) LLP,Public Transport,ECONOMY AND ENVIRONMENT,EDUCATION HOME TO SCHOOL,"1,653.75"
Rochdale BC,09/01/2014,CAR 2000 (HEYWOOD) LLP,Public Transport,ECONOMY AND ENVIRONMENT,EDUCATION HOME TO SCHOOL,540.00
Rochdale BC,09/01/2014,CAR 2000 (HEYWOOD) LLP,Public Transport,ECONOMY AND ENVIRONMENT,EDUCATION HOME TO SCHOOL,912.00
Rochdale BC,09/01/2014,CAR 2000 (HEYWOOD) LLP,Public Transport,ECONOMY AND ENVIRONMENT,EDUCATION HOME TO SCHOOL,930.00
Rochdale BC,29/01/2014,CARDINAL LANGLEY R C HIGH SCHOOL,Financial Services,EARLY HELP AND SCHOOLS,6TH FORM FUNDING,"52,930.00"
Rochdale BC,29/01/2014,CARDINAL LANGLEY R C HIGH SCHOOL,Financial Services,EARLY HELP AND SCHOOLS,6TH FORM FUNDING,"2,000.00"
Rochdale BC,29/01/2014,CARDINAL LANGLEY R C HIGH SCHOOL,Financial Services,EARLY HELP AND SCHOOLS,TEACHER`S PAY GRANT YPLA,"3,461.00"
Rochdale BC,03/01/2014,CARE 4 U,Social Community Care Supplies & Services,PHYSICAL DIS & OLDER PEOPLE,OLDER PEOPLES AGENCY PROVISION,"9,668.69"
Rochdale BC,10/01/2014,CARE 4 U,Social Community Care Supplies & Services,PHYSICAL DIS & OLDER PEOPLE,OLDER PEOPLES AGENCY PROVISION,"8,371.92"
Rochdale BC,16/01/2014,CARE 4 U,Social Community Care Supplies & Services,PHYSICAL DIS & OLDER PEOPLE,OLDER PEOPLES AGENCY PROVISION,"8,535.82"
Rochdale BC,24/01/2014,CARE 4 U,Social Community Care Supplies & Services,PHYSICAL DIS & OLDER PEOPLE,OLDER PEOPLES AGENCY PROVISION,"9,531.66"
Rochdale BC,31/01/2014,CARE 4 U,Social Community Care Supplies & Services,PHYSICAL DIS & OLDER PEOPLE,OLDER PEOPLES AGENCY PROVISION,"9,534.35"
Rochdale BC,09/01/2014,CARE FACILITY MANAGEMENT,Cleaning & Janitorial,ECONOMY AND ENVIRONMENT,TOWN CENTRE DEMOLITIONS,950.00
Rochdale BC,13/01/2014,CARE TODAY CHILDRENS SERVICES,Social Community Care Supplies & Services,CHILDREN�S SOCIAL CARE,EXTERNAL RESIDENTIAL PLACEMENTS,"12,377.99"
Rochdale BC,06/01/2014,CARERS FEDERATION,Social Community Care Supplies & Services,PHYSICAL DIS & OLDER PEOPLE,OLDER PEOPLES AGENCY PROVISION,"7,857.14"
Rochdale BC,03/01/2014,CAREWEST (NORTHERN) LIMITED,Social Community Care Supplies & Services,PHYSICAL DIS & OLDER PEOPLE,OLDER PEOPLES AGENCY PROVISION,"6,863.02"
Rochdale BC,10/01/2014,CAREWEST (NORTHERN) LIMITED,Social Community Care Supplies & Services,PHYSICAL DIS & OLDER PEOPLE,OLDER PEOPLES AGENCY PROVISION,"5,959.88"
Rochdale BC,13/01/2014,CAREWEST (NORTHERN) LIMITED,Social Community Care Supplies & Services,PHYSICAL DIS & OLDER PEOPLE,OLDER PEOPLES AGENCY PROVISION,"36,426.84"
Rochdale BC,16/01/2014,CAREWEST (NORTHERN) LIMITED,Social Community Care Supplies & Services,PHYSICAL DIS & OLDER PEOPLE,OLDER PEOPLES AGENCY PROVISION,"6,467.98"
Rochdale BC,24/01/2014,CAREWEST (NORTHERN) LIMITED,Social Community Care Supplies & Services,PHYSICAL DIS & OLDER PEOPLE,OLDER PEOPLES AGENCY PROVISION,"6,875.81"
Rochdale BC,31/01/2014,CAREWEST (NORTHERN) LIMITED,Social Community Care Supplies & Services,PHYSICAL DIS & OLDER PEOPLE,OLDER PEOPLES AGENCY PROVISION,"6,713.82"
Rochdale BC,09/01/2014,CARLTON MINIBUSES,Public Transport,ECONOMY AND ENVIRONMENT,EDUCATION HOME TO SCHOOL,"3,140.00"
Rochdale BC,31/01/2014,CARLTON MINIBUSES,Public Transport,ECONOMY AND ENVIRONMENT,EDUCATION HOME TO SCHOOL,"4,180.00"
Rochdale BC,01/01/2014,CASTLEMERE COMMUNITY CENTRE,Unclassifiable,CORPORATE SERVICES,CASTLEMERE COMMUNITY CENTRE,"3,275.00"
Rochdale BC,03/01/2014,CASTLEROCK CARE SERVICES LIMITED,Social Community Care Supplies & Services,PHYSICAL DIS & OLDER PEOPLE,OLDER PEOPLES AGENCY PROVISION,"4,258.33"
Rochdale BC,10/01/2014,CASTLEROCK CARE SERVICES LIMITED,Social Community Care Supplies & Services,PHYSICAL DIS & OLDER PEOPLE,OLDER PEOPLES AGENCY PROVISION,"3,533.62"
Rochdale BC,16/01/2014,CASTLEROCK CARE SERVICES LIMITED,Social Community Care Supplies & Services,PHYSICAL DIS & OLDER PEOPLE,OLDER PEOPLES AGENCY PROVISION,"4,325.11"
Rochdale BC,24/01/2014,CASTLEROCK CARE SERVICES LIMITED,Social Community Care Supplies & Services,PHYSICAL DIS & OLDER PEOPLE,OLDER PEOPLES AGENCY PROVISION,"3,689.32"
Rochdale BC,31/01/2014,CASTLEROCK CARE SERVICES LIMITED,Social Community Care Supplies & Services,PHYSICAL DIS & OLDER PEOPLE,OLDER PEOPLES AGENCY PROVISION,"3,959.92"
Rochdale BC,03/01/2014,CASTLEROYLE PRIVATE HIRE,Public Transport,ECONOMY AND ENVIRONMENT,EDUCATION HOME TO SCHOOL,"5,162.00"
Rochdale BC,27/01/2014,CASTLEROYLE PRIVATE HIRE,Public Transport,ECONOMY AND ENVIRONMENT,EDUCATION HOME TO SCHOOL,"4,043.00"
Rochdale BC,06/01/2014,CASTLETON COMMUNITY PLAYGROUP,Social Community Care Supplies & Services,EARLY HELP AND SCHOOLS,FREE NURSERY PLACES 2 YEAR OLDS,"2,940.30"
Rochdale BC,06/01/2014,CASTLETON COMMUNITY PLAYGROUP,Social Community Care Supplies & Services,EARLY HELP AND SCHOOLS,NURSERY EDUCATION GRANT  3YR OLDS,"4,156.42"
Rochdale BC,30/12/2013,CASTLETON HEALTH CENTRE,Healthcare,PUBLIC HEALTH,SEXUAL HEALTH SERVICES,"3,650.33"
Rochdale BC,22/01/2014,CASTLETON PRIMARY SCHOOL,Public Bodies,EARLY HELP AND SCHOOLS,DAY TO DAY REPAIRS & SERVICING OF PLANT,"2,000.00"
Rochdale BC,20/01/2014,CF CORPORATE FINANCE LTD,Financial Services,CORPORATE SERVICES,THIRD PARTY CONTRACTS,823.80
Rochdale BC,09/01/2014,CHANCES,Unclassifiable,EARLY HELP AND SCHOOLS,LOOKED AFTER CHILDREN PUPIL PREMIUM,"1,837.70"
Rochdale BC,06/01/2014,CHANNINGS EARLY YEARS SCHOOL,Financial Services,EARLY HELP AND SCHOOLS,FREE NURSERY PLACES 2 YEAR OLDS,"1,470.15"
Rochdale BC,06/01/2014,CHANNINGS EARLY YEARS SCHOOL,Financial Services,EARLY HELP AND SCHOOLS,NURSERY EDUCATION GRANT  3YR OLDS,"11,181.96"
Rochdale BC,03/01/2014,CHAUFFEUR TRAVEL,Human Resources,ECONOMY AND ENVIRONMENT,EDUCATION HOME TO SCHOOL,"1,140.00"
Rochdale BC,13/01/2014,CHILD ACTION NORTHWEST,Human Resources,CHILDREN�S SOCIAL CARE,INDEPENDENT FOSTER CARE,"3,737.10"
Rochdale BC,13/01/2014,CHILD ACTION NORTHWEST,Human Resources,CHILDREN�S SOCIAL CARE,INDEPENDENT FOSTER CARE,"3,575.97"
Rochdale BC,21/01/2014,CHILD ACTION NORTHWEST,Human Resources,CHILDREN�S SOCIAL CARE,INDEPENDENT FOSTER CARE,"2,905.63"
Rochdale BC,21/01/2014,CHILD ACTION NORTHWEST,Human Resources,CHILDREN�S SOCIAL CARE,INDEPENDENT FOSTER CARE,"3,631.34"
Rochdale BC,21/01/2014,CHILD ACTION NORTHWEST,Human Resources,CHILDREN�S SOCIAL CARE,INDEPENDENT FOSTER CARE,"3,370.01"
Rochdale BC,21/01/2014,CHILD ACTION NORTHWEST,Human Resources,CHILDREN�S SOCIAL CARE,INDEPENDENT FOSTER CARE,"3,184.01"
Rochdale BC,21/01/2014,CHILD ACTION NORTHWEST,Human Resources,CHILDREN�S SOCIAL CARE,INDEPENDENT FOSTER CARE,"3,268.33"
Rochdale BC,21/01/2014,CHILD ACTION NORTHWEST,Human Resources,CHILDREN�S SOCIAL CARE,INDEPENDENT FOSTER CARE,"3,268.33"
Rochdale BC,21/01/2014,CHILD ACTION NORTHWEST,Human Resources,CHILDREN�S SOCIAL CARE,INDEPENDENT FOSTER CARE,"3,587.01"
Rochdale BC,21/01/2014,CHILD ACTION NORTHWEST,Human Resources,CHILDREN�S SOCIAL CARE,INDEPENDENT FOSTER CARE,"3,228.34"
Rochdale BC,21/01/2014,CHILD ACTION NORTHWEST,Human Resources,CHILDREN�S SOCIAL CARE,INDEPENDENT FOSTER CARE,"3,228.34"
Rochdale BC,21/01/2014,CHILD ACTION NORTHWEST,Human Resources,CHILDREN�S SOCIAL CARE,INDEPENDENT FOSTER CARE,"3,423.33"
Rochdale BC,21/01/2014,CHILD ACTION NORTHWEST,Human Resources,CHILDREN�S SOCIAL CARE,INDEPENDENT FOSTER CARE,"3,538.34"
Rochdale BC,21/01/2014,CHILD ACTION NORTHWEST,Human Resources,CHILDREN�S SOCIAL CARE,INDEPENDENT FOSTER CARE,"3,228.34"
Rochdale BC,21/01/2014,CHILD ACTION NORTHWEST,Human Resources,CHILDREN�S SOCIAL CARE,INDEPENDENT FOSTER CARE,"3,268.33"
Rochdale BC,21/01/2014,CHILD ACTION NORTHWEST,Human Resources,CHILDREN�S SOCIAL CARE,INDEPENDENT FOSTER CARE,"3,184.01"
Rochdale BC,21/01/2014,CHILD ACTION NORTHWEST,Human Resources,CHILDREN�S SOCIAL CARE,INDEPENDENT FOSTER CARE,"3,861.67"
Rochdale BC,21/01/2014,CHILD ACTION NORTHWEST,Human Resources,CHILDREN�S SOCIAL CARE,INDEPENDENT FOSTER CARE,"3,228.34"
Rochdale BC,23/01/2014,CHILD ACTION NORTHWEST,Human Resources,CHILDREN�S SOCIAL CARE,INDEPENDENT FOSTER CARE,"2,756.64"
Rochdale BC,01/01/2014,CHILD ACTION NORTHWEST,Human Resources,CHILDREN�S SOCIAL CARE,YPST SUPPORTING PEOPLE FUNDING,"5,666.67"
Rochdale BC,01/01/2014,CHILD ACTION NORTHWEST,Human Resources,CHILDREN�S SOCIAL CARE,YPST SUPPORTING PEOPLE FUNDING,"13,000.00"
Rochdale BC,29/01/2014,CHOICE SUPPORT AND TRANSPORT,Public Transport,EARLY HELP AND SCHOOLS,MIDDLETON APPRENTICESHIP PROJECT,"1,750.00"
Rochdale BC,21/01/2014,CHRISTMAS PLUS,Domestic Goods,PROPERTY AND HIGHWAYS,KIRKHOLT CHRISTMAS LIGHTS,"3,070.20"
Rochdale BC,21/01/2014,CHRISTMAS PLUS,Domestic Goods,PROPERTY AND HIGHWAYS,ST LTG MISC XMAS ILLUMINA,"20,399.40"
Rochdale BC,10/01/2014,CHUBB FIRE LIMITED,Health & Safety�,PROPERTY AND HIGHWAYS,NEWBOLD CHILDRENS CENTRE,"1,039.19"
Rochdale BC,23/01/2014,CITY LIFT SERVICES,Facilities & Management Services,PROPERTY AND HIGHWAYS,NEWBOLD BUILDINGS,"1,000.00"
Rochdale BC,08/01/2014,CIVICA UK LIMITED,Vehicle Management,CORPORATE SERVICES,THIRD PARTY CONTRACTS,"2,093.76"
Rochdale BC,08/01/2014,CIVICA UK LIMITED,Vehicle Management,CORPORATE SERVICES,THIRD PARTY CONTRACTS,"2,526.70"
Rochdale BC,17/01/2014,CLEARWATER RISK MANAGEMENT LTD,Human Resources,CORPORATE SERVICES,COURSES SCHOOL SAFETY,"2,550.00"
Rochdale BC,06/01/2014,CLEWORTH ROAD PRE-SCHOOL,Financial Services,EARLY HELP AND SCHOOLS,FREE NURSERY PLACES 2 YEAR OLDS,"1,470.15"
Rochdale BC,06/01/2014,CLEWORTH ROAD PRE-SCHOOL,Financial Services,EARLY HELP AND SCHOOLS,NURSERY EDUCATION GRANT  3YR OLDS,"6,486.48"
Rochdale BC,09/01/2014,CLOVER SECURITY SERVICES LIMITED,Facilities & Management Services,ECONOMY AND ENVIRONMENT,BALDERSTONE DEMOLITION,"10,757.82"
Rochdale BC,31/01/2014,CLOVER SECURITY SERVICES LIMITED,Facilities & Management Services,ECONOMY AND ENVIRONMENT,TOWN CENTRE DEMOLITIONS,650.00
Rochdale BC,31/01/2014,CLOVER SECURITY SERVICES LIMITED,Facilities & Management Services,ECONOMY AND ENVIRONMENT,TOWN CENTRE DEMOLITIONS,"1,267.50"
Rochdale BC,01/01/2014,CLOVERHALL TENANTS ASSOCIATION CO-OPERAT,Financial Services,LEARNING DIS & MENTAL HEALTH,DAY SERVICES MANAGEMENT/ADMIN,"1,102.80"
Rochdale BC,06/01/2014,CLOVERLEAF CHILDCARE,Social Community Care Supplies & Services,EARLY HELP AND SCHOOLS,FREE NURSERY PLACES 2 YEAR OLDS,"6,370.65"
Rochdale BC,06/01/2014,CLOVERLEAF CHILDCARE,Social Community Care Supplies & Services,EARLY HELP AND SCHOOLS,NURSERY EDUCATION GRANT  3YR OLDS,"3,872.81"
Rochdale BC,03/01/2014,COACH OPTIONS LIMITED,Public Transport,ECONOMY AND ENVIRONMENT,EDUCATION HOME TO SCHOOL,"1,320.00"
Rochdale BC,08/01/2014,COMFORT CALL,Healthcare,LEARNING DIS & MENTAL HEALTH,GENERAL,624.00
Rochdale BC,08/01/2014,COMFORT CALL,Healthcare,LEARNING DIS & MENTAL HEALTH,GENERAL,654.00
Rochdale BC,08/01/2014,COMFORT CALL,Healthcare,LEARNING DIS & MENTAL HEALTH,GENERAL,969.00
Rochdale BC,21/01/2014,COMFORT CALL,Healthcare,LEARNING DIS & MENTAL HEALTH,GENERAL,576.00
Rochdale BC,21/01/2014,COMFORT CALL,Healthcare,LEARNING DIS & MENTAL HEALTH,GENERAL,954.00
Rochdale BC,03/01/2014,COMFORT CALL,Healthcare,PHYSICAL DIS & OLDER PEOPLE,OLDER PEOPLES AGENCY PROVISION,"12,442.48"
Rochdale BC,10/01/2014,COMFORT CALL,Healthcare,PHYSICAL DIS & OLDER PEOPLE,OLDER PEOPLES AGENCY PROVISION,"11,408.60"
Rochdale BC,16/01/2014,COMFORT CALL,Healthcare,PHYSICAL DIS & OLDER PEOPLE,OLDER PEOPLES AGENCY PROVISION,"11,761.82"
Rochdale BC,24/01/2014,COMFORT CALL,Healthcare,PHYSICAL DIS & OLDER PEOPLE,OLDER PEOPLES AGENCY PROVISION,"12,212.07"
Rochdale BC,31/01/2014,COMFORT CALL,Healthcare,PHYSICAL DIS & OLDER PEOPLE,OLDER PEOPLES AGENCY PROVISION,"12,194.01"
Rochdale BC,08/01/2014,COMMUNITY CARE LINE SERVICES,Social Community Care Supplies & Services,LEARNING DIS & MENTAL HEALTH,GENERAL,669.90
Rochdale BC,13/01/2014,COMMUNITY CARE LINE SERVICES,Social Community Care Supplies & Services,LEARNING DIS & MENTAL HEALTH,GENERAL,684.31
Rochdale BC,03/01/2014,COMMUNITY CARE LINE SERVICES,Social Community Care Supplies & Services,PHYSICAL DIS & OLDER PEOPLE,OLDER PEOPLES AGENCY PROVISION,"3,336.91"
Rochdale BC,10/01/2014,COMMUNITY CARE LINE SERVICES,Social Community Care Supplies & Services,PHYSICAL DIS & OLDER PEOPLE,OLDER PEOPLES AGENCY PROVISION,"2,863.32"
Rochdale BC,16/01/2014,COMMUNITY CARE LINE SERVICES,Social Community Care Supplies & Services,PHYSICAL DIS & OLDER PEOPLE,OLDER PEOPLES AGENCY PROVISION,"5,501.03"
Rochdale BC,24/01/2014,COMMUNITY CARE LINE SERVICES,Social Community Care Supplies & Services,PHYSICAL DIS & OLDER PEOPLE,OLDER PEOPLES AGENCY PROVISION,"3,350.31"
Rochdale BC,31/01/2014,COMMUNITY CARE LINE SERVICES,Social Community Care Supplies & Services,PHYSICAL DIS & OLDER PEOPLE,OLDER PEOPLES AGENCY PROVISION,"3,287.59"
Rochdale BC,29/01/2014,COMMUNITY LIGHTING PARTNERSHIP ROCHDALE LTD,Building Construction Materials,PROPERTY AND HIGHWAYS,STREET LIGHTING UNITARY CHARGE,"270,277.21"
Rochdale BC,30/12/2013,COMMUNITY LIGHTING PARTNERSHIP ROCHDALE LTD,Building Construction Materials,PROPERTY AND HIGHWAYS,STREET LIGHTING UNITARY CHARGE,"277,181.25"
Rochdale BC,14/01/2014,COMMUNITY PRODUCTS (UK) LIMITED,Social Community Care Supplies & Services,EARLY HELP AND SCHOOLS,DERBY ST CHILDRENS CENTRE,612.00
Rochdale BC,09/01/2014,CONNECT CARS (MIDDLETON) LIMITED,Public Transport,ECONOMY AND ENVIRONMENT,EDUCATION HOME TO SCHOOL,917.50
Rochdale BC,27/01/2014,CONNECT CARS (MIDDLETON) LIMITED,Public Transport,ECONOMY AND ENVIRONMENT,EDUCATION HOME TO SCHOOL,870.00
Rochdale BC,27/01/2014,CONNECT CARS (MIDDLETON) LIMITED,Public Transport,ECONOMY AND ENVIRONMENT,EDUCATION HOME TO SCHOOL,917.50
Rochdale BC,29/01/2014,CO-OPERATIVE BANK PLC,Financial Services,LEARNING DIS & MENTAL HEALTH,ADULT CARE ADMIN,"1,525.45"
Rochdale BC,17/01/2014,CO-OPERATIVE BANK PLC,Financial Services,FINANCE SERVICES,COUNCIL TAX LIABILITY AND RECOVERY,759.00
Rochdale BC,17/01/2014,CO-OPERATIVE BANK PLC,Financial Services,PHYSICAL DIS & OLDER PEOPLE,DISABLED FACILITIES GRANT,976.00
Rochdale BC,17/01/2014,CO-OPERATIVE BANK PLC,Financial Services,ECONOMY AND ENVIRONMENT,ENV HEAD OF SERVICE M AND SS,616.00
Rochdale BC,17/01/2014,CO-OPERATIVE BANK PLC,Financial Services,CORPORATE SERVICES,LEGAL SERVICES,"1,313.00"
Rochdale BC,01/01/2014,CORE ASSETS CHILDRENS SERVICES LTD,Social Community Care Supplies & Services,EARLY HELP AND SCHOOLS,SHORT BREAKS REVENUE,970.33
Rochdale BC,30/01/2014,CORONA ENERGY RETAIL 4 LIMITED,Utilities,ECONOMY AND ENVIRONMENT,1 RIVERSIDE,"4,365.07"
Rochdale BC,14/01/2014,CORONA ENERGY RETAIL 4 LIMITED,Utilities,ECONOMY AND ENVIRONMENT,CEMETERIES GENERAL,"1,040.80"
Rochdale BC,14/01/2014,CORONA ENERGY RETAIL 4 LIMITED,Utilities,ECONOMY AND ENVIRONMENT,CEMETERIES GENERAL,"3,384.37"
Rochdale BC,14/01/2014,CORONA ENERGY RETAIL 4 LIMITED,Utilities,CHILDREN�S SOCIAL CARE,CROSSFIELD MILL,884.75
Rochdale BC,14/01/2014,CORONA ENERGY RETAIL 4 LIMITED,Utilities,ECONOMY AND ENVIRONMENT,DEPOT GREEN LANE GENERAL,"1,670.30"
Rochdale BC,14/01/2014,CORONA ENERGY RETAIL 4 LIMITED,Utilities,PROPERTY AND HIGHWAYS,DISPOSAL COSTS,731.78
Rochdale BC,14/01/2014,CORONA ENERGY RETAIL 4 LIMITED,Utilities,ECONOMY AND ENVIRONMENT,EMPLOYMENT LINKS CENTRE H,508.55
Rochdale BC,14/01/2014,CORONA ENERGY RETAIL 4 LIMITED,Utilities,LEARNING DIS & MENTAL HEALTH,GATEWAY,663.22
Rochdale BC,21/01/2014,CORONA ENERGY RETAIL 4 LIMITED,Utilities,ECONOMY AND ENVIRONMENT,GREAT HOWARTH HOSTEL,"1,024.46"
Rochdale BC,14/01/2014,CORONA ENERGY RETAIL 4 LIMITED,Utilities,CORPORATE SERVICES,HEALTH & SAFETY GENERAL,708.03
Rochdale BC,14/01/2014,CORONA ENERGY RETAIL 4 LIMITED,Utilities,CORPORATE SERVICES,HEYWOOD LIBRARY,722.54
Rochdale BC,14/01/2014,CORONA ENERGY RETAIL 4 LIMITED,Utilities,LEARNING DIS & MENTAL HEALTH,LD PROVIDER MANAGEMENT & ADMIN,"1,419.19"
Rochdale BC,14/01/2014,CORONA ENERGY RETAIL 4 LIMITED,Utilities,ECONOMY AND ENVIRONMENT,LEOPOLD COURT,"1,268.02"
Rochdale BC,14/01/2014,CORONA ENERGY RETAIL 4 LIMITED,Utilities,CORPORATE SERVICES,LITTLEBOROUGH LIBRARY,"1,206.66"
Rochdale BC,14/01/2014,CORONA ENERGY RETAIL 4 LIMITED,Utilities,EARLY HELP AND SCHOOLS,NEWBOLD CHILDRENS CENTRE,541.23
Rochdale BC,21/01/2014,CORONA ENERGY RETAIL 4 LIMITED,Utilities,PHYSICAL DIS & OLDER PEOPLE,SPRINGHILL EMI UNIT,"1,281.19"
Rochdale BC,09/01/2014,CORONA ENERGY RETAIL 4 LIMITED,Utilities,ECONOMY AND ENVIRONMENT,TELEGRAPH HOUSE SERVICE CHARGE ACCOUNT,"1,906.78"
Rochdale BC,21/01/2014,CORONA ENERGY RETAIL 4 LIMITED,Utilities,ECONOMY AND ENVIRONMENT,TELEGRAPH HOUSE SERVICE CHARGE ACCOUNT,"2,286.45"
Rochdale BC,14/01/2014,CORONA ENERGY RETAIL 4 LIMITED,Utilities,ECONOMY AND ENVIRONMENT,TOWN HALL,"4,987.12"
Rochdale BC,14/01/2014,CORONA ENERGY RETAIL 4 LIMITED,Utilities,CHILDREN�S SOCIAL CARE,TOWNHEAD,"1,003.16"
Rochdale BC,14/01/2014,CORONA ENERGY RETAIL 4 LIMITED,Utilities,PHYSICAL DIS & OLDER PEOPLE,TUDOR COURT REHAB UNIT,"1,302.00"
Rochdale BC,07/01/2014,CORONA ENERGY RETAIL 4 LIMITED,Utilities,ECONOMY AND ENVIRONMENT,WHITWORTH ROAD,626.36
Rochdale BC,14/01/2014,CORONA ENERGY RETAIL 4 LIMITED,Utilities,PHYSICAL DIS & OLDER PEOPLE,WOODCLOUGH,609.17
Rochdale BC,22/01/2014,COSY TOES CHILDCARE LIMITED,Social Community Care Supplies & Services,CORPORATE SERVICES,EMERGENCY PLANNING,"1,035.00"
Rochdale BC,06/01/2014,COSY TOES CHILDCARE LIMITED,Social Community Care Supplies & Services,EARLY HELP AND SCHOOLS,FREE NURSERY PLACES 2 YEAR OLDS,"1,960.20"
Rochdale BC,06/01/2014,COSY TOES CHILDCARE LIMITED,Social Community Care Supplies & Services,EARLY HELP AND SCHOOLS,FREE NURSERY PLACES 2 YEAR OLDS,"5,880.60"
Rochdale BC,06/01/2014,COSY TOES CHILDCARE LIMITED,Social Community Care Supplies & Services,EARLY HELP AND SCHOOLS,NURSERY EDUCATION GRANT  3YR OLDS,"6,496.45"
Rochdale BC,06/01/2014,COSY TOES CHILDCARE LIMITED,Social Community Care Supplies & Services,EARLY HELP AND SCHOOLS,NURSERY EDUCATION GRANT  3YR OLDS,"7,546.77"
Rochdale BC,08/01/2014,COSY TOES CHILDCARE LIMITED,Social Community Care Supplies & Services,EARLY HELP AND SCHOOLS,NURSERY EDUCATION GRANT  3YR OLDS,"4,504.50"
Rochdale BC,06/01/2014,COSY TOES PRIVATE DAY NURSERY,Financial Services,EARLY HELP AND SCHOOLS,FREE NURSERY PLACES 2 YEAR OLDS,"1,960.20"
Rochdale BC,06/01/2014,COSY TOES PRIVATE DAY NURSERY,Financial Services,EARLY HELP AND SCHOOLS,NURSERY EDUCATION GRANT  3YR OLDS,"7,819.02"
Rochdale BC,06/01/2014,COTS AND TOTS,Social Community Care Supplies & Services,EARLY HELP AND SCHOOLS,FREE NURSERY PLACES 2 YEAR OLDS,980.10
Rochdale BC,06/01/2014,COTS AND TOTS,Social Community Care Supplies & Services,EARLY HELP AND SCHOOLS,NURSERY EDUCATION GRANT  3YR OLDS,"6,522.52"
Rochdale BC,31/01/2014,COUNCIL FOR VOLUNTARY SERVICE ROCHDALE,Financial Services,PHYSICAL DIS & OLDER PEOPLE,OLDER PEOPLES AGENCY PROVISION,"13,720.00"
Rochdale BC,09/01/2014,COZY CARS,Public Transport,ECONOMY AND ENVIRONMENT,EDUCATION HOME TO SCHOOL,576.00
Rochdale BC,09/01/2014,COZY CARS,Public Transport,ECONOMY AND ENVIRONMENT,EDUCATION HOME TO SCHOOL,"1,152.00"
Rochdale BC,06/01/2014,CRECHE N CO LIMITED,Social Community Care Supplies & Services,EARLY HELP AND SCHOOLS,FREE NURSERY PLACES 2 YEAR OLDS,"5,390.55"
Rochdale BC,06/01/2014,CRECHE N CO LIMITED,Social Community Care Supplies & Services,EARLY HELP AND SCHOOLS,NURSERY EDUCATION GRANT  3YR OLDS,"7,728.51"
Rochdale BC,06/01/2014,CRESCENT DAY NURSERY,Social Community Care Supplies & Services,EARLY HELP AND SCHOOLS,FREE NURSERY PLACES 2 YEAR OLDS,"5,880.60"
Rochdale BC,06/01/2014,CRESCENT DAY NURSERY,Social Community Care Supplies & Services,EARLY HELP AND SCHOOLS,NURSERY EDUCATION GRANT  3YR OLDS,"1,603.80"
Rochdale BC,01/01/2014,CRI,Social Community Care Supplies & Services,LEARNING DIS & MENTAL HEALTH,AGENCY PLACEMENTS,"16,185.00"
Rochdale BC,01/01/2014,CRI,Social Community Care Supplies & Services,CORPORATE SERVICES,DRUGS & ALCOHOL - SPECIALIST D&A SRVC,"85,945.75"
Rochdale BC,01/01/2014,CRIMBLE CROFT COMMUNITY CENTRE,Financial Services,CORPORATE SERVICES,HEYWOOD EAST COMMUNITY CENTRE,"8,125.00"
Rochdale BC,06/01/2014,CRIMBLE CROFT PLAYGROUP,Financial Services,EARLY HELP AND SCHOOLS,FREE NURSERY PLACES 2 YEAR OLDS,"5,390.55"
Rochdale BC,06/01/2014,CRIMBLE CROFT PLAYGROUP,Financial Services,EARLY HELP AND SCHOOLS,NURSERY EDUCATION GRANT  3YR OLDS,"10,872.18"
Rochdale BC,29/01/2014,CROSSGATES PRIMARY SCHOOL,Financial Services,EARLY HELP AND SCHOOLS,SEN SUPPORT MAINSTREAM  LEA,965.00
Rochdale BC,09/01/2014,CROSSROADS CARE IN GREATER MANCHESTER,Social Community Care Supplies & Services,LEARNING DIS & MENTAL HEALTH,LD FORUM - HOME SUPPORT,943.95
Rochdale BC,17/01/2014,CROSSROADS CARE IN GREATER MANCHESTER,Social Community Care Supplies & Services,LEARNING DIS & MENTAL HEALTH,LD FORUM - PERSONAL BUDGETS,"1,449.42"
Rochdale BC,02/01/2014,CROSSROADS CARE IN GREATER MANCHESTER,Social Community Care Supplies & Services,PHYSICAL DIS & OLDER PEOPLE,OLDER PEOPLES AGENCY PROVISION,"6,903.57"
Rochdale BC,03/01/2014,CROSSROADS CARE IN GREATER MANCHESTER,Social Community Care Supplies & Services,PHYSICAL DIS & OLDER PEOPLE,OLDER PEOPLES AGENCY PROVISION,"1,672.31"
Rochdale BC,10/01/2014,CROSSROADS CARE IN GREATER MANCHESTER,Social Community Care Supplies & Services,PHYSICAL DIS & OLDER PEOPLE,OLDER PEOPLES AGENCY PROVISION,"1,127.06"
Rochdale BC,16/01/2014,CROSSROADS CARE IN GREATER MANCHESTER,Social Community Care Supplies & Services,PHYSICAL DIS & OLDER PEOPLE,OLDER PEOPLES AGENCY PROVISION,"1,538.53"
Rochdale BC,24/01/2014,CROSSROADS CARE IN GREATER MANCHESTER,Social Community Care Supplies & Services,PHYSICAL DIS & OLDER PEOPLE,OLDER PEOPLES AGENCY PROVISION,"1,587.26"
Rochdale BC,31/01/2014,CROSSROADS CARE IN GREATER MANCHESTER,Social Community Care Supplies & Services,PHYSICAL DIS & OLDER PEOPLE,OLDER PEOPLES AGENCY PROVISION,"1,320.72"
Rochdale BC,01/01/2014,CROSSROADS CARE IN GREATER MANCHESTER,Social Community Care Supplies & Services,EARLY HELP AND SCHOOLS,SHORT BREAKS REVENUE,"3,341.67"
Rochdale BC,09/01/2014,CTRL M/C & M/C CHILDRENS UNI HOSP NHS TR,Healthcare,PUBLIC HEALTH,SEXUAL HEALTH SERVICES,"29,901.00"
Rochdale BC,06/01/2014,CUTGATE PLAYGROUP,Financial Services,EARLY HELP AND SCHOOLS,FREE NURSERY PLACES 2 YEAR OLDS,"1,470.15"
Rochdale BC,06/01/2014,CUTGATE PLAYGROUP,Financial Services,EARLY HELP AND SCHOOLS,NURSERY EDUCATION GRANT  3YR OLDS,"5,233.73"
Rochdale BC,24/01/2014,D & M DEMOLITIONS LTD,"Works - Construction, Repair & Maintenance",ECONOMY AND ENVIRONMENT,BALDERSTONE DEMOLITION,"2,125.00"
Rochdale BC,29/01/2014,D H WELTON & COMPANY (BUILDERS) LIMITED,"Works - Construction, Repair & Maintenance",EARLY HELP AND SCHOOLS,MIDDLETON APPRENTICESHIP PROJECT,500.00
Rochdale BC,03/01/2014,D K TRAVEL,Human Resources,ECONOMY AND ENVIRONMENT,EDUCATION HOME TO SCHOOL,"2,862.00"
Rochdale BC,02/01/2014,D W TAYLOR                           (S),Unclassifiable,PHYSICAL DIS & OLDER PEOPLE,DISABLED FACILITIES GRANT,"3,545.00"
Rochdale BC,16/01/2014,D W TAYLOR                           (S),Unclassifiable,PHYSICAL DIS & OLDER PEOPLE,DISABLED FACILITIES GRANT,"3,294.00"
Rochdale BC,30/12/2013,D W TAYLOR                           (S),Unclassifiable,PHYSICAL DIS & OLDER PEOPLE,DISABLED FACILITIES GRANT,"4,644.00"
Rochdale BC,21/01/2014,DAC BEACHCROFT LLP,Legal Services,CORPORATE SERVICES,STANDARDS,702.00
Rochdale BC,06/01/2014,DAISY CHAINS PRIVATE NURSERY,Financial Services,EARLY HELP AND SCHOOLS,FREE NURSERY PLACES 2 YEAR OLDS,"2,450.25"
Rochdale BC,06/01/2014,DAISY CHAINS PRIVATE NURSERY,Financial Services,EARLY HELP AND SCHOOLS,NURSERY EDUCATION GRANT  3YR OLDS,"1,767.15"
Rochdale BC,16/01/2014,DAISY COMMUNICATIONS,Information Communication Technology,CORPORATE SERVICES,THIRD PARTY CONTRACTS,"1,941.93"
Rochdale BC,30/01/2014,DALE INDUSTRIAL SERVICES LIMITED,Public Transport,ECONOMY AND ENVIRONMENT,EDUCATION HOME TO SCHOOL,"14,792.00"
Rochdale BC,27/01/2014,DAVID PICKUP,Unclassifiable,ECONOMY AND ENVIRONMENT,TRADING STANDARDS GENERAL,600.00
Rochdale BC,13/01/2014,DB ROCHDALE LTD,Unclassifiable,LEARNING DIS & MENTAL HEALTH,GENERAL,852.50
Rochdale BC,20/01/2014,DEBONAIR LANGUAGES LTD,Human Resources,CHILDREN�S SOCIAL CARE,ACCESS AND SUPPORT PREVENTIVE,"1,342.90"
Rochdale BC,20/01/2014,DEBONAIR LANGUAGES LTD,Human Resources,CHILDREN�S SOCIAL CARE,ACCESS AND SUPPORT PREVENTIVE,563.00
Rochdale BC,01/01/2014,DEEPLISH COMMUNITY CENTRE,Financial Services,CORPORATE SERVICES,DEEPLISH COMMUNITY CENTRE,"10,800.00"
Rochdale BC,30/01/2014,DELL COMPUTER CORPORATION LIMITED,"Works - Construction, Repair & Maintenance",CORPORATE SERVICES,REFRESH PROGRAMME,"4,246.50"
Rochdale BC,31/01/2014,DELL COMPUTER CORPORATION LIMITED,"Works - Construction, Repair & Maintenance",CORPORATE SERVICES,REFRESH PROGRAMME,"2,247.51"
Rochdale BC,01/01/2014,DEMESNE COMMUNITY ASSOCIATION,Financial Services,CORPORATE SERVICES,DEMESNE COMMUNITY CENTRE,"10,100.00"
Rochdale BC,09/01/2014,DEPAUL TRUST,Social Community Care Supplies & Services,CHILDREN�S SOCIAL CARE,YOUNG PEOPLES SUPPORT TEAM,"3,096.00"
Rochdale BC,09/01/2014,DEPAUL TRUST,Social Community Care Supplies & Services,CHILDREN�S SOCIAL CARE,YOUNG PEOPLES SUPPORT TEAM,"2,211.43"
Rochdale BC,09/01/2014,DEPAUL TRUST,Social Community Care Supplies & Services,CHILDREN�S SOCIAL CARE,YOUNG PEOPLES SUPPORT TEAM,"2,260.03"
Rochdale BC,09/01/2014,DEPAUL TRUST,Social Community Care Supplies & Services,CHILDREN�S SOCIAL CARE,YPST ASYLUM SEEKERS (NASS) - OVER 18,860.00
Rochdale BC,09/01/2014,DEPAUL TRUST,Social Community Care Supplies & Services,CHILDREN�S SOCIAL CARE,YPST SUPPORTING PEOPLE FUNDING,"3,440.00"
Rochdale BC,06/01/2014,DERBY STREET NURSERY UNIT,Financial Services,EARLY HELP AND SCHOOLS,FREE NURSERY PLACES 2 YEAR OLDS,"1,960.20"
Rochdale BC,16/01/2014,DICK LEIGH,Horticultural,ECONOMY AND ENVIRONMENT,COUNTRYSIDE OPERATIONS,773.89
Rochdale BC,31/01/2014,DIOCESE OF SALFORD (DFC),Financial Services,EARLY HELP AND SCHOOLS,RC DIOCESE - PLACE PLANNING,"2,846.62"
Rochdale BC,03/01/2014,DIRECT HEALTH HOMECARE LIMITED,Social Community Care Supplies & Services,PHYSICAL DIS & OLDER PEOPLE,OLDER PEOPLES AGENCY PROVISION,"6,054.07"
Rochdale BC,10/01/2014,DIRECT HEALTH HOMECARE LIMITED,Social Community Care Supplies & Services,PHYSICAL DIS & OLDER PEOPLE,OLDER PEOPLES AGENCY PROVISION,"5,021.21"
Rochdale BC,16/01/2014,DIRECT HEALTH HOMECARE LIMITED,Social Community Care Supplies & Services,PHYSICAL DIS & OLDER PEOPLE,OLDER PEOPLES AGENCY PROVISION,"5,188.48"
Rochdale BC,24/01/2014,DIRECT HEALTH HOMECARE LIMITED,Social Community Care Supplies & Services,PHYSICAL DIS & OLDER PEOPLE,OLDER PEOPLES AGENCY PROVISION,"5,577.83"
Rochdale BC,31/01/2014,DIRECT HEALTH HOMECARE LIMITED,Social Community Care Supplies & Services,PHYSICAL DIS & OLDER PEOPLE,OLDER PEOPLES AGENCY PROVISION,"5,591.03"
Rochdale BC,07/01/2014,DISCLOSURE & BARRING SERVICE,Public Bodies,ECONOMY AND ENVIRONMENT,REG LIC  GENERAL,"2,024.00"
Rochdale BC,06/01/2014,DR A PADWELL,Healthcare,CORPORATE SERVICES,CORONERS SERVICE GENERAL,"3,337.45"
Rochdale BC,29/01/2014,DR A PADWELL,Healthcare,CORPORATE SERVICES,CORONERS SERVICE GENERAL,"1,320.70"
Rochdale BC,07/01/2014,DR A PAIVA CORREIA,Healthcare,CORPORATE SERVICES,CORONERS SERVICE GENERAL,850.50
Rochdale BC,22/01/2014,DR A S R MCCALLUM,Healthcare,CORPORATE SERVICES,LOCAL ENHANCED SERVICES - LES,"5,596.25"
Rochdale BC,06/01/2014,DR A U OYEGADE,Healthcare,CORPORATE SERVICES,CORONERS SERVICE GENERAL,"4,197.60"
Rochdale BC,29/01/2014,DR ABDUL QUADER GANJIFROCKWALA,Healthcare,CORPORATE SERVICES,CORONERS SERVICE GENERAL,"1,287.00"
Rochdale BC,06/01/2014,DR B BENATAR,Healthcare,CORPORATE SERVICES,CORONERS SERVICE GENERAL,"2,365.40"
Rochdale BC,29/01/2014,DR B BENATAR,Healthcare,CORPORATE SERVICES,CORONERS SERVICE GENERAL,"3,296.10"
Rochdale BC,06/01/2014,DR K BAIDEN-AMISSAH,Healthcare,CORPORATE SERVICES,CORONERS SERVICE GENERAL,"2,437.60"
Rochdale BC,24/01/2014,DR K SINGHAL,Healthcare,CORPORATE SERVICES,CORONERS SERVICE GENERAL,605.40
Rochdale BC,24/01/2014,DR K SINGHAL,Healthcare,CORPORATE SERVICES,CORONERS SERVICE GENERAL,605.40
Rochdale BC,24/01/2014,DR K SINGHAL,Healthcare,CORPORATE SERVICES,CORONERS SERVICE GENERAL,508.60
Rochdale BC,22/01/2014,DR M B TAYLOR,Healthcare,CORPORATE SERVICES,DRUGS & ALCOHOL - SPECIALIST D&A SRVC,"21,250.00"
Rochdale BC,31/01/2014,DR M B TAYLOR,Healthcare,CORPORATE SERVICES,LOCAL ENHANCED SERVICES - LES,"21,250.00"
Rochdale BC,29/01/2014,DR M B TAYLOR,Healthcare,PUBLIC HEALTH,SEXUAL HEALTH SERVICES,"1,020.15"
Rochdale BC,06/01/2014,DR P D LUMB,Healthcare,CORPORATE SERVICES,CORONERS SERVICE GENERAL,833.80
Rochdale BC,06/01/2014,DR P D LUMB,Healthcare,CORPORATE SERVICES,CORONERS SERVICE GENERAL,521.90
Rochdale BC,29/01/2014,DR P D LUMB,Healthcare,CORPORATE SERVICES,CORONERS SERVICE GENERAL,595.90
Rochdale BC,06/01/2014,DR PETER STEWART,Healthcare,CORPORATE SERVICES,CORONERS SERVICE GENERAL,500.00
Rochdale BC,06/01/2014,DR S TITI,Healthcare,CORPORATE SERVICES,CORONERS SERVICE GENERAL,"1,828.20"
Rochdale BC,06/01/2014,DR SADHNA BHATNAGAR,Healthcare,CORPORATE SERVICES,CORONERS SERVICE GENERAL,"1,268.40"
Rochdale BC,06/01/2014,DR V CHARAN,Healthcare,CORPORATE SERVICES,CORONERS SERVICE GENERAL,996.60
Rochdale BC,29/01/2014,DR V CHARAN,Healthcare,CORPORATE SERVICES,CORONERS SERVICE GENERAL,"1,582.00"
Rochdale BC,30/12/2013,DRS KHAN & SALIM,Healthcare,PUBLIC HEALTH,SEXUAL HEALTH SERVICES,594.44
Rochdale BC,30/12/2013,DRS ROTHERY & PARTNERS,Healthcare,PUBLIC HEALTH,SEXUAL HEALTH SERVICES,"2,907.59"
Rochdale BC,30/12/2013,DRUGMART PHARMACY,Healthcare,PUBLIC HEALTH,SEXUAL HEALTH SERVICES,543.28
Rochdale BC,24/01/2014,DTZ DEBENHAM TIE LEUNG LIMITED,Consultancy,ECONOMY AND ENVIRONMENT,TOWN CENTRE EAST FEASIBILITY 51K 07/08,714.50
Rochdale BC,21/01/2014,DYSON INSULATIONS LTD,Vehicle Management,ECONOMY AND ENVIRONMENT,ENERGY EFFICIENCY MEASURE,"10,874.89"
Rochdale BC,21/01/2014,DYSON INSULATIONS LTD,Vehicle Management,ECONOMY AND ENVIRONMENT,ENERGY EFFICIENCY MEASURE,"13,966.17"
Rochdale BC,21/01/2014,DYSON INSULATIONS LTD,Vehicle Management,ECONOMY AND ENVIRONMENT,ENERGY EFFICIENCY MEASURE,"4,624.00"
Rochdale BC,08/01/2014,E ON ENERGY UK LIMITED,"Works - Construction, Repair & Maintenance",ECONOMY AND ENVIRONMENT,TOWN CENTRE EAST FEASIBILITY 51K 07/08,531.74
Rochdale BC,01/01/2014,EARLY BREAK,Social Community Care Supplies & Services,CORPORATE SERVICES,D&A - YP COMMISSIONED,"106,949.25"
Rochdale BC,27/01/2014,EC SAFEGUARDING CONSULTANCY LTD,Consultancy,CHILDREN�S SOCIAL CARE,MANAGEMENT STRUCTURE,750.00
Rochdale BC,27/01/2014,EC SAFEGUARDING CONSULTANCY LTD,Consultancy,CHILDREN�S SOCIAL CARE,MANAGEMENT STRUCTURE,750.00
Rochdale BC,27/01/2014,EC SAFEGUARDING CONSULTANCY LTD,Consultancy,CHILDREN�S SOCIAL CARE,MANAGEMENT STRUCTURE,750.00
Rochdale BC,27/01/2014,EC SAFEGUARDING CONSULTANCY LTD,Consultancy,CHILDREN�S SOCIAL CARE,MANAGEMENT STRUCTURE,"5,545.00"
Rochdale BC,13/01/2014,EDEN CARE (NORTH WEST) LTD,Social Community Care Supplies & Services,EARLY HELP AND SCHOOLS,DISABILITIES RESPITE CARE,661.00
Rochdale BC,13/01/2014,EDEN CARE (NORTH WEST) LTD,Social Community Care Supplies & Services,EARLY HELP AND SCHOOLS,DISABILITIES RESPITE CARE,"1,442.00"
Rochdale BC,13/01/2014,EDEN CARE (NORTH WEST) LTD,Social Community Care Supplies & Services,EARLY HELP AND SCHOOLS,DISABILITIES RESPITE CARE,770.00
Rochdale BC,13/01/2014,EDEN CARE (NORTH WEST) LTD,Social Community Care Supplies & Services,EARLY HELP AND SCHOOLS,DISABILITIES RESPITE CARE,"5,390.00"
Rochdale BC,20/01/2014,EDEN CARE (NORTH WEST) LTD,Social Community Care Supplies & Services,EARLY HELP AND SCHOOLS,DISABILITIES RESPITE CARE,660.00
Rochdale BC,20/01/2014,EDEN CARE (NORTH WEST) LTD,Social Community Care Supplies & Services,EARLY HELP AND SCHOOLS,DISABILITIES RESPITE CARE,"1,540.00"
Rochdale BC,13/01/2014,EDEN CARE (NORTH WEST) LTD,Social Community Care Supplies & Services,EARLY HELP AND SCHOOLS,SHORT BREAKS REVENUE,630.00
Rochdale BC,13/01/2014,EDEN CARE (NORTH WEST) LTD,Social Community Care Supplies & Services,EARLY HELP AND SCHOOLS,SHORT BREAKS REVENUE,630.00
Rochdale BC,13/01/2014,EDEN CARE (NORTH WEST) LTD,Social Community Care Supplies & Services,EARLY HELP AND SCHOOLS,SHORT BREAKS REVENUE,630.00
Rochdale BC,13/01/2014,EDEN CARE (NORTH WEST) LTD,Social Community Care Supplies & Services,EARLY HELP AND SCHOOLS,SHORT BREAKS REVENUE,630.00
Rochdale BC,07/01/2014,EDF ENERGY 1 LIMITED,Vehicle Management,ECONOMY AND ENVIRONMENT,1 RIVERSIDE,"32,309.93"
Rochdale BC,13/01/2014,EDF ENERGY 1 LIMITED,Vehicle Management,ECONOMY AND ENVIRONMENT,1 RIVERSIDE,"31,742.46"
Rochdale BC,02/01/2014,EDF ENERGY 1 LIMITED,Vehicle Management,ECONOMY AND ENVIRONMENT,CEMETERIES GENERAL,836.97
Rochdale BC,02/01/2014,EDF ENERGY 1 LIMITED,Vehicle Management,ECONOMY AND ENVIRONMENT,CEMETERIES GENERAL,717.64
Rochdale BC,16/01/2014,EDF ENERGY 1 LIMITED,Vehicle Management,ECONOMY AND ENVIRONMENT,CEMETERIES GENERAL,767.74
Rochdale BC,20/01/2014,EDF ENERGY 1 LIMITED,Vehicle Management,PROPERTY AND HIGHWAYS,CORPORATE LANDLORD GENERAL,"11,879.47"
Rochdale BC,13/01/2014,EDF ENERGY 1 LIMITED,Vehicle Management,ECONOMY AND ENVIRONMENT,TOWN HALL,"2,479.35"
Rochdale BC,14/01/2014,EDF ENERGY 1 LIMITED,Vehicle Management,CORPORATE SERVICES,WHEATSHEAF LIBRARY,"1,544.04"
Rochdale BC,30/01/2014,EDF ENERGY 1 LIMITED,Vehicle Management,CORPORATE SERVICES,WHEATSHEAF LIBRARY,"1,625.47"
Rochdale BC,06/01/2014,EDU PLAY LIMITED,Social Community Care Supplies & Services,EARLY HELP AND SCHOOLS,FREE NURSERY PLACES 2 YEAR OLDS,980.10
Rochdale BC,06/01/2014,EDU PLAY LIMITED,Social Community Care Supplies & Services,EARLY HELP AND SCHOOLS,NURSERY EDUCATION GRANT  3YR OLDS,"9,365.40"
Rochdale BC,23/01/2014,EJS MARKETING,Facilities & Management Services,ECONOMY AND ENVIRONMENT,BUSINESS SUPPORT (S106 158K),"3,500.00"
Rochdale BC,06/01/2014,ELM STREET PLAYGROUP,Financial Services,EARLY HELP AND SCHOOLS,FREE NURSERY PLACES 2 YEAR OLDS,"1,960.20"
Rochdale BC,06/01/2014,ELM STREET PLAYGROUP,Financial Services,EARLY HELP AND SCHOOLS,NURSERY EDUCATION GRANT  3YR OLDS,"5,793.48"
Rochdale BC,28/01/2014,EMO OIL LIMITED,Vehicle Management,ECONOMY AND ENVIRONMENT,BOWLEE AND GARDEN MAILSHOP,"5,349.60"
Rochdale BC,30/01/2014,EMPLOYEE ADVISORY RESOURCE LTD,Human Resources,CORPORATE SERVICES,MANAGEMENT ADMIN,"3,250.00"
Rochdale BC,10/01/2014,ENERGIZE RECRUITMENT SOLUTIONS LTD,Human Resources,CORPORATE SERVICES,REFRESH PROGRAMME,750.00
Rochdale BC,16/01/2014,ENERGIZE RECRUITMENT SOLUTIONS LTD,Human Resources,CORPORATE SERVICES,REFRESH PROGRAMME,750.00
Rochdale BC,22/01/2014,ENERGIZE RECRUITMENT SOLUTIONS LTD,Human Resources,CORPORATE SERVICES,REFRESH PROGRAMME,750.00
Rochdale BC,30/01/2014,ENERGIZE RECRUITMENT SOLUTIONS LTD,Human Resources,CORPORATE SERVICES,REFRESH PROGRAMME,750.00
Rochdale BC,09/01/2014,ENTERPRISE MANCHESTER,Environmental Services,ECONOMY AND ENVIRONMENT,1 RIVERSIDE,690.74
Rochdale BC,02/01/2014,ENTERPRISE MANCHESTER,Environmental Services,ECONOMY AND ENVIRONMENT,DOMESTIC WASTE,"1,000.06"
Rochdale BC,30/01/2014,ENVIRONMENT AGENCY,Environmental Services,ECONOMY AND ENVIRONMENT,CARBON REDUCTION COMMITMENT,"1,290.00"
Rochdale BC,01/01/2014,ENVIRONMENT AGENCY,Environmental Services,PROPERTY AND HIGHWAYS,FLOOD DEFENCE LEVY,"23,612.50"
Rochdale BC,22/01/2014,F NEEDHAM,Catering,ECONOMY AND ENVIRONMENT,CATERING EDUC & WELFARE EQ (BUDGET408K),"1,657.00"
Rochdale BC,08/01/2014,F NEEDHAM,Catering,PHYSICAL DIS & OLDER PEOPLE,WOODCLOUGH,"5,325.26"
Rochdale BC,27/01/2014,F S MOULT & SON,Building Construction Materials,ECONOMY AND ENVIRONMENT,85 - 93 SOUTH STREET,"1,200.00"
Rochdale BC,02/01/2014,F S MOULT & SON,Building Construction Materials,ECONOMY AND ENVIRONMENT,MISCELLANEOUS ECR,720.75
Rochdale BC,30/01/2014,F W SHERRATT LTD,"Works - Construction, Repair & Maintenance",PROPERTY AND HIGHWAYS,BRIDGES & STRUCTURES TEAM,"1,685.00"
Rochdale BC,30/01/2014,F W SHERRATT LTD,"Works - Construction, Repair & Maintenance",PROPERTY AND HIGHWAYS,BRIDGES & STRUCTURES TEAM,"1,886.50"
Rochdale BC,30/01/2014,F W SHERRATT LTD,"Works - Construction, Repair & Maintenance",PROPERTY AND HIGHWAYS,GATEWAY BARRIER IMPROVEMENTS,"6,906.26"
Rochdale BC,30/01/2014,F W SHERRATT LTD,"Works - Construction, Repair & Maintenance",PROPERTY AND HIGHWAYS,GATEWAY BARRIER IMPROVEMENTS,"6,270.49"
Rochdale BC,30/01/2014,F W SHERRATT LTD,"Works - Construction, Repair & Maintenance",PROPERTY AND HIGHWAYS,GATEWAY BARRIER IMPROVEMENTS,"3,820.00"
Rochdale BC,30/01/2014,F W SHERRATT LTD,"Works - Construction, Repair & Maintenance",PROPERTY AND HIGHWAYS,GATEWAY BARRIER IMPROVEMENTS,"6,830.21"
Rochdale BC,29/01/2014,F W SHERRATT LTD,"Works - Construction, Repair & Maintenance",PROPERTY AND HIGHWAYS,JUBILEE PARK- REPAIRS RETAINING WALL 351,"23,895.43"
Rochdale BC,15/01/2014,FABRIQUE DU METAL LTD,Furniture & Soft Furnishings,FINANCE SERVICES,TECHNICAL SUPPORT,696.35
Rochdale BC,06/01/2014,FAIRYFEET PLAYGROUP,Financial Services,EARLY HELP AND SCHOOLS,FREE NURSERY PLACES 2 YEAR OLDS,"7,350.75"
Rochdale BC,06/01/2014,FAIRYFEET PLAYGROUP,Financial Services,EARLY HELP AND SCHOOLS,NURSERY EDUCATION GRANT  3YR OLDS,"9,034.74"
Rochdale BC,09/01/2014,FAMILY ACTION,Financial Services,LEARNING DIS & MENTAL HEALTH,CARERS COMMISSIONED SERVICES,"2,800.00"
Rochdale BC,09/01/2014,FAMILY ACTION,Financial Services,LEARNING DIS & MENTAL HEALTH,CARERS COMMISSIONED SERVICES,"1,250.00"
Rochdale BC,09/01/2014,FAMILY ACTION,Financial Services,EARLY HELP AND SCHOOLS,PARENT PARTNERSHIP SERVICE,"15,319.36"
Rochdale BC,14/01/2014,FEDERATION OF BURIAL AND CREMATION AUTHORITIES,Cemetery & Crematorium,ECONOMY AND ENVIRONMENT,ALL CREMETORIA,811.80
Rochdale BC,06/01/2014,FIELDHOUSE PRESCHOOL,Social Community Care Supplies & Services,EARLY HELP AND SCHOOLS,FREE NURSERY PLACES 2 YEAR OLDS,"3,920.40"
Rochdale BC,06/01/2014,FIELDHOUSE PRESCHOOL,Social Community Care Supplies & Services,EARLY HELP AND SCHOOLS,NURSERY EDUCATION GRANT  3YR OLDS,"1,259.28"
Rochdale BC,13/01/2014,FIRST RESERVE,Financial Services,LEARNING DIS & MENTAL HEALTH,ADULT PLACEMENT SCHEME,828.64
Rochdale BC,22/01/2014,FIRST STEP ACCOMMODATION,Social Community Care Supplies & Services,CHILDREN�S SOCIAL CARE,EXTERNAL RESIDENTIAL PLACEMENTS,"4,998.00"
Rochdale BC,06/01/2014,FIRST STEPS NURSERY,Financial Services,EARLY HELP AND SCHOOLS,FREE NURSERY PLACES 2 YEAR OLDS,"2,450.25"
Rochdale BC,06/01/2014,FIRST STEPS NURSERY,Financial Services,EARLY HELP AND SCHOOLS,NURSERY EDUCATION GRANT  3YR OLDS,"5,187.42"
Rochdale BC,14/01/2014,FIRST STEPS NURSERY,Financial Services,EARLY HELP AND SCHOOLS,SEN SUPPORT MAINSTREAM  LEA,"1,120.00"
Rochdale BC,09/01/2014,FIRWOOD MANOR PREPARATORY SCHOOL,Financial Services,EARLY HELP AND SCHOOLS,IND SCHOOLS  RESIDENTIAL,"1,342.80"
Rochdale BC,07/01/2014,FISC HEALTHCARE,Social Community Care Supplies & Services,EARLY HELP AND SCHOOLS,CAPITAL EQUIPMENT DISABLED CHILDREN,985.00
Rochdale BC,06/01/2014,FISHERFIELD FARM NURSERY,Financial Services,EARLY HELP AND SCHOOLS,FREE NURSERY PLACES 2 YEAR OLDS,"4,900.50"
Rochdale BC,06/01/2014,FISHERFIELD FARM NURSERY,Financial Services,EARLY HELP AND SCHOOLS,FREE NURSERY PLACES 2 YEAR OLDS,980.10
Rochdale BC,06/01/2014,FISHERFIELD FARM NURSERY,Social Community Care Supplies & Services,EARLY HELP AND SCHOOLS,NURSERY EDUCATION GRANT  3YR OLDS,"8,013.06"
Rochdale BC,06/01/2014,FISHERFIELD FARM NURSERY,Financial Services,EARLY HELP AND SCHOOLS,NURSERY EDUCATION GRANT  3YR OLDS,"14,652.99"
Rochdale BC,06/01/2014,FISHERFIELD FARM NURSERY,Financial Services,EARLY HELP AND SCHOOLS,NURSERY EDUCATION GRANT  3YR OLDS,"8,434.80"
Rochdale BC,06/01/2014,FISHERFIELD FARM NURSERY LTD,Financial Services,EARLY HELP AND SCHOOLS,FREE NURSERY PLACES 2 YEAR OLDS,"2,940.30"
Rochdale BC,06/01/2014,FISHERFIELD FARM NURSERY LTD,Financial Services,EARLY HELP AND SCHOOLS,NURSERY EDUCATION GRANT  3YR OLDS,"6,790.41"
Rochdale BC,02/01/2014,FLETCHER BUILDING SERVICES LIMITED,"Works - Construction, Repair & Maintenance",PHYSICAL DIS & OLDER PEOPLE,DISABLED FACILITIES GRANT,"2,710.00"
Rochdale BC,02/01/2014,FOOTSTEPS A PATH TO CHANGE,Social Community Care Supplies & Services,CHILDREN�S SOCIAL CARE,EXTERNAL RESIDENTIAL PLACEMENTS,"15,500.00"
Rochdale BC,06/01/2014,FORENSICS LTD,Environmental Services,CORPORATE SERVICES,CORONERS SERVICE GENERAL,"3,790.00"
Rochdale BC,06/01/2014,FORENSICS LTD,Environmental Services,CORPORATE SERVICES,CORONERS SERVICE GENERAL,"2,950.00"
Rochdale BC,06/01/2014,FORENSICS LTD,Environmental Services,CORPORATE SERVICES,CORONERS SERVICE GENERAL,"1,825.00"
Rochdale BC,06/01/2014,FORENSICS LTD,Environmental Services,CORPORATE SERVICES,CORONERS SERVICE GENERAL,870.00
Rochdale BC,06/01/2014,FORENSICS LTD,Environmental Services,CORPORATE SERVICES,CORONERS SERVICE GENERAL,"1,405.00"
Rochdale BC,21/01/2014,FOSTER TALK,Financial Services,CHILDREN�S SOCIAL CARE,FOSTERING TEAM,"1,009.70"
Rochdale BC,22/01/2014,FOSTERING NETWORK,Facilities & Management Services,CHILDREN�S SOCIAL CARE,FOSTERING TEAM,"1,288.00"
Rochdale BC,06/01/2014,FRIENDS OF HOLLINGWORTH LAKE,Financial Services,CORPORATE SERVICES,PENNINES CAPITAL,"5,933.00"
Rochdale BC,07/01/2014,FRIENDS OF OLDER PARENT CARERS,Social Community Care Supplies & Services,LEARNING DIS & MENTAL HEALTH,CARERS COMMISSIONED SERVICES,"3,743.16"
Rochdale BC,23/01/2014,G M WASTE DISPOSAL AUTHORITY,Environmental Services,ECONOMY AND ENVIRONMENT,WASTE DISPOSAL LEVY,"1,220,000.00"
Rochdale BC,17/01/2014,G W THEATRE COMPANY LIMITED,Arts & Leisure Services,CHILDREN�S SOCIAL CARE,SAFEGUARDING CHILDREN BOARD,"2,200.00"
Rochdale BC,08/01/2014,GARDINER & THEOBALD LLP,Consultancy,ECONOMY AND ENVIRONMENT,TOWN CENTRE EAST FEASIBILITY 51K 07/08,750.00
Rochdale BC,21/01/2014,GARDINER & THEOBALD LLP,Consultancy,ECONOMY AND ENVIRONMENT,TOWN CENTRE EAST FEASIBILITY 51K 07/08,"1,000.00"
Rochdale BC,24/01/2014,GARDINER & THEOBALD LLP,Consultancy,ECONOMY AND ENVIRONMENT,TOWN CENTRE EAST FEASIBILITY 51K 07/08,750.00
Rochdale BC,07/01/2014,GARNER TOWN PLANNING,Consultancy,ECONOMY AND ENVIRONMENT,DEVELOPMENT MANAGEMENT - PLANNING APPS,"1,818.45"
Rochdale BC,09/01/2014,GATENBY SANDERSON,Consultancy,FINANCE SERVICES,CHIEF EXECUTIVE EXPENSES,"5,971.00"
Rochdale BC,14/01/2014,GATENBY SANDERSON,Consultancy,FINANCE SERVICES,CHIEF EXECUTIVE EXPENSES,879.80
Rochdale BC,14/01/2014,GATENBY SANDERSON,Consultancy,PHYSICAL DIS & OLDER PEOPLE,MANAGEMENT OP & PD,"8,120.00"
Rochdale BC,09/01/2014,GATENBY SANDERSON,Consultancy,CHILDREN�S SOCIAL CARE,MANAGEMENT STRUCTURE,"4,426.00"
Rochdale BC,16/01/2014,GATENBY SANDERSON,Consultancy,CHILDREN�S SOCIAL CARE,MANAGEMENT STRUCTURE,"9,344.00"
Rochdale BC,16/01/2014,GATENBY SANDERSON,Consultancy,CHILDREN�S SOCIAL CARE,MANAGEMENT STRUCTURE,"9,344.00"
Rochdale BC,06/01/2014,GENESIS DAY CARE NURSERY,Financial Services,EARLY HELP AND SCHOOLS,FREE NURSERY PLACES 2 YEAR OLDS,"7,350.75"
Rochdale BC,24/01/2014,GENESIS DAY CARE NURSERY,Financial Services,EARLY HELP AND SCHOOLS,FREE NURSERY PLACES 2 YEAR OLDS,"3,920.40"
Rochdale BC,06/01/2014,GENESIS DAY CARE NURSERY,Financial Services,EARLY HELP AND SCHOOLS,NURSERY EDUCATION GRANT  3YR OLDS,"13,297.88"
Rochdale BC,06/01/2014,GENESIS DAY CARE NURSERY LIMITED,Financial Services,EARLY HELP AND SCHOOLS,FREE NURSERY PLACES 2 YEAR OLDS,"10,781.10"
Rochdale BC,06/01/2014,GENESIS DAY CARE NURSERY LIMITED,Financial Services,EARLY HELP AND SCHOOLS,NURSERY EDUCATION GRANT  3YR OLDS,"15,153.39"
Rochdale BC,01/01/2014,GILLMARK LIMITED,Facilities & Management Services,ECONOMY AND ENVIRONMENT,HEYWOOD MARKET GENERAL,"1,192.50"
Rochdale BC,07/01/2014,GLAISYERS,Legal Services,ECONOMY AND ENVIRONMENT,TOWN CENTRE EAST FEASIBILITY 51K 07/08,"10,700.34"
Rochdale BC,08/01/2014,GLOBE  CONSTRUCTION SERVICES LTD,"Works - Construction, Repair & Maintenance",ECONOMY AND ENVIRONMENT,TOWN CENTRE EAST FEASIBILITY 51K 07/08,"140,222.00"
Rochdale BC,16/01/2014,GM BUSINESS SUPPORT LIMITED,Consultancy,ECONOMY AND ENVIRONMENT,BUSINESS SUPPORT (S106 158K),"10,000.00"
Rochdale BC,15/01/2014,GMCA,Financial Services,ECONOMY AND ENVIRONMENT,GMPTE LEVY,"1,563,100.00"
Rochdale BC,15/01/2014,GRAFFIX SYSTEMS LTD,Consultancy,EARLY HELP AND SCHOOLS,STRONGER FAMILIES PROGRAMME DELIVERY,"5,750.00"
Rochdale BC,15/01/2014,GRANT THORNTON UK LLP,Financial Services,FINANCE SERVICES,CENTRAL FINANCE  SYSTEMS AND ADMIN,"31,390.00"
Rochdale BC,16/01/2014,GRAVITAS RECRUITMENT GROUP,Human Resources,CORPORATE SERVICES,REFRESH PROGRAMME,"1,375.00"
Rochdale BC,16/01/2014,GRAVITAS RECRUITMENT GROUP,Human Resources,CORPORATE SERVICES,REFRESH PROGRAMME,"2,625.00"
Rochdale BC,22/01/2014,GRAVITAS RECRUITMENT GROUP,Human Resources,CORPORATE SERVICES,REFRESH PROGRAMME,"1,875.00"
Rochdale BC,31/01/2014,GRAVITAS RECRUITMENT GROUP,Human Resources,CORPORATE SERVICES,REFRESH PROGRAMME,"1,875.00"
Rochdale BC,03/01/2014,GREAT CARE UK,Social Community Care Supplies & Services,PHYSICAL DIS & OLDER PEOPLE,OLDER PEOPLES AGENCY PROVISION,"2,217.57"
Rochdale BC,10/01/2014,GREAT CARE UK,Social Community Care Supplies & Services,PHYSICAL DIS & OLDER PEOPLE,OLDER PEOPLES AGENCY PROVISION,"2,414.89"
Rochdale BC,16/01/2014,GREAT CARE UK,Social Community Care Supplies & Services,PHYSICAL DIS & OLDER PEOPLE,OLDER PEOPLES AGENCY PROVISION,"1,011.75"
Rochdale BC,24/01/2014,GREAT CARE UK,Social Community Care Supplies & Services,PHYSICAL DIS & OLDER PEOPLE,OLDER PEOPLES AGENCY PROVISION,"2,577.49"
Rochdale BC,31/01/2014,GREAT CARE UK,Social Community Care Supplies & Services,PHYSICAL DIS & OLDER PEOPLE,OLDER PEOPLES AGENCY PROVISION,"2,586.42"
Rochdale BC,24/01/2014,GREATER MANCHESTER BUILDING PRESERVATION TRUST,Financial Services,ECONOMY AND ENVIRONMENT,MIDDLETON TOWNSHIP HERITAGE INITIATIVE,500.00
Rochdale BC,14/01/2014,GREATER MANCHESTER PROBATION  SERVICE TRUST,Custody,PUBLIC HEALTH,PUBLIC HEALTH COMMISSIONING,"4,463.00"
Rochdale BC,30/12/2013,GREEN BROTHERS LTD,Building Construction Materials,ECONOMY AND ENVIRONMENT,LANDSCAPE SERVICES,"2,596.92"
Rochdale BC,01/01/2014,GRIFFIN  DEVELOPMENTS LTD,"Works - Construction, Repair & Maintenance",LEARNING DIS & MENTAL HEALTH,DAY SERVICES MANAGEMENT/ADMIN,"3,049.75"
Rochdale BC,24/01/2014,GROSVENOR FACILITIES MANAGEMENT LTD,"Works - Construction, Repair & Maintenance",EARLY HELP AND SCHOOLS,SCHOOLS BUSINESS UNIT,"1,982.50"
Rochdale BC,13/01/2014,GROUNDWORK LANDSCAPES LIMITED,Horticultural,CORPORATE SERVICES,BURGLARY REDUCTION SCHEME,"1,440.00"
Rochdale BC,07/01/2014,GROUNDWORK LANDSCAPES LIMITED,Horticultural,CORPORATE SERVICES,MIDDLETON MUGA,950.00
Rochdale BC,13/01/2014,GTM ELECTRICAL SERVICES LIMITED,Building Construction Materials,EARLY HELP AND SCHOOLS,BUILDINGS PROGRAMME/URGENT H&S CONTINGEN,546.16
Rochdale BC,31/12/2013,GTM ELECTRICAL SERVICES LIMITED,Building Construction Materials,PROPERTY AND HIGHWAYS,HANSON CLOSE INDUSTRIAL ESTATE,"3,197.84"
Rochdale BC,22/01/2014,GUARDIAN NEWS & MEDIA LTD,Human Resources,LEARNING DIS & MENTAL HEALTH,LD PROVIDER MANAGEMENT & ADMIN,"1,800.00"
Rochdale BC,03/01/2014,H A BURROW,Unclassifiable,ECONOMY AND ENVIRONMENT,EDUCATION HOME TO SCHOOL,676.00
Rochdale BC,03/01/2014,H A BURROW,Unclassifiable,ECONOMY AND ENVIRONMENT,EDUCATION HOME TO SCHOOL,690.00
Rochdale BC,03/01/2014,H A BURROW,Unclassifiable,ECONOMY AND ENVIRONMENT,EDUCATION HOME TO SCHOOL,630.00
Rochdale BC,07/01/2014,H BELL & SONS (ROCHDALE) LTD,Building Construction Materials,EARLY HELP AND SCHOOLS,FEASIBILITY SURVEYS AND OPTION APPRAISAL,"1,741.35"
Rochdale BC,07/01/2014,H BELL & SONS (ROCHDALE) LTD,Building Construction Materials,CORPORATE SERVICES,MIDDLETON LIBRARY REFURB,"36,174.93"
Rochdale BC,21/01/2014,H JENKINSON & CO LTD,Stationery,CORPORATE SERVICES,ROCHDALE CENTRAL LIBRARY,646.49
Rochdale BC,06/01/2014,HALLIDAY JAMES LTD,Social Community Care Supplies & Services,PHYSICAL DIS & OLDER PEOPLE,CARELINE,541.00
Rochdale BC,08/01/2014,HALLIDAY JAMES LTD,Social Community Care Supplies & Services,PHYSICAL DIS & OLDER PEOPLE,CARELINE,534.00
Rochdale BC,13/01/2014,HAMMONDS LLP,Legal Services,ECONOMY AND ENVIRONMENT,TOWN CENTRE EAST FEASIBILITY 51K 07/08,"2,091.54"
Rochdale BC,13/01/2014,HAMMONDS LLP,Legal Services,ECONOMY AND ENVIRONMENT,TOWN CENTRE EAST FEASIBILITY 51K 07/08,"1,303.50"
Rochdale BC,13/01/2014,HAMMONDS LLP,Legal Services,ECONOMY AND ENVIRONMENT,TOWN CENTRE EAST FEASIBILITY 51K 07/08,878.51
Rochdale BC,06/01/2014,HAPPY JACKS CHILDREN DAY NURSERY LTD,Financial Services,EARLY HELP AND SCHOOLS,FREE NURSERY PLACES 2 YEAR OLDS,"1,470.15"
Rochdale BC,06/01/2014,HAPPY JACKS CHILDREN DAY NURSERY LTD,Financial Services,EARLY HELP AND SCHOOLS,NURSERY EDUCATION GRANT  3YR OLDS,"7,120.62"
Rochdale BC,06/01/2014,HAPPYTOTS,Financial Services,EARLY HELP AND SCHOOLS,FREE NURSERY PLACES 2 YEAR OLDS,"9,310.95"
Rochdale BC,06/01/2014,HAPPYTOTS,Financial Services,EARLY HELP AND SCHOOLS,NURSERY EDUCATION GRANT  3YR OLDS,"13,012.65"
Rochdale BC,06/01/2014,HAWARDEN HOUSE PRIVATE NURSERY,Financial Services,EARLY HELP AND SCHOOLS,NURSERY EDUCATION GRANT  3YR OLDS,"1,767.15"
Rochdale BC,23/01/2014,HAYS SOCIAL CARE,Human Resources,CHILDREN�S SOCIAL CARE,ACCESS AND SUPPORT ADMIN,"1,065.43"
Rochdale BC,23/01/2014,HAYS SOCIAL CARE,Human Resources,CHILDREN�S SOCIAL CARE,ACCESS AND SUPPORT ADMIN,"4,154.63"
Rochdale BC,30/12/2013,HAYS SOCIAL CARE,Human Resources,CHILDREN�S SOCIAL CARE,ACCESS AND SUPPORT ADMIN,"1,462.14"
Rochdale BC,22/01/2014,HAYS SOCIAL CARE,Human Resources,CHILDREN�S SOCIAL CARE,ACCESS AND SUPPORT SOCIAL WORK,"11,071.22"
Rochdale BC,23/01/2014,HAYS SOCIAL CARE,Human Resources,CHILDREN�S SOCIAL CARE,ACCESS AND SUPPORT SOCIAL WORK,"20,736.20"
Rochdale BC,23/01/2014,HAYS SOCIAL CARE,Human Resources,CHILDREN�S SOCIAL CARE,ACCESS AND SUPPORT SOCIAL WORK,"45,882.76"
Rochdale BC,29/01/2014,HAYS SOCIAL CARE,Human Resources,CHILDREN�S SOCIAL CARE,ACCESS AND SUPPORT SOCIAL WORK,"24,896.92"
Rochdale BC,30/12/2013,HAYS SOCIAL CARE,Human Resources,CHILDREN�S SOCIAL CARE,ACCESS AND SUPPORT SOCIAL WORK,"19,945.87"
Rochdale BC,22/01/2014,HAYS SOCIAL CARE,Human Resources,CHILDREN�S SOCIAL CARE,ADOPTION PAYMENTS,"1,107.43"
Rochdale BC,23/01/2014,HAYS SOCIAL CARE,Human Resources,CHILDREN�S SOCIAL CARE,ADOPTION PAYMENTS,"1,107.43"
Rochdale BC,23/01/2014,HAYS SOCIAL CARE,Human Resources,CHILDREN�S SOCIAL CARE,ADOPTION PAYMENTS,"2,005.35"
Rochdale BC,29/01/2014,HAYS SOCIAL CARE,Human Resources,CHILDREN�S SOCIAL CARE,ADOPTION PAYMENTS,"1,107.43"
Rochdale BC,30/12/2013,HAYS SOCIAL CARE,Human Resources,CHILDREN�S SOCIAL CARE,ADOPTION PAYMENTS,"1,993.21"
Rochdale BC,22/01/2014,HAYS SOCIAL CARE,Human Resources,CORPORATE SERVICES,ADULT & CHILD CARE SOLICITORS,"1,609.12"
Rochdale BC,23/01/2014,HAYS SOCIAL CARE,Human Resources,CORPORATE SERVICES,ADULT & CHILD CARE SOLICITORS,"1,609.12"
Rochdale BC,23/01/2014,HAYS SOCIAL CARE,Human Resources,CORPORATE SERVICES,ADULT & CHILD CARE SOLICITORS,"3,317.46"
Rochdale BC,29/01/2014,HAYS SOCIAL CARE,Human Resources,CORPORATE SERVICES,ADULT & CHILD CARE SOLICITORS,"1,741.28"
Rochdale BC,30/12/2013,HAYS SOCIAL CARE,Human Resources,CORPORATE SERVICES,ADULT & CHILD CARE SOLICITORS,563.14
Rochdale BC,22/01/2014,HAYS SOCIAL CARE,Human Resources,LEARNING DIS & MENTAL HEALTH,ADULT CARE ADMIN,862.12
Rochdale BC,23/01/2014,HAYS SOCIAL CARE,Human Resources,LEARNING DIS & MENTAL HEALTH,ADULT CARE ADMIN,"1,726.56"
Rochdale BC,29/01/2014,HAYS SOCIAL CARE,Human Resources,LEARNING DIS & MENTAL HEALTH,ADULT CARE ADMIN,"2,586.75"
Rochdale BC,30/12/2013,HAYS SOCIAL CARE,Human Resources,LEARNING DIS & MENTAL HEALTH,ADULT CARE ADMIN,"1,293.17"
Rochdale BC,23/01/2014,HAYS SOCIAL CARE,Human Resources,EARLY HELP AND SCHOOLS,ADVISORY SERVICE  GENERAL,857.29
Rochdale BC,23/01/2014,HAYS SOCIAL CARE,Human Resources,EARLY HELP AND SCHOOLS,ADVISORY SERVICE  GENERAL,"1,445.08"
Rochdale BC,29/01/2014,HAYS SOCIAL CARE,Human Resources,EARLY HELP AND SCHOOLS,ADVISORY SERVICE  GENERAL,795.45
Rochdale BC,22/01/2014,HAYS SOCIAL CARE,Human Resources,PHYSICAL DIS & OLDER PEOPLE,ASSISTIVE TECHNOLOGY,581.24
Rochdale BC,23/01/2014,HAYS SOCIAL CARE,Human Resources,PHYSICAL DIS & OLDER PEOPLE,ASSISTIVE TECHNOLOGY,590.84
Rochdale BC,30/12/2013,HAYS SOCIAL CARE,Human Resources,PHYSICAL DIS & OLDER PEOPLE,ASSISTIVE TECHNOLOGY,"1,042.74"
Rochdale BC,29/01/2014,HAYS SOCIAL CARE,Human Resources,CORPORATE SERVICES,BOROUGHWIDE LIBRARIES,"1,130.72"
Rochdale BC,23/01/2014,HAYS SOCIAL CARE,Human Resources,FINANCE SERVICES,BUSINESS SERVS  INTERNAL AUDIT,509.94
Rochdale BC,23/01/2014,HAYS SOCIAL CARE,Human Resources,FINANCE SERVICES,BUSINESS SERVS  INTERNAL AUDIT,551.07
Rochdale BC,29/01/2014,HAYS SOCIAL CARE,Human Resources,ECONOMY AND ENVIRONMENT,CEMETERIES GENERAL,"4,271.41"
Rochdale BC,30/12/2013,HAYS SOCIAL CARE,Human Resources,ECONOMY AND ENVIRONMENT,CEMETERIES GENERAL,805.86
Rochdale BC,23/01/2014,HAYS SOCIAL CARE,Human Resources,FINANCE SERVICES,CENTRAL FINANCE  SYSTEMS AND ADMIN,701.64
Rochdale BC,23/01/2014,HAYS SOCIAL CARE,Human Resources,CHILDREN�S SOCIAL CARE,CIC ADMINISTRATION,944.07
Rochdale BC,22/01/2014,HAYS SOCIAL CARE,Human Resources,CHILDREN�S SOCIAL CARE,CIC SOCIAL WORK,"4,366.07"
Rochdale BC,23/01/2014,HAYS SOCIAL CARE,Human Resources,CHILDREN�S SOCIAL CARE,CIC SOCIAL WORK,"4,273.82"
Rochdale BC,23/01/2014,HAYS SOCIAL CARE,Human Resources,CHILDREN�S SOCIAL CARE,CIC SOCIAL WORK,"9,815.29"
Rochdale BC,29/01/2014,HAYS SOCIAL CARE,Human Resources,CHILDREN�S SOCIAL CARE,CIC SOCIAL WORK,"5,146.97"
Rochdale BC,30/12/2013,HAYS SOCIAL CARE,Human Resources,CHILDREN�S SOCIAL CARE,CIC SOCIAL WORK,"6,117.98"
Rochdale BC,23/01/2014,HAYS SOCIAL CARE,Human Resources,CORPORATE SERVICES,COMMITTEE SERVICES,821.02
Rochdale BC,29/01/2014,HAYS SOCIAL CARE,Human Resources,CORPORATE SERVICES,COMMITTEE SERVICES,821.03
Rochdale BC,22/01/2014,HAYS SOCIAL CARE,Human Resources,PHYSICAL DIS & OLDER PEOPLE,COMMUNITY OCCUPATIONAL THERAPY &HANDLING,899.43
Rochdale BC,23/01/2014,HAYS SOCIAL CARE,Human Resources,PHYSICAL DIS & OLDER PEOPLE,COMMUNITY OCCUPATIONAL THERAPY &HANDLING,"1,567.63"
Rochdale BC,23/01/2014,HAYS SOCIAL CARE,Human Resources,PHYSICAL DIS & OLDER PEOPLE,COMMUNITY OCCUPATIONAL THERAPY &HANDLING,"1,349.54"
Rochdale BC,30/12/2013,HAYS SOCIAL CARE,Human Resources,PHYSICAL DIS & OLDER PEOPLE,COMMUNITY OCCUPATIONAL THERAPY &HANDLING,"1,074.35"
Rochdale BC,23/01/2014,HAYS SOCIAL CARE,Human Resources,CORPORATE SERVICES,CORONERS SERVICE GENERAL,"1,584.36"
Rochdale BC,22/01/2014,HAYS SOCIAL CARE,Human Resources,FINANCE SERVICES,CORPORATE PROCUREMENT,932.22
Rochdale BC,23/01/2014,HAYS SOCIAL CARE,Human Resources,FINANCE SERVICES,CORPORATE PROCUREMENT,650.16
Rochdale BC,23/01/2014,HAYS SOCIAL CARE,Human Resources,FINANCE SERVICES,CORPORATE PROCUREMENT,"1,967.70"
Rochdale BC,29/01/2014,HAYS SOCIAL CARE,Human Resources,FINANCE SERVICES,CORPORATE PROCUREMENT,663.71
Rochdale BC,30/12/2013,HAYS SOCIAL CARE,Human Resources,FINANCE SERVICES,CORPORATE PROCUREMENT,871.83
Rochdale BC,29/01/2014,HAYS SOCIAL CARE,Human Resources,FINANCE SERVICES,COUNCIL TAX LIABILITY AND RECOVERY,"1,852.12"
Rochdale BC,22/01/2014,HAYS SOCIAL CARE,Human Resources,CHILDREN�S SOCIAL CARE,CP SOCIAL WORK,"11,599.65"
Rochdale BC,23/01/2014,HAYS SOCIAL CARE,Human Resources,CHILDREN�S SOCIAL CARE,CP SOCIAL WORK,"9,607.40"
Rochdale BC,23/01/2014,HAYS SOCIAL CARE,Human Resources,CHILDREN�S SOCIAL CARE,CP SOCIAL WORK,"25,560.28"
Rochdale BC,29/01/2014,HAYS SOCIAL CARE,Human Resources,CHILDREN�S SOCIAL CARE,CP SOCIAL WORK,"8,638.38"
Rochdale BC,30/12/2013,HAYS SOCIAL CARE,Human Resources,CHILDREN�S SOCIAL CARE,CP SOCIAL WORK,"19,171.00"
Rochdale BC,22/01/2014,HAYS SOCIAL CARE,Human Resources,CORPORATE SERVICES,CSE RESOURCES,"4,228.43"
Rochdale BC,23/01/2014,HAYS SOCIAL CARE,Human Resources,CORPORATE SERVICES,CSE RESOURCES,"5,105.59"
Rochdale BC,23/01/2014,HAYS SOCIAL CARE,Human Resources,CORPORATE SERVICES,CSE RESOURCES,"12,675.51"
Rochdale BC,29/01/2014,HAYS SOCIAL CARE,Human Resources,CORPORATE SERVICES,CSE RESOURCES,"7,229.00"
Rochdale BC,30/12/2013,HAYS SOCIAL CARE,Human Resources,CORPORATE SERVICES,CSE RESOURCES,"6,384.71"
Rochdale BC,22/01/2014,HAYS SOCIAL CARE,Human Resources,CORPORATE SERVICES,CUSTOMER ADVOCACY,"2,240.30"
Rochdale BC,23/01/2014,HAYS SOCIAL CARE,Human Resources,CORPORATE SERVICES,CUSTOMER ADVOCACY,"1,066.54"
Rochdale BC,23/01/2014,HAYS SOCIAL CARE,Human Resources,CORPORATE SERVICES,CUSTOMER ADVOCACY,"3,692.26"
Rochdale BC,29/01/2014,HAYS SOCIAL CARE,Human Resources,CORPORATE SERVICES,CUSTOMER ADVOCACY,"1,731.26"
Rochdale BC,30/12/2013,HAYS SOCIAL CARE,Human Resources,CORPORATE SERVICES,CUSTOMER ADVOCACY,"1,099.77"
Rochdale BC,22/01/2014,HAYS SOCIAL CARE,Human Resources,FINANCE SERVICES,DEBT RECOVERY TEAM,"1,732.19"
Rochdale BC,23/01/2014,HAYS SOCIAL CARE,Human Resources,FINANCE SERVICES,DEBT RECOVERY TEAM,"1,799.26"
Rochdale BC,23/01/2014,HAYS SOCIAL CARE,Human Resources,FINANCE SERVICES,DEBT RECOVERY TEAM,"3,390.61"
Rochdale BC,29/01/2014,HAYS SOCIAL CARE,Human Resources,FINANCE SERVICES,DEBT RECOVERY TEAM,"1,849.25"
Rochdale BC,30/12/2013,HAYS SOCIAL CARE,Human Resources,FINANCE SERVICES,DEBT RECOVERY TEAM,"1,707.84"
Rochdale BC,22/01/2014,HAYS SOCIAL CARE,Human Resources,EARLY HELP AND SCHOOLS,DISABILITIES SOCIAL WORK,"6,028.65"
Rochdale BC,23/01/2014,HAYS SOCIAL CARE,Human Resources,EARLY HELP AND SCHOOLS,DISABILITIES SOCIAL WORK,"3,643.32"
Rochdale BC,23/01/2014,HAYS SOCIAL CARE,Human Resources,EARLY HELP AND SCHOOLS,DISABILITIES SOCIAL WORK,"6,553.68"
Rochdale BC,29/01/2014,HAYS SOCIAL CARE,Human Resources,EARLY HELP AND SCHOOLS,DISABILITIES SOCIAL WORK,"3,562.71"
Rochdale BC,30/12/2013,HAYS SOCIAL CARE,Human Resources,EARLY HELP AND SCHOOLS,DISABILITIES SOCIAL WORK,"1,926.25"
Rochdale BC,23/01/2014,HAYS SOCIAL CARE,Human Resources,ECONOMY AND ENVIRONMENT,DOMESTIC WASTE,"24,119.57"
Rochdale BC,29/01/2014,HAYS SOCIAL CARE,Human Resources,ECONOMY AND ENVIRONMENT,DOMESTIC WASTE,"26,722.83"
Rochdale BC,30/12/2013,HAYS SOCIAL CARE,Human Resources,ECONOMY AND ENVIRONMENT,DOMESTIC WASTE,"12,855.73"
Rochdale BC,22/01/2014,HAYS SOCIAL CARE,Human Resources,EARLY HELP AND SCHOOLS,DOWLING STREET OCC THERAPY,807.92
Rochdale BC,23/01/2014,HAYS SOCIAL CARE,Human Resources,EARLY HELP AND SCHOOLS,DOWLING STREET OCC THERAPY,"1,090.66"
Rochdale BC,22/01/2014,HAYS SOCIAL CARE,Human Resources,CORPORATE SERVICES,EDUCATION INFORMATION SYSTEMS TEAM,"1,657.90"
Rochdale BC,23/01/2014,HAYS SOCIAL CARE,Human Resources,CORPORATE SERVICES,EDUCATION INFORMATION SYSTEMS TEAM,731.62
Rochdale BC,23/01/2014,HAYS SOCIAL CARE,Human Resources,CORPORATE SERVICES,EDUCATION INFORMATION SYSTEMS TEAM,"1,794.20"
Rochdale BC,29/01/2014,HAYS SOCIAL CARE,Human Resources,CORPORATE SERVICES,EDUCATION INFORMATION SYSTEMS TEAM,690.30
Rochdale BC,30/12/2013,HAYS SOCIAL CARE,Human Resources,CORPORATE SERVICES,EDUCATION INFORMATION SYSTEMS TEAM,"1,436.25"
Rochdale BC,22/01/2014,HAYS SOCIAL CARE,Human Resources,CHILDREN�S SOCIAL CARE,EMERGENCY DUTY TEAM,"6,367.00"
Rochdale BC,23/01/2014,HAYS SOCIAL CARE,Human Resources,CHILDREN�S SOCIAL CARE,EMERGENCY DUTY TEAM,"6,317.59"
Rochdale BC,23/01/2014,HAYS SOCIAL CARE,Human Resources,CHILDREN�S SOCIAL CARE,EMERGENCY DUTY TEAM,"24,472.30"
Rochdale BC,30/12/2013,HAYS SOCIAL CARE,Human Resources,CHILDREN�S SOCIAL CARE,EMERGENCY DUTY TEAM,"6,528.47"
Rochdale BC,22/01/2014,HAYS SOCIAL CARE,Human Resources,ECONOMY AND ENVIRONMENT,EMPLOYMENTS LINKS,"2,554.90"
Rochdale BC,23/01/2014,HAYS SOCIAL CARE,Human Resources,ECONOMY AND ENVIRONMENT,EMPLOYMENTS LINKS,"1,303.28"
Rochdale BC,23/01/2014,HAYS SOCIAL CARE,Human Resources,ECONOMY AND ENVIRONMENT,EMPLOYMENTS LINKS,"3,271.78"
Rochdale BC,29/01/2014,HAYS SOCIAL CARE,Human Resources,ECONOMY AND ENVIRONMENT,EMPLOYMENTS LINKS,"1,405.54"
Rochdale BC,30/12/2013,HAYS SOCIAL CARE,Human Resources,ECONOMY AND ENVIRONMENT,EMPLOYMENTS LINKS,"2,340.42"
Rochdale BC,22/01/2014,HAYS SOCIAL CARE,Human Resources,ECONOMY AND ENVIRONMENT,EMPTY PROPERTY GRANT,592.39
Rochdale BC,23/01/2014,HAYS SOCIAL CARE,Human Resources,ECONOMY AND ENVIRONMENT,EMPTY PROPERTY GRANT,592.39
Rochdale BC,23/01/2014,HAYS SOCIAL CARE,Human Resources,ECONOMY AND ENVIRONMENT,EMPTY PROPERTY GRANT,"1,207.82"
Rochdale BC,30/12/2013,HAYS SOCIAL CARE,Human Resources,ECONOMY AND ENVIRONMENT,EMPTY PROPERTY GRANT,592.39
Rochdale BC,23/01/2014,HAYS SOCIAL CARE,Human Resources,FINANCE SERVICES,FINANCIAL SUPPORT CROSS SERVICE BUDGETS,674.30
Rochdale BC,23/01/2014,HAYS SOCIAL CARE,Human Resources,ECONOMY AND ENVIRONMENT,FLEET AND TRANSPORT SERVICE M AND SS,979.49
Rochdale BC,23/01/2014,HAYS SOCIAL CARE,Human Resources,ECONOMY AND ENVIRONMENT,FLEET MAINTENANCE,655.63
Rochdale BC,23/01/2014,HAYS SOCIAL CARE,Human Resources,ECONOMY AND ENVIRONMENT,FLEET MAINTENANCE,"1,140.99"
Rochdale BC,29/01/2014,HAYS SOCIAL CARE,Human Resources,ECONOMY AND ENVIRONMENT,FLEET MAINTENANCE,655.63
Rochdale BC,22/01/2014,HAYS SOCIAL CARE,Human Resources,CHILDREN�S SOCIAL CARE,FOSTERING TEAM,"3,112.56"
Rochdale BC,23/01/2014,HAYS SOCIAL CARE,Human Resources,CHILDREN�S SOCIAL CARE,FOSTERING TEAM,"2,084.86"
Rochdale BC,23/01/2014,HAYS SOCIAL CARE,Human Resources,CHILDREN�S SOCIAL CARE,FOSTERING TEAM,"8,952.75"
Rochdale BC,29/01/2014,HAYS SOCIAL CARE,Human Resources,CHILDREN�S SOCIAL CARE,FOSTERING TEAM,"5,544.46"
Rochdale BC,30/12/2013,HAYS SOCIAL CARE,Human Resources,CHILDREN�S SOCIAL CARE,FOSTERING TEAM,"7,005.33"
Rochdale BC,22/01/2014,HAYS SOCIAL CARE,Human Resources,CHILDREN�S SOCIAL CARE,HEAD OF SERVICE,998.80
Rochdale BC,22/01/2014,HAYS SOCIAL CARE,Human Resources,CORPORATE SERVICES,HEAD OF SERVICE,620.46
Rochdale BC,23/01/2014,HAYS SOCIAL CARE,Human Resources,CHILDREN�S SOCIAL CARE,HEAD OF SERVICE,998.80
Rochdale BC,23/01/2014,HAYS SOCIAL CARE,Human Resources,CORPORATE SERVICES,HEAD OF SERVICE,850.26
Rochdale BC,23/01/2014,HAYS SOCIAL CARE,Human Resources,CHILDREN�S SOCIAL CARE,HEAD OF SERVICE,"1,871.92"
Rochdale BC,23/01/2014,HAYS SOCIAL CARE,Human Resources,CORPORATE SERVICES,HEAD OF SERVICE,"1,867.81"
Rochdale BC,29/01/2014,HAYS SOCIAL CARE,Human Resources,CHILDREN�S SOCIAL CARE,HEAD OF SERVICE,"1,025.12"
Rochdale BC,29/01/2014,HAYS SOCIAL CARE,Human Resources,CORPORATE SERVICES,HEAD OF SERVICE,850.26
Rochdale BC,30/12/2013,HAYS SOCIAL CARE,Human Resources,CHILDREN�S SOCIAL CARE,HEAD OF SERVICE,"1,319.60"
Rochdale BC,30/12/2013,HAYS SOCIAL CARE,Human Resources,CORPORATE SERVICES,HEAD OF SERVICE,"1,784.82"
Rochdale BC,22/01/2014,HAYS SOCIAL CARE,Human Resources,PROPERTY AND HIGHWAYS,HIGHWAYS CAPITAL INVESTMENT,576.23
Rochdale BC,23/01/2014,HAYS SOCIAL CARE,Human Resources,PROPERTY AND HIGHWAYS,HIGHWAYS CAPITAL INVESTMENT,595.03
Rochdale BC,23/01/2014,HAYS SOCIAL CARE,Human Resources,PROPERTY AND HIGHWAYS,HIGHWAYS CAPITAL INVESTMENT,869.10
Rochdale BC,29/01/2014,HAYS SOCIAL CARE,Human Resources,PROPERTY AND HIGHWAYS,HIGHWAYS CAPITAL INVESTMENT,586.40
Rochdale BC,30/12/2013,HAYS SOCIAL CARE,Human Resources,PROPERTY AND HIGHWAYS,HIGHWAYS CAPITAL INVESTMENT,605.01
Rochdale BC,22/01/2014,HAYS SOCIAL CARE,Human Resources,CORPORATE SERVICES,LEARNING & DEVELOPMENT,"1,029.79"
Rochdale BC,23/01/2014,HAYS SOCIAL CARE,Human Resources,CORPORATE SERVICES,LEARNING & DEVELOPMENT,988.64
Rochdale BC,23/01/2014,HAYS SOCIAL CARE,Human Resources,CORPORATE SERVICES,LEARNING & DEVELOPMENT,"1,389.44"
Rochdale BC,29/01/2014,HAYS SOCIAL CARE,Human Resources,CORPORATE SERVICES,LEARNING & DEVELOPMENT,988.64
Rochdale BC,30/12/2013,HAYS SOCIAL CARE,Human Resources,CORPORATE SERVICES,LEARNING & DEVELOPMENT,988.64
Rochdale BC,22/01/2014,HAYS SOCIAL CARE,Human Resources,CORPORATE SERVICES,LITIGATION SECTION,"2,397.75"
Rochdale BC,23/01/2014,HAYS SOCIAL CARE,Human Resources,CORPORATE SERVICES,LITIGATION SECTION,"3,585.93"
Rochdale BC,23/01/2014,HAYS SOCIAL CARE,Human Resources,CORPORATE SERVICES,LITIGATION SECTION,"2,101.82"
Rochdale BC,29/01/2014,HAYS SOCIAL CARE,Human Resources,CORPORATE SERVICES,LITIGATION SECTION,"1,720.38"
Rochdale BC,30/12/2013,HAYS SOCIAL CARE,Human Resources,CORPORATE SERVICES,LITIGATION SECTION,"1,151.30"
Rochdale BC,22/01/2014,HAYS SOCIAL CARE,Human Resources,LEARNING DIS & MENTAL HEALTH,MANAGEMENT MH AND LD,"1,289.34"
Rochdale BC,23/01/2014,HAYS SOCIAL CARE,Human Resources,LEARNING DIS & MENTAL HEALTH,MANAGEMENT MH AND LD,"3,099.38"
Rochdale BC,29/01/2014,HAYS SOCIAL CARE,Human Resources,CHILDREN�S SOCIAL CARE,MANAGEMENT STRUCTURE,"1,408.39"
Rochdale BC,23/01/2014,HAYS SOCIAL CARE,Human Resources,ECONOMY AND ENVIRONMENT,MERCURY ABATEMENT,846.53
Rochdale BC,30/12/2013,HAYS SOCIAL CARE,Human Resources,ECONOMY AND ENVIRONMENT,MERCURY ABATEMENT,"2,470.79"
Rochdale BC,23/01/2014,HAYS SOCIAL CARE,Human Resources,ECONOMY AND ENVIRONMENT,MIDD PIF & TOWNSHIP FUNDING STREET SERV,"1,118.46"
Rochdale BC,23/01/2014,HAYS SOCIAL CARE,Human Resources,ECONOMY AND ENVIRONMENT,MIDD PIF & TOWNSHIP FUNDING STREET SERV,"1,485.18"
Rochdale BC,30/12/2013,HAYS SOCIAL CARE,Human Resources,ECONOMY AND ENVIRONMENT,MIDD PIF & TOWNSHIP FUNDING STREET SERV,"1,662.74"
Rochdale BC,22/01/2014,HAYS SOCIAL CARE,Human Resources,PHYSICAL DIS & OLDER PEOPLE,NHS DELAYED TRANSFER,792.16
Rochdale BC,23/01/2014,HAYS SOCIAL CARE,Human Resources,PHYSICAL DIS & OLDER PEOPLE,NHS DELAYED TRANSFER,716.84
Rochdale BC,23/01/2014,HAYS SOCIAL CARE,Human Resources,PHYSICAL DIS & OLDER PEOPLE,NHS DELAYED TRANSFER,"1,845.49"
Rochdale BC,29/01/2014,HAYS SOCIAL CARE,Human Resources,PHYSICAL DIS & OLDER PEOPLE,NHS DELAYED TRANSFER,762.94
Rochdale BC,22/01/2014,HAYS SOCIAL CARE,Human Resources,CHILDREN�S SOCIAL CARE,OTHER CWDC FUNDS,"2,489.12"
Rochdale BC,23/01/2014,HAYS SOCIAL CARE,Human Resources,CHILDREN�S SOCIAL CARE,OTHER CWDC FUNDS,"4,282.43"
Rochdale BC,23/01/2014,HAYS SOCIAL CARE,Human Resources,CHILDREN�S SOCIAL CARE,OTHER CWDC FUNDS,"9,313.34"
Rochdale BC,29/01/2014,HAYS SOCIAL CARE,Human Resources,CHILDREN�S SOCIAL CARE,OTHER CWDC FUNDS,"6,990.57"
Rochdale BC,30/12/2013,HAYS SOCIAL CARE,Human Resources,CHILDREN�S SOCIAL CARE,OTHER CWDC FUNDS,"2,481.12"
Rochdale BC,23/01/2014,HAYS SOCIAL CARE,Human Resources,ECONOMY AND ENVIRONMENT,PENN PIF & TOWNSHIP FUNDING FOR STREETS,723.52
Rochdale BC,23/01/2014,HAYS SOCIAL CARE,Human Resources,ECONOMY AND ENVIRONMENT,PENN PIF & TOWNSHIP FUNDING FOR STREETS,"4,801.62"
Rochdale BC,30/12/2013,HAYS SOCIAL CARE,Human Resources,ECONOMY AND ENVIRONMENT,PENN PIF & TOWNSHIP FUNDING FOR STREETS,"2,038.96"
Rochdale BC,30/12/2013,HAYS SOCIAL CARE,Human Resources,CORPORATE SERVICES,PR AND MARKETING,"2,455.73"
Rochdale BC,22/01/2014,HAYS SOCIAL CARE,Human Resources,FINANCE SERVICES,PR MEDIA AND MARKETING,"6,503.64"
Rochdale BC,23/01/2014,HAYS SOCIAL CARE,Human Resources,FINANCE SERVICES,PR MEDIA AND MARKETING,"5,461.25"
Rochdale BC,23/01/2014,HAYS SOCIAL CARE,Human Resources,FINANCE SERVICES,PR MEDIA AND MARKETING,"12,179.01"
Rochdale BC,29/01/2014,HAYS SOCIAL CARE,Human Resources,FINANCE SERVICES,PR MEDIA AND MARKETING,"3,197.50"
Rochdale BC,30/12/2013,HAYS SOCIAL CARE,Human Resources,FINANCE SERVICES,PR MEDIA AND MARKETING,"10,505.95"
Rochdale BC,22/01/2014,HAYS SOCIAL CARE,Human Resources,PROPERTY AND HIGHWAYS,PROJECT TEAM,"2,331.29"
Rochdale BC,23/01/2014,HAYS SOCIAL CARE,Human Resources,PROPERTY AND HIGHWAYS,PROJECT TEAM,"3,816.16"
Rochdale BC,23/01/2014,HAYS SOCIAL CARE,Human Resources,PROPERTY AND HIGHWAYS,PROJECT TEAM,"6,230.97"
Rochdale BC,29/01/2014,HAYS SOCIAL CARE,Human Resources,PROPERTY AND HIGHWAYS,PROJECT TEAM,"1,328.82"
Rochdale BC,30/12/2013,HAYS SOCIAL CARE,Human Resources,PROPERTY AND HIGHWAYS,PROJECT TEAM,"3,285.19"
Rochdale BC,22/01/2014,HAYS SOCIAL CARE,Human Resources,CORPORATE SERVICES,REFRESH PROGRAMME,"12,767.48"
Rochdale BC,23/01/2014,HAYS SOCIAL CARE,Human Resources,CORPORATE SERVICES,REFRESH PROGRAMME,"8,537.80"
Rochdale BC,23/01/2014,HAYS SOCIAL CARE,Human Resources,CORPORATE SERVICES,REFRESH PROGRAMME,"12,894.84"
Rochdale BC,29/01/2014,HAYS SOCIAL CARE,Human Resources,CORPORATE SERVICES,REFRESH PROGRAMME,"10,231.12"
Rochdale BC,30/12/2013,HAYS SOCIAL CARE,Human Resources,CORPORATE SERVICES,REFRESH PROGRAMME,"2,681.31"
Rochdale BC,23/01/2014,HAYS SOCIAL CARE,Human Resources,CORPORATE SERVICES,REG ELECTORS GENERAL,537.24
Rochdale BC,23/01/2014,HAYS SOCIAL CARE,Human Resources,ECONOMY AND ENVIRONMENT,REG LIC  GENERAL,568.20
Rochdale BC,23/01/2014,HAYS SOCIAL CARE,Human Resources,CORPORATE SERVICES,REGISTRATIONS GENERAL,781.44
Rochdale BC,22/01/2014,HAYS SOCIAL CARE,Human Resources,CHILDREN�S SOCIAL CARE,REMODELLING SOCIAL WORK,"1,184.04"
Rochdale BC,23/01/2014,HAYS SOCIAL CARE,Human Resources,CHILDREN�S SOCIAL CARE,REMODELLING SOCIAL WORK,"5,797.31"
Rochdale BC,23/01/2014,HAYS SOCIAL CARE,Human Resources,CHILDREN�S SOCIAL CARE,REMODELLING SOCIAL WORK,"15,812.63"
Rochdale BC,29/01/2014,HAYS SOCIAL CARE,Human Resources,CHILDREN�S SOCIAL CARE,REMODELLING SOCIAL WORK,"5,787.98"
Rochdale BC,30/12/2013,HAYS SOCIAL CARE,Human Resources,CHILDREN�S SOCIAL CARE,REMODELLING SOCIAL WORK,"6,800.46"
Rochdale BC,23/01/2014,HAYS SOCIAL CARE,Human Resources,ECONOMY AND ENVIRONMENT,ROCH PIF & TOWNSHIP FUNDING FOR STREETS,723.52
Rochdale BC,23/01/2014,HAYS SOCIAL CARE,Human Resources,ECONOMY AND ENVIRONMENT,ROCH PIF & TOWNSHIP FUNDING FOR STREETS,"1,196.80"
Rochdale BC,30/12/2013,HAYS SOCIAL CARE,Human Resources,ECONOMY AND ENVIRONMENT,ROCH PIF & TOWNSHIP FUNDING FOR STREETS,"1,422.56"
Rochdale BC,29/01/2014,HAYS SOCIAL CARE,Human Resources,CHILDREN�S SOCIAL CARE,RUGBY ROAD,614.00
Rochdale BC,22/01/2014,HAYS SOCIAL CARE,Human Resources,CHILDREN�S SOCIAL CARE,SAFEGUARDING CHILDREN BOARD,746.32
Rochdale BC,23/01/2014,HAYS SOCIAL CARE,Human Resources,CHILDREN�S SOCIAL CARE,SAFEGUARDING CHILDREN BOARD,597.48
Rochdale BC,23/01/2014,HAYS SOCIAL CARE,Human Resources,CHILDREN�S SOCIAL CARE,SAFEGUARDING CHILDREN BOARD,768.22
Rochdale BC,30/12/2013,HAYS SOCIAL CARE,Human Resources,CHILDREN�S SOCIAL CARE,SAFEGUARDING CHILDREN BOARD,580.38
Rochdale BC,22/01/2014,HAYS SOCIAL CARE,Human Resources,CHILDREN�S SOCIAL CARE,SAFEGUARDING CHILDREN UNIT,"6,033.33"
Rochdale BC,23/01/2014,HAYS SOCIAL CARE,Human Resources,CHILDREN�S SOCIAL CARE,SAFEGUARDING CHILDREN UNIT,"6,108.31"
Rochdale BC,23/01/2014,HAYS SOCIAL CARE,Human Resources,CHILDREN�S SOCIAL CARE,SAFEGUARDING CHILDREN UNIT,"14,257.39"
Rochdale BC,29/01/2014,HAYS SOCIAL CARE,Human Resources,CHILDREN�S SOCIAL CARE,SAFEGUARDING CHILDREN UNIT,"5,494.38"
Rochdale BC,30/12/2013,HAYS SOCIAL CARE,Human Resources,CHILDREN�S SOCIAL CARE,SAFEGUARDING CHILDREN UNIT,"6,140.78"
Rochdale BC,29/01/2014,HAYS SOCIAL CARE,Human Resources,CORPORATE SERVICES,SCRUTINY & PERFORMANCE,665.15
Rochdale BC,22/01/2014,HAYS SOCIAL CARE,Human Resources,EARLY HELP AND SCHOOLS,STRONGER FAMILIES PROGRAMME DELIVERY,623.01
Rochdale BC,23/01/2014,HAYS SOCIAL CARE,Human Resources,EARLY HELP AND SCHOOLS,STRONGER FAMILIES PROGRAMME DELIVERY,623.01
Rochdale BC,23/01/2014,HAYS SOCIAL CARE,Human Resources,EARLY HELP AND SCHOOLS,STRONGER FAMILIES PROGRAMME DELIVERY,"1,374.27"
Rochdale BC,29/01/2014,HAYS SOCIAL CARE,Human Resources,EARLY HELP AND SCHOOLS,STRONGER FAMILIES PROGRAMME DELIVERY,628.04
Rochdale BC,30/12/2013,HAYS SOCIAL CARE,Human Resources,EARLY HELP AND SCHOOLS,STRONGER FAMILIES PROGRAMME DELIVERY,679.11
Rochdale BC,22/01/2014,HAYS SOCIAL CARE,Human Resources,PROPERTY AND HIGHWAYS,TECHNICAL TEAM,"3,628.44"
Rochdale BC,23/01/2014,HAYS SOCIAL CARE,Human Resources,PROPERTY AND HIGHWAYS,TECHNICAL TEAM,"1,444.56"
Rochdale BC,23/01/2014,HAYS SOCIAL CARE,Human Resources,PROPERTY AND HIGHWAYS,TECHNICAL TEAM,"4,559.83"
Rochdale BC,29/01/2014,HAYS SOCIAL CARE,Human Resources,PROPERTY AND HIGHWAYS,TECHNICAL TEAM,"4,114.04"
Rochdale BC,30/12/2013,HAYS SOCIAL CARE,Human Resources,PROPERTY AND HIGHWAYS,TECHNICAL TEAM,"2,424.55"
Rochdale BC,29/01/2014,HAYS SOCIAL CARE,Human Resources,PHYSICAL DIS & OLDER PEOPLE,TUDOR COURT REHAB UNIT,"2,720.15"
Rochdale BC,20/01/2014,HEALEY CARE LTD,Social Community Care Supplies & Services,LEARNING DIS & MENTAL HEALTH,LD FORUM - PERSONAL BUDGETS,"4,350.00"
Rochdale BC,20/01/2014,HEALEY CARE LTD,Social Community Care Supplies & Services,LEARNING DIS & MENTAL HEALTH,LD FORUM - PERSONAL BUDGETS,646.20
Rochdale BC,29/01/2014,HEALEY CARE LTD,Social Community Care Supplies & Services,LEARNING DIS & MENTAL HEALTH,LD FORUM - PERSONAL BUDGETS,"4,495.00"
Rochdale BC,30/12/2013,HEALEY SURGERY,Healthcare,PUBLIC HEALTH,SEXUAL HEALTH SERVICES,"3,893.52"
Rochdale BC,29/01/2014,HENRY ALTY LIMITED,Information Communication Technology,ECONOMY AND ENVIRONMENT,BOWLEE AND GARDEN MAILSHOP,"2,733.32"
Rochdale BC,07/01/2014,HERITAGE ROOFING AND MAINTENANCE,Building Construction Materials,PROPERTY AND HIGHWAYS,BUSINESS SUPPORT TEAM,"2,286.62"
Rochdale BC,06/01/2014,HERITAGE ROOFING AND MAINTENANCE,Building Construction Materials,PROPERTY AND HIGHWAYS,CORPORATE LANDLORD MANAGEMENT,"2,286.62"
Rochdale BC,31/01/2014,HERITAGE TRUST FOR THE NORTH WEST,Consultancy,ECONOMY AND ENVIRONMENT,TONGE HALL FIRE DAMAGE - ENG HERITAGE,"14,298.00"
Rochdale BC,27/01/2014,HEYBROOK PRIMARY SCHOOL,Financial Services,EARLY HELP AND SCHOOLS,SCHOOL DIRECT TRAINING,"12,727.27"
Rochdale BC,01/01/2014,HIGH LEVEL (NORTHERN) TRUST,Social Community Care Supplies & Services,CORPORATE SERVICES,DRUGS & ALCOHOL - SPECIALIST D&A SRVC,"50,102.00"
Rochdale BC,07/01/2014,HIGHWAY SURVEYORS LTD,Consultancy,PROPERTY AND HIGHWAYS,BWIDE VAR STREETS FW/CW SURVEYS,"16,054.90"
Rochdale BC,20/01/2014,HILLSIDE PRINTING SERVICES LIMITED,Facilities & Management Services,ECONOMY AND ENVIRONMENT,TCCP RUNNING COSTS,840.00
Rochdale BC,22/01/2014,HOLLINGWORTH ACADEMY,Financial Services,EARLY HELP AND SCHOOLS,HOLLINGWORTH PFI,"53,486.85"
Rochdale BC,22/01/2014,HOLLINGWORTH ACADEMY,Financial Services,EARLY HELP AND SCHOOLS,LOOKED AFTER CHILDREN PUPIL PREMIUM,"6,300.00"
Rochdale BC,08/01/2014,HOLLINGWORTH ACADEMY,Financial Services,EARLY HELP AND SCHOOLS,SEN SUPPORT MAINSTREAM  LEA,"18,055.71"
Rochdale BC,21/01/2014,HOLLINGWORTH ACADEMY,Financial Services,EARLY HELP AND SCHOOLS,SEN SUPPORT MAINSTREAM  LEA,"4,946.77"
Rochdale BC,06/01/2014,HOLLINS NURSERY CIC,Financial Services,EARLY HELP AND SCHOOLS,NURSERY EDUCATION GRANT  3YR OLDS,"10,156.50"
Rochdale BC,03/01/2014,HOMECARE SUPPORT,Social Community Care Supplies & Services,PHYSICAL DIS & OLDER PEOPLE,OLDER PEOPLES AGENCY PROVISION,"5,449.13"
Rochdale BC,10/01/2014,HOMECARE SUPPORT,Social Community Care Supplies & Services,PHYSICAL DIS & OLDER PEOPLE,OLDER PEOPLES AGENCY PROVISION,"4,473.11"
Rochdale BC,16/01/2014,HOMECARE SUPPORT,Social Community Care Supplies & Services,PHYSICAL DIS & OLDER PEOPLE,OLDER PEOPLES AGENCY PROVISION,"4,746.75"
Rochdale BC,24/01/2014,HOMECARE SUPPORT,Social Community Care Supplies & Services,PHYSICAL DIS & OLDER PEOPLE,OLDER PEOPLES AGENCY PROVISION,"5,456.03"
Rochdale BC,31/01/2014,HOMECARE SUPPORT,Social Community Care Supplies & Services,PHYSICAL DIS & OLDER PEOPLE,OLDER PEOPLES AGENCY PROVISION,"5,205.94"
Rochdale BC,31/01/2014,HOME-START ROCHDALE BOROUGH,Social Community Care Supplies & Services,EARLY HELP AND SCHOOLS,SUPPORT FOR FAMILIES,"10,000.00"
Rochdale BC,22/01/2014,HOPWOOD HALL COLLEGE,Facilities & Management Services,EARLY HELP AND SCHOOLS,GENERAL SURE START TRAINING,"1,441.00"
Rochdale BC,15/01/2014,HOPWOOD HALL COLLEGE,Facilities & Management Services,EARLY HELP AND SCHOOLS,GRADUATE LEADER FUND,650.00
Rochdale BC,06/01/2014,HOPWOOD PARK PLAYGROUP,Financial Services,EARLY HELP AND SCHOOLS,FREE NURSERY PLACES 2 YEAR OLDS,"1,960.20"
Rochdale BC,06/01/2014,HOPWOOD PARK PLAYGROUP,Financial Services,EARLY HELP AND SCHOOLS,NURSERY EDUCATION GRANT  3YR OLDS,"5,821.20"
Rochdale BC,06/01/2014,HOWARD STREET NURSERY,Financial Services,EARLY HELP AND SCHOOLS,FREE NURSERY PLACES 2 YEAR OLDS,"7,350.75"
Rochdale BC,24/01/2014,HOWARD STREET NURSERY,Financial Services,EARLY HELP AND SCHOOLS,FREE NURSERY PLACES 2 YEAR OLDS,"2,895.75"
Rochdale BC,06/01/2014,HOWARD STREET NURSERY,Financial Services,EARLY HELP AND SCHOOLS,NURSERY EDUCATION GRANT  3YR OLDS,"3,109.18"
Rochdale BC,06/01/2014,IAN FARMER ASSOCIATES,Consultancy,ECONOMY AND ENVIRONMENT,NEW CEMETERY (ROCHDALE),"1,734.50"
Rochdale BC,20/01/2014,IMPROVEMENT & DEVELOPMENT AGENCY,Consultancy,CHILDREN�S SOCIAL CARE,CHILDREN'S WORKFORCE DEVELOPMENT,"20,000.00"
Rochdale BC,08/01/2014,INDEPENDENT HOME CARE SERVICES,Social Community Care Supplies & Services,PHYSICAL DIS & OLDER PEOPLE,CENTRAL FORUM PHYS DIS,"1,203.30"
Rochdale BC,08/01/2014,INDEPENDENT HOME CARE SERVICES,Social Community Care Supplies & Services,PHYSICAL DIS & OLDER PEOPLE,CENTRAL FORUM PHYS DIS,"1,428.63"
Rochdale BC,08/01/2014,INDEPENDENT HOME CARE SERVICES,Social Community Care Supplies & Services,PHYSICAL DIS & OLDER PEOPLE,CENTRAL FORUM PHYS DIS,"1,379.91"
Rochdale BC,08/01/2014,INDEPENDENT HOME CARE SERVICES,Social Community Care Supplies & Services,PHYSICAL DIS & OLDER PEOPLE,CENTRAL FORUM PHYS DIS,"1,203.30"
Rochdale BC,14/01/2014,INDEPENDENT HOME CARE SERVICES,Social Community Care Supplies & Services,PHYSICAL DIS & OLDER PEOPLE,CENTRAL FORUM PHYS DIS,"1,203.30"
Rochdale BC,14/01/2014,INDEPENDENT HOME CARE SERVICES,Social Community Care Supplies & Services,PHYSICAL DIS & OLDER PEOPLE,CENTRAL FORUM PHYS DIS,"1,166.76"
Rochdale BC,14/01/2014,INDEPENDENT HOME CARE SERVICES,Social Community Care Supplies & Services,PHYSICAL DIS & OLDER PEOPLE,CENTRAL FORUM PHYS DIS,"1,410.36"
Rochdale BC,29/01/2014,INDEPENDENT HOME CARE SERVICES,Social Community Care Supplies & Services,PHYSICAL DIS & OLDER PEOPLE,CENTRAL FORUM PHYS DIS,"1,203.30"
Rochdale BC,03/01/2014,INDEPENDENT HOME CARE SERVICES,Social Community Care Supplies & Services,PHYSICAL DIS & OLDER PEOPLE,OLDER PEOPLES AGENCY PROVISION,"2,295.12"
Rochdale BC,10/01/2014,INDEPENDENT HOME CARE SERVICES,Social Community Care Supplies & Services,PHYSICAL DIS & OLDER PEOPLE,OLDER PEOPLES AGENCY PROVISION,"1,989.60"
Rochdale BC,16/01/2014,INDEPENDENT HOME CARE SERVICES,Social Community Care Supplies & Services,PHYSICAL DIS & OLDER PEOPLE,OLDER PEOPLES AGENCY PROVISION,"2,260.81"
Rochdale BC,24/01/2014,INDEPENDENT HOME CARE SERVICES,Social Community Care Supplies & Services,PHYSICAL DIS & OLDER PEOPLE,OLDER PEOPLES AGENCY PROVISION,"2,498.12"
Rochdale BC,31/01/2014,INDEPENDENT HOME CARE SERVICES,Social Community Care Supplies & Services,PHYSICAL DIS & OLDER PEOPLE,OLDER PEOPLES AGENCY PROVISION,"2,461.98"
Rochdale BC,06/01/2014,INENCO GROUP LTD TA NIFES CONSULTING,Consultancy,ECONOMY AND ENVIRONMENT,MERCURY ABATEMENT,"2,500.00"
Rochdale BC,07/01/2014,INSPIREDSPACES ROCHDALE LTD,"Works - Construction, Repair & Maintenance",EARLY HELP AND SCHOOLS,BSF ICT CONTRACT,754.92
Rochdale BC,07/01/2014,INSPIREDSPACES ROCHDALE LTD,"Works - Construction, Repair & Maintenance",EARLY HELP AND SCHOOLS,BSF ICT CONTRACT,618.08
Rochdale BC,07/01/2014,INSPIREDSPACES ROCHDALE LTD,"Works - Construction, Repair & Maintenance",EARLY HELP AND SCHOOLS,BSF ICT CONTRACT,"10,108.00"
Rochdale BC,07/01/2014,INSPIREDSPACES ROCHDALE LTD,"Works - Construction, Repair & Maintenance",EARLY HELP AND SCHOOLS,BSF ICT CONTRACT,628.09
Rochdale BC,07/01/2014,INSPIREDSPACES ROCHDALE LTD,"Works - Construction, Repair & Maintenance",EARLY HELP AND SCHOOLS,BSF ICT CONTRACT,613.11
Rochdale BC,16/01/2014,INSPIREDSPACES ROCHDALE LTD,"Works - Construction, Repair & Maintenance",EARLY HELP AND SCHOOLS,BSF ICT CONTRACT,"877,176.48"
Rochdale BC,23/01/2014,INSPIREDSPACES ROCHDALE LTD,"Works - Construction, Repair & Maintenance",EARLY HELP AND SCHOOLS,BSF ICT CONTRACT,"32,910.73"
Rochdale BC,23/01/2014,INSPIREDSPACES ROCHDALE LTD,"Works - Construction, Repair & Maintenance",EARLY HELP AND SCHOOLS,BSF ICT CONTRACT,563.55
Rochdale BC,23/01/2014,INSPIREDSPACES ROCHDALE LTD,"Works - Construction, Repair & Maintenance",EARLY HELP AND SCHOOLS,BSF ICT CONTRACT,"6,080.00"
Rochdale BC,07/01/2014,INSPIREDSPACES ROCHDALE LTD,"Works - Construction, Repair & Maintenance",EARLY HELP AND SCHOOLS,BSF OTHER CONTRIBUTIONS,"2,266.75"
Rochdale BC,07/01/2014,INSPIREDSPACES ROCHDALE LTD,"Works - Construction, Repair & Maintenance",EARLY HELP AND SCHOOLS,BSF VARIATIONS/ CONTINGENCY,"15,182.19"
Rochdale BC,21/01/2014,INSPIREDSPACES ROCHDALE LTD,"Works - Construction, Repair & Maintenance",EARLY HELP AND SCHOOLS,WAN CONNECTIVITY CHARGES,"21,124.12"
Rochdale BC,06/01/2014,INSPIREDSPACES ROCHDALE PROJECT CO1 LTD,"Works - Construction, Repair & Maintenance",EARLY HELP AND SCHOOLS,HOLLINGWORTH PFI,"326,921.14"
Rochdale BC,20/01/2014,INSPIREDSPACES ROCHDALE PROJECTCO2 LTD,"Works - Construction, Repair & Maintenance",EARLY HELP AND SCHOOLS,BSF OTHER CONTRIBUTIONS,"12,626.58"
Rochdale BC,31/01/2014,INSPIREDSPACES ROCHDALE PROJECTCO2 LTD,"Works - Construction, Repair & Maintenance",EARLY HELP AND SCHOOLS,WARDLE AND FALINGE PFI,"133,383.79"
Rochdale BC,02/01/2014,INSTITUTE OF RISK MANAGEMENT,Financial Services,FINANCE SERVICES,HEAD OF SERVICE MANAGEMENT,974.00
Rochdale BC,09/01/2014,INTACT PROJECTS LTD,Social Community Care Supplies & Services,CHILDREN�S SOCIAL CARE,YOUNG PEOPLES SUPPORT TEAM,910.00
Rochdale BC,09/01/2014,INTACT PROJECTS LTD,Social Community Care Supplies & Services,CHILDREN�S SOCIAL CARE,YPST SUPPORTING PEOPLE FUNDING,910.00
Rochdale BC,10/01/2014,INTEGRATED WATER SERVICES LIMITED,Utilities,PROPERTY AND HIGHWAYS,SCHOOLS SLA 12/13,"14,219.60"
Rochdale BC,30/01/2014,INTEGRATED WATER SERVICES LIMITED,Utilities,PROPERTY AND HIGHWAYS,SCHOOLS SLA 12/13,"5,190.00"
Rochdale BC,29/01/2014,INTERNET PHARMACY LTD,Healthcare,PUBLIC HEALTH,STOP SMOKING,"1,222.24"
Rochdale BC,01/01/2014,INTUITIVE RECOVERY LTD,Healthcare,CORPORATE SERVICES,DRUGS & ALCOHOL - SPECIALIST D&A SRVC,"4,125.00"
Rochdale BC,09/01/2014,ISAAC BUTTERWORTH (IRONFOUNDERS) LIMITED,"Works - Construction, Repair & Maintenance",ECONOMY AND ENVIRONMENT,STREETS HEYWOOD GENERAL,"1,450.00"
Rochdale BC,13/01/2014,ISUBSCRIBE LTD,Education,CORPORATE SERVICES,BIBS UNIT,"1,283.33"
Rochdale BC,13/01/2014,J & S TRAVEL,Public Transport,ECONOMY AND ENVIRONMENT,EDUCATION HOME TO SCHOOL,729.00
Rochdale BC,21/01/2014,J & S TRAVEL,Public Transport,ECONOMY AND ENVIRONMENT,EDUCATION HOME TO SCHOOL,822.00
Rochdale BC,27/01/2014,J & S TRAVEL,Public Transport,ECONOMY AND ENVIRONMENT,EDUCATION HOME TO SCHOOL,915.00
Rochdale BC,31/01/2014,J & S TRAVEL,Public Transport,ECONOMY AND ENVIRONMENT,EDUCATION HOME TO SCHOOL,915.00
Rochdale BC,20/01/2014,J A CRYER EXCAVATION & GROUNDWORK CONTRACTORS LTD,"Works - Construction, Repair & Maintenance",ECONOMY AND ENVIRONMENT,COUNTRYSIDE OPERATIONS,520.00
Rochdale BC,10/01/2014,J C MILLS & SON LIMITED,Building Construction Materials,EARLY HELP AND SCHOOLS,SHAWCLOUGH WATER TANK REMOVAL,"9,595.65"
Rochdale BC,07/01/2014,J COONEY LIMITED,"Works - Construction, Repair & Maintenance",PROPERTY AND HIGHWAYS,EXT WORKS VARIOUS PATHS & RETAINING WALL,"18,372.90"
Rochdale BC,24/01/2014,J COONEY LIMITED,"Works - Construction, Repair & Maintenance",PROPERTY AND HIGHWAYS,HIP BAGSLATE MOOR ROAD,"24,822.21"
Rochdale BC,24/01/2014,J COONEY LIMITED,"Works - Construction, Repair & Maintenance",PROPERTY AND HIGHWAYS,HIP CAITHNESS ROAD FOOTWAY,"26,319.07"
Rochdale BC,24/01/2014,J COONEY LIMITED,"Works - Construction, Repair & Maintenance",PROPERTY AND HIGHWAYS,HIP FOUNTAIN ST RESURFACING,"38,927.50"
Rochdale BC,30/01/2014,J COONEY LIMITED,"Works - Construction, Repair & Maintenance",PROPERTY AND HIGHWAYS,HIP GLENMORE AVE,"12,011.05"
Rochdale BC,15/01/2014,J COONEY LIMITED,"Works - Construction, Repair & Maintenance",PROPERTY AND HIGHWAYS,HIP HIGHLANDS ROAD,"53,190.51"
Rochdale BC,29/01/2014,J COONEY LIMITED,"Works - Construction, Repair & Maintenance",PROPERTY AND HIGHWAYS,HIP HIGHLANDS ROAD,"66,462.07"
Rochdale BC,02/01/2014,J COONEY LIMITED,"Works - Construction, Repair & Maintenance",PROPERTY AND HIGHWAYS,HIP SIR ISSAC NEWTON WAY RESURFACING,"3,198.22"
Rochdale BC,24/01/2014,J COONEY LIMITED,"Works - Construction, Repair & Maintenance",PROPERTY AND HIGHWAYS,HIP SIR ISSAC NEWTON WAY RESURFACING,"168,497.07"
Rochdale BC,28/01/2014,J D DANCE CLUB LIMITED,Arts & Leisure Services,CHILDREN�S SOCIAL CARE,SUMMER FUN,650.00
Rochdale BC,08/01/2014,J G SHELTON & CO LIMITED             (S),Cemetery & Crematorium,ECONOMY AND ENVIRONMENT,ALL CREMETORIA,"2,345.15"
Rochdale BC,13/01/2014,J G SHELTON & CO LIMITED             (S),Cemetery & Crematorium,ECONOMY AND ENVIRONMENT,ALL CREMETORIA,"4,260.00"
Rochdale BC,07/01/2014,J GREENWOOD (BUILDERS) LIMITED       (S),"Works - Construction, Repair & Maintenance",PROPERTY AND HIGHWAYS,TOWN HALL REROOFING WORKS- PH1 CLOCK TOW,"38,104.17"
Rochdale BC,07/01/2014,J T SAWYER & CO LIMITED,Facilities & Management Services,ECONOMY AND ENVIRONMENT,ALL CREMETORIA,"1,468.60"
Rochdale BC,14/01/2014,JACKSON JACKSON & SONS LTD           (S),Building Construction Materials,EARLY HELP AND SCHOOLS,Kentmere PCP,"5,309.63"
Rochdale BC,30/01/2014,JADE TRAVEL,Human Resources,ECONOMY AND ENVIRONMENT,EDUCATION HOME TO SCHOOL,"4,865.50"
Rochdale BC,30/01/2014,JADE TRAVEL,Human Resources,ECONOMY AND ENVIRONMENT,EDUCATION HOME TO SCHOOL,"2,080.75"
Rochdale BC,30/01/2014,JADE TRAVEL,Human Resources,ECONOMY AND ENVIRONMENT,EDUCATION HOME TO SCHOOL,"2,172.75"
Rochdale BC,13/01/2014,JCM SEATING SOLUTIONS LIMITED,Social Community Care Supplies & Services,EARLY HELP AND SCHOOLS,DOWLING STREET OCC THERAPY,"1,115.90"
Rochdale BC,09/01/2014,JEREMY BENN ASSOCIATES LTD,Consultancy,ECONOMY AND ENVIRONMENT,SURFACE WATER MGT PLAN,"12,289.00"
Rochdale BC,24/01/2014,JEREMY BENN ASSOCIATES LTD,Consultancy,ECONOMY AND ENVIRONMENT,SURFACE WATER MGT PLAN,"8,000.00"
Rochdale BC,23/01/2014,JGM AGENCY,Facilities & Management Services,FINANCE SERVICES,PR MEDIA AND MARKETING,"5,365.50"
Rochdale BC,15/01/2014,JMHA,Housing Management,ECONOMY AND ENVIRONMENT,EMPTY PROPERTY GRANT,"1,870.00"
Rochdale BC,15/01/2014,JMHA,Housing Management,ECONOMY AND ENVIRONMENT,EMPTY PROPERTY GRANT,"5,000.00"
Rochdale BC,28/01/2014,JMHA,Housing Management,ECONOMY AND ENVIRONMENT,EMPTY PROPERTY GRANT,"5,000.00"
Rochdale BC,13/01/2014,JOANNE PLATT ASSOCIATES LTD,Consultancy,CHILDREN�S SOCIAL CARE,MANAGEMENT STRUCTURE,"8,320.00"
Rochdale BC,23/01/2014,JOHN SLATTERY PHOTOGRAPHY,Facilities & Management Services,CHILDREN�S SOCIAL CARE,FOSTERING TEAM,550.00
Rochdale BC,08/01/2014,JOHNSTON BROS,Cemetery & Crematorium,CORPORATE SERVICES,CORONERS SERVICE GENERAL,836.00
Rochdale BC,08/01/2014,JOHNSTON BROS,Cemetery & Crematorium,CORPORATE SERVICES,CORONERS SERVICE GENERAL,684.00
Rochdale BC,08/01/2014,JOHNSTON BROS,Cemetery & Crematorium,CORPORATE SERVICES,CORONERS SERVICE GENERAL,684.00
Rochdale BC,08/01/2014,JOHNSTON BROS,Cemetery & Crematorium,CORPORATE SERVICES,CORONERS SERVICE GENERAL,912.00
Rochdale BC,09/01/2014,JOHNSTON BROS,Cemetery & Crematorium,CORPORATE SERVICES,CORONERS SERVICE GENERAL,"1,216.00"
Rochdale BC,09/01/2014,JOHNSTON BROS,Cemetery & Crematorium,CORPORATE SERVICES,CORONERS SERVICE GENERAL,874.00
Rochdale BC,22/01/2014,JONES LANG LASALLE,Facilities & Management Services,ECONOMY AND ENVIRONMENT,ROCHDALE MARKET,"26,105.21"
Rochdale BC,22/01/2014,JONES LANG LASALLE,Facilities & Management Services,ECONOMY AND ENVIRONMENT,ROCHDALE MARKET,"35,994.37"
Rochdale BC,02/01/2014,JONES LIGHTING LTD,Highway Equipment & Materials�,PROPERTY AND HIGHWAYS,ST LTG MISC XMAS ILLUMINA,"1,679.31"
Rochdale BC,07/01/2014,JUBB & JUBB LIMITED,"Works - Construction, Repair & Maintenance",CORPORATE SERVICES,MIDDLETON LIBRARY REFURB,"1,344.00"
Rochdale BC,09/01/2014,JULIEW CONSULTANCY LTD,Consultancy,CHILDREN�S SOCIAL CARE,MANAGEMENT STRUCTURE,"1,000.00"
Rochdale BC,23/01/2014,JUST TEACHERS LIMITED,Human Resources,EARLY HELP AND SCHOOLS,AUTISM,"1,037.00"
Rochdale BC,24/01/2014,JUST TEACHERS LIMITED,Human Resources,EARLY HELP AND SCHOOLS,AUTISM,"1,037.00"
Rochdale BC,27/01/2014,JUST TEACHERS LIMITED,Human Resources,EARLY HELP AND SCHOOLS,AUTISM,"1,037.00"
Rochdale BC,27/01/2014,JUST TEACHERS LIMITED,Human Resources,EARLY HELP AND SCHOOLS,AUTISM,"1,037.00"
Rochdale BC,22/01/2014,K T LITHO PRINTERS LIMITED,Facilities & Management Services,CORPORATE SERVICES,PRODUCTION,576.00
Rochdale BC,10/01/2014,KABERRY CONSTRUCTION LIMITED,"Works - Construction, Repair & Maintenance",PROPERTY AND HIGHWAYS,WINTER SERVICE DEPOT,"231,140.86"
Rochdale BC,29/01/2014,KAPOOR CHEMISTS LTD,Healthcare,PUBLIC HEALTH,STOP SMOKING,545.89
Rochdale BC,01/01/2014,KASHMIR YOUTH PROJECT,Social Community Care Supplies & Services,CORPORATE SERVICES,KASHMIR YOUTH PROJECT,"4,200.00"
Rochdale BC,30/01/2014,KB INDUSTIES UK LTD,Building Construction Materials,ECONOMY AND ENVIRONMENT,LANDSCAPE SERVICES,"1,551.00"
Rochdale BC,13/01/2014,KEN BROGDEN LIMITED,"Works - Construction, Repair & Maintenance",ECONOMY AND ENVIRONMENT,PLAYGROUND SERVICES,"1,345.00"
Rochdale BC,02/01/2014,KEYS CHILDCARE,Social Community Care Supplies & Services,CHILDREN�S SOCIAL CARE,EXTERNAL RESIDENTIAL PLACEMENTS,"11,071.34"
Rochdale BC,09/01/2014,KEYS CHILDCARE,Social Community Care Supplies & Services,EARLY HELP AND SCHOOLS,IND SCHOOLS  RESIDENTIAL,"3,200.00"
Rochdale BC,27/01/2014,KINGSWAY PARK HIGH SCHOOL,Financial Services,EARLY HELP AND SCHOOLS,SECONDARY MATERNITY LEAVE,"19,545.52"
Rochdale BC,29/01/2014,KINGSWAY PARK HIGH SCHOOL,Financial Services,EARLY HELP AND SCHOOLS,SEN SUPPORT MAINSTREAM  LEA,"1,595.00"
Rochdale BC,16/01/2014,KORUS RECRUITMENT GROUP LTD,Human Resources,CORPORATE SERVICES,REFRESH PROGRAMME,"3,300.00"
Rochdale BC,06/01/2014,KR INVEST LTD,Financial Services,EARLY HELP AND SCHOOLS,FREE NURSERY PLACES 2 YEAR OLDS,"3,920.40"
Rochdale BC,06/01/2014,KR INVEST LTD,Financial Services,EARLY HELP AND SCHOOLS,NURSERY EDUCATION GRANT  3YR OLDS,"8,861.76"
Rochdale BC,24/01/2014,L ROWLAND & CO LTD,Healthcare,PUBLIC HEALTH,STOP SMOKING,"2,096.55"
Rochdale BC,01/01/2014,LAMBERT SMITH HAMPTON GROUP LIMITED,Financial Services,ECONOMY AND ENVIRONMENT,HOLLINGWORTH LAKE GENERAL,"7,500.00"
Rochdale BC,23/01/2014,LANCASHIRE COUNTY COUNCIL,Public Bodies,PHYSICAL DIS & OLDER PEOPLE,OLDER PEOPLES AGENCY PROVISION,"1,898.40"
Rochdale BC,02/01/2014,LANCASHIRE COUNTY COUNCIL,Public Bodies,ECONOMY AND ENVIRONMENT,RIGHTS OF WAY (Transferring from Highway,"2,675.00"
Rochdale BC,27/01/2014,LANCASHIRE LOCK & SAFE COMPANY LIMITED,Facilities & Management Services,ECONOMY AND ENVIRONMENT,1 RIVERSIDE,541.00
Rochdale BC,31/12/2013,LAPSILLE LTD,Education,EARLY HELP AND SCHOOLS,SEND PATHFINDER,"1,350.00"
Rochdale BC,06/01/2014,LAROCHE DAY CARE NURSERY,Financial Services,EARLY HELP AND SCHOOLS,FREE NURSERY PLACES 2 YEAR OLDS,"1,470.15"
Rochdale BC,08/01/2014,LAROCHE DAY CARE NURSERY,Financial Services,EARLY HELP AND SCHOOLS,FREE NURSERY PLACES 2 YEAR OLDS,"4,410.45"
Rochdale BC,06/01/2014,LAROCHE DAY CARE NURSERY,Financial Services,EARLY HELP AND SCHOOLS,NURSERY EDUCATION GRANT  3YR OLDS,"19,874.25"
Rochdale BC,24/01/2014,LIFE FITNESS UK LIMITED,Arts & Leisure Services,ECONOMY AND ENVIRONMENT,EQUIPMENT - LEISURE CENTRES,"17,744.78"
Rochdale BC,17/01/2014,LINK4LIFE (CHARITY),Arts & Leisure Services,LEARNING DIS & MENTAL HEALTH,CARERS RESOURCE CENTRE,500.00
Rochdale BC,15/01/2014,LINK4LIFE (CHARITY),Arts & Leisure Services,CORPORATE SERVICES,COMMUNITIES & ENGAGEMENT PRIORITY FUND,"1,025.00"
Rochdale BC,14/01/2014,LINK4LIFE (CHARITY),Arts & Leisure Services,ECONOMY AND ENVIRONMENT,COMMUNITY AFFAIRS,"6,000.00"
Rochdale BC,01/01/2014,LINK4LIFE (CHARITY),Arts & Leisure Services,FINANCE SERVICES,CONTRACT FEE LEISURE TRUST,"312,618.44"
Rochdale BC,17/01/2014,LINK4LIFE (CHARITY),Arts & Leisure Services,PUBLIC HEALTH,PHYSICAL ACTIVITY COMMISSIONING,"147,000.00"
Rochdale BC,06/01/2014,LINK4LIFE (CHARITY),Arts & Leisure Services,CORPORATE SERVICES,PROJECTS COMMISSIONING,"1,025.00"
Rochdale BC,01/01/2014,LINK4LIFE (CHARITY),Arts & Leisure Services,EARLY HELP AND SCHOOLS,SHORT BREAKS REVENUE,"4,083.33"
Rochdale BC,01/01/2014,LINK4LIFE (CHARITY),Arts & Leisure Services,EARLY HELP AND SCHOOLS,SHORT BREAKS REVENUE,"4,108.33"
Rochdale BC,14/01/2014,LINK4LIFE (CHARITY),Arts & Leisure Services,ECONOMY AND ENVIRONMENT,SKILLS OUTREACH,"10,000.00"
Rochdale BC,01/01/2014,LINK4LIFE (TRADING),Arts & Leisure Services,FINANCE SERVICES,CONTRACT FEE LEISURE TRUST,"8,591.67"
Rochdale BC,20/01/2014,LINKUP TRANSLATION LIMITED,Human Resources,CHILDREN�S SOCIAL CARE,LEVEL 1 CARERS,"1,241.20"
Rochdale BC,30/01/2014,LIQUIDLOGIC LTD,Information Communication Technology,CORPORATE SERVICES,CAF DEMONSTRATOR,"15,000.00"
Rochdale BC,27/01/2014,LIQUIDLOGIC LTD,Information Communication Technology,EARLY HELP AND SCHOOLS,MAN & ADMIN  MISC INCOME & EXPENDITURE,"4,000.00"
Rochdale BC,06/01/2014,LITTLE GEMS PDN,Social Community Care Supplies & Services,EARLY HELP AND SCHOOLS,FREE NURSERY PLACES 2 YEAR OLDS,"7,840.80"
Rochdale BC,06/01/2014,LITTLE GEMS PDN,Social Community Care Supplies & Services,EARLY HELP AND SCHOOLS,NURSERY EDUCATION GRANT  3YR OLDS,"5,182.65"
Rochdale BC,06/01/2014,LITTLE STEPS ROCHDALE LTD,Financial Services,EARLY HELP AND SCHOOLS,FREE NURSERY PLACES 2 YEAR OLDS,"4,900.50"
Rochdale BC,06/01/2014,LITTLE STEPS ROCHDALE LTD,Financial Services,EARLY HELP AND SCHOOLS,NURSERY EDUCATION GRANT  3YR OLDS,"10,140.21"
Rochdale BC,29/01/2014,LITTLEBOROUGH GROUP PRACTICE,Healthcare,PUBLIC HEALTH,SEXUAL HEALTH SERVICES,616.84
Rochdale BC,30/12/2013,LITTLEBOROUGH GROUP PRACTICE,Healthcare,PUBLIC HEALTH,SEXUAL HEALTH SERVICES,778.31
Rochdale BC,09/01/2014,LITTLEBOROUGH PRIVATE HIRE,Public Transport,ECONOMY AND ENVIRONMENT,EDUCATION HOME TO SCHOOL,"2,680.00"
Rochdale BC,29/01/2014,LLOYDS PHARMACY LTD,Consultancy,PUBLIC HEALTH,SEXUAL HEALTH SERVICES,674.54
Rochdale BC,29/01/2014,LLOYDS PHARMACY LTD,Consultancy,PUBLIC HEALTH,SEXUAL HEALTH SERVICES,"1,046.75"
Rochdale BC,29/01/2014,LOCKHART CATERING EQUIPMENT,Catering,ECONOMY AND ENVIRONMENT,ROCHDALE TOWN HALL CROFTERS,981.28
Rochdale BC,31/01/2014,LOGO PLUS,Building Construction Materials,CORPORATE SERVICES,MASKEW BEQUEST SPECIFIED,"2,125.00"
Rochdale BC,17/01/2014,LPS TRAINING & CONSULTANCY LTD,Human Resources,PHYSICAL DIS & OLDER PEOPLE,TRAINING COMMISSIONING,525.00
Rochdale BC,31/01/2014,LPS TRAINING & CONSULTANCY LTD,Human Resources,PHYSICAL DIS & OLDER PEOPLE,TRAINING COMMISSIONING,525.00
Rochdale BC,27/01/2014,LUBBE & SONS LTD,Horticultural,ECONOMY AND ENVIRONMENT,BOWLEE AND GARDEN MAILSHOP,567.00
Rochdale BC,31/01/2014,LUBBE & SONS LTD,Horticultural,ECONOMY AND ENVIRONMENT,BOWLEE AND GARDEN MAILSHOP,"3,376.69"
Rochdale BC,10/01/2014,MACE LIMITED,Consultancy,ECONOMY AND ENVIRONMENT,HOUSING STRATEGY,800.00
Rochdale BC,10/01/2014,MACE LIMITED,Consultancy,FINANCE SERVICES,SOCIAL FUND,"1,400.00"
Rochdale BC,02/01/2014,MACK4 LIMITED,Building Construction Materials,PHYSICAL DIS & OLDER PEOPLE,DISABLED FACILITIES GRANT,"3,455.00"
Rochdale BC,02/01/2014,MAILBOX STAMFORD PRODUCTS LTD,Healthcare,PROPERTY AND HIGHWAYS,Winter Maintenance,"1,991.00"
Rochdale BC,09/01/2014,MAKING SPACE,Social Community Care Supplies & Services,LEARNING DIS & MENTAL HEALTH,CARERS COMMISSIONED SERVICES,"12,575.00"
Rochdale BC,10/01/2014,MAKING SPACE,Social Community Care Supplies & Services,LEARNING DIS & MENTAL HEALTH,CARERS COMMISSIONED SERVICES,"12,575.00"
Rochdale BC,01/01/2014,MAKING SPACE,Social Community Care Supplies & Services,LEARNING DIS & MENTAL HEALTH,EXTERNALLY COMMISSIONED SERVICES,"16,366.00"
Rochdale BC,06/01/2014,MANCHESTER CITY COUNCIL,Public Bodies,CORPORATE SERVICES,CORONERS SERVICE GENERAL,"1,080.00"
Rochdale BC,08/01/2014,MANCHESTER CITY COUNCIL,Public Bodies,PUBLIC HEALTH,SPECIALIST PUBLIC HEALTH TEAM,"2,043.00"
Rochdale BC,29/01/2014,MANCHESTER WORKING LIMITED,"Works - Construction, Repair & Maintenance",PHYSICAL DIS & OLDER PEOPLE,POOLED ICES,"16,625.12"
Rochdale BC,14/01/2014,MANCHESTERS COMMISSION FOR THE NEW ECONOMY,Unclassifiable,ECONOMY AND ENVIRONMENT,BUSINESS SUPPORT (S106 158K),"3,500.00"
Rochdale BC,15/01/2014,MASSEY & HARRIS (ENGINEERING) LTD,"Works - Construction, Repair & Maintenance",ECONOMY AND ENVIRONMENT,PLAYGROUND REPLACEMENT EQUIP,"2,775.00"
Rochdale BC,15/01/2014,MASSEY & HARRIS (ENGINEERING) LTD,"Works - Construction, Repair & Maintenance",ECONOMY AND ENVIRONMENT,PLAYGROUND REPLACEMENT EQUIP,854.00
Rochdale BC,17/01/2014,MASSEY & HARRIS (ENGINEERING) LTD,"Works - Construction, Repair & Maintenance",ECONOMY AND ENVIRONMENT,PLAYGROUND REPLACEMENT EQUIP,854.00
Rochdale BC,29/01/2014,MATTHEW MOSS HIGH SCHOOL,Financial Services,EARLY HELP AND SCHOOLS,SCHOOL DIRECT TRAINING,"48,545.46"
Rochdale BC,21/01/2014,MAYRISE LTD,Information Communication Technology,PROPERTY AND HIGHWAYS,BUSINESS SUPPORT TEAM,"1,700.00"
Rochdale BC,01/01/2014,MEADOWFIELD COMMUNITY CENTRE,Financial Services,CORPORATE SERVICES,MEADOWFIELD,"9,575.00"
Rochdale BC,08/01/2014,MEADOWFIELD COMMUNITY CENTRE,Financial Services,CORPORATE SERVICES,TOWNSHIP PRIORITY PROJECT FUND,"2,679.80"
Rochdale BC,21/01/2014,MEADOWS CARE LIMITED,Human Resources,CHILDREN�S SOCIAL CARE,EXTERNAL RESIDENTIAL PLACEMENTS,"5,220.00"
Rochdale BC,30/01/2014,MEDICX PHARMACY,Healthcare,PUBLIC HEALTH,STOP SMOKING,"1,327.42"
Rochdale BC,30/01/2014,MEDICX PHARMACY,Healthcare,PUBLIC HEALTH,STOP SMOKING,"1,150.62"
Rochdale BC,30/01/2014,MEDICX PHARMACY,Healthcare,PUBLIC HEALTH,STOP SMOKING,"1,659.99"
Rochdale BC,02/01/2014,MENCAP,Human Resources,LEARNING DIS & MENTAL HEALTH,LD FORUM - HOME SUPPORT,"5,207.58"
Rochdale BC,06/01/2014,MENCAP,Human Resources,LEARNING DIS & MENTAL HEALTH,LD FORUM - HOME SUPPORT,633.60
Rochdale BC,29/01/2014,MENCAP,Human Resources,LEARNING DIS & MENTAL HEALTH,LD FORUM - HOME SUPPORT,"5,207.58"
Rochdale BC,17/01/2014,MENCAP,Human Resources,LEARNING DIS & MENTAL HEALTH,LD FORUM - PERSONAL BUDGETS,"1,012.00"
Rochdale BC,17/01/2014,MERIDIAN LAW LTD,Information Communication Technology,CORPORATE SERVICES,CORONERS SERVICE GENERAL,"2,700.00"
Rochdale BC,31/01/2014,METRO SRM LLP,Financial Services,ECONOMY AND ENVIRONMENT,TELEGRAPH HOUSE SERVICE CHARGE ACCOUNT,990.00
Rochdale BC,31/01/2014,METRO SRM LLP,Financial Services,ECONOMY AND ENVIRONMENT,TELEGRAPH HOUSE SERVICE CHARGE ACCOUNT,990.00
Rochdale BC,24/01/2014,MICHAEL PAGE INTERNATIONAL RECRUITMENT LTD,Human Resources,CORPORATE SERVICES,MANAGEMENT ADMIN,931.50
Rochdale BC,17/01/2014,MICHAEL PAGE INTERNATIONAL RECRUITMENT LTD,Human Resources,FINANCE SERVICES,PR MEDIA AND MARKETING,"2,308.50"
Rochdale BC,24/01/2014,MICHAEL PAGE INTERNATIONAL RECRUITMENT LTD,Human Resources,FINANCE SERVICES,PR MEDIA AND MARKETING,699.30
Rochdale BC,29/01/2014,MIDDELTON HEALTH CENTRE,Healthcare,PUBLIC HEALTH,SEXUAL HEALTH SERVICES,666.93
Rochdale BC,20/01/2014,MIDDLETON PARISH CE SCHOOL,Financial Services,EARLY HELP AND SCHOOLS,SCHOOLS ACCESS -EQUIPMENT-PRIMARY,"30,951.46"
Rochdale BC,23/01/2014,MIDDLETON TECHNOLOGY SCHOOL FUND,Public Bodies,EARLY HELP AND SCHOOLS,CLC RUNNING COSTS 2011/12,"9,029.14"
Rochdale BC,13/01/2014,MIDDLETON TOWN CENTRE MANAGEMENT CO LTD,Human Resources,CORPORATE SERVICES,EVENTS BUDGET,"3,000.00"
Rochdale BC,01/01/2014,MIDDLETON TRAMPOLINING CLUB,Arts & Leisure Services,EARLY HELP AND SCHOOLS,HEALTH RELATED SHORT BREAKS,"2,599.08"
Rochdale BC,15/01/2014,MIDLAND SOFTWARE LTD,Information Communication Technology,CORPORATE SERVICES,E-HR TRANSFORMATION PROGAMME,"4,029.00"
Rochdale BC,08/01/2014,MIDLAND SOFTWARE LTD,Information Communication Technology,CORPORATE SERVICES,THIRD PARTY CONTRACTS,"1,467.41"
Rochdale BC,01/01/2014,MILLS INITIATIVES LIMITED,"Works - Construction, Repair & Maintenance",CHILDREN�S SOCIAL CARE,CROSSFIELD MILL,"50,700.00"
Rochdale BC,09/01/2014,MILLS INITIATIVES LIMITED,"Works - Construction, Repair & Maintenance",CHILDREN�S SOCIAL CARE,CROSSFIELD MILL,"4,492.98"
Rochdale BC,09/01/2014,MILNROW CARS,Public Transport,ECONOMY AND ENVIRONMENT,EDUCATION HOME TO SCHOOL,516.00
Rochdale BC,06/01/2014,MILNROW PLAYGROUP,Financial Services,EARLY HELP AND SCHOOLS,FREE NURSERY PLACES 2 YEAR OLDS,"2,940.30"
Rochdale BC,06/01/2014,MILNROW PLAYGROUP,Financial Services,EARLY HELP AND SCHOOLS,NURSERY EDUCATION GRANT  3YR OLDS,"13,677.30"
Rochdale BC,30/12/2013,MILNROW VILLAGE PRACTICE,Healthcare,PUBLIC HEALTH,SEXUAL HEALTH SERVICES,"1,844.61"
Rochdale BC,08/01/2014,MISCO,Information Communication Technology,CORPORATE SERVICES,REFRESH PROGRAMME,"1,524.22"
Rochdale BC,30/01/2014,MISCO,Information Communication Technology,CORPORATE SERVICES,REFRESH PROGRAMME,780.08
Rochdale BC,23/01/2014,MOOREND DEVELOPMENT TRUST LIMITED,Unclassifiable,CORPORATE SERVICES,WARD CAPITAL FUND,"1,550.00"
Rochdale BC,23/01/2014,MOOREND DEVELOPMENT TRUST LIMITED,Unclassifiable,CORPORATE SERVICES,WARDS FUND,"1,500.00"
Rochdale BC,23/01/2014,MOOREND DEVELOPMENT TRUST LIMITED,Unclassifiable,CORPORATE SERVICES,WARDS FUND,"1,000.00"
Rochdale BC,30/01/2014,MORLEYS OF BICESTER LIMITED,"Works - Construction, Repair & Maintenance",CORPORATE SERVICES,ROCHDALE CENTRAL LIBRARY,"1,018.00"
Rochdale BC,01/01/2014,MOSAIC COMMUNITY CARE LTD,Financial Services,EARLY HELP AND SCHOOLS,SHORT BREAKS REVENUE,"4,088.50"
Rochdale BC,09/01/2014,MOTT MACDONALD LIMITED,Human Resources,EARLY HELP AND SCHOOLS,BSF DEVELOPMENT (MOD0809),"6,057.85"
Rochdale BC,30/01/2014,MR GARY P DAWSON,Unclassifiable,ECONOMY AND ENVIRONMENT,EDUCATION HOME TO SCHOOL,"1,795.50"
Rochdale BC,03/01/2014,MR J P O`HARA,Unclassifiable,ECONOMY AND ENVIRONMENT,EDUCATION HOME TO SCHOOL,"1,488.45"
Rochdale BC,03/01/2014,MR J P O`HARA,Unclassifiable,ECONOMY AND ENVIRONMENT,EDUCATION HOME TO SCHOOL,"1,488.45"
Rochdale BC,03/01/2014,MR J P O`HARA,Unclassifiable,ECONOMY AND ENVIRONMENT,EDUCATION HOME TO SCHOOL,"1,402.50"
Rochdale BC,21/01/2014,MR P E HOLT,Furniture & Soft Furnishings,CHILDREN�S SOCIAL CARE,FURNESS ROAD,"1,932.00"
Rochdale BC,14/01/2014,NATIONAL CYCLING ACADEMY,Arts & Leisure Services,PROPERTY AND HIGHWAYS,17-25 YOUNG DRIVER PROJECT,"15,787.50"
Rochdale BC,07/01/2014,NATIONAL FLOOD FORUM,Environmental Services,ECONOMY AND ENVIRONMENT,FLOOD RESILIENCE COMMUNITY PATHFINDER,"16,984.62"
Rochdale BC,07/01/2014,NATIONAL FLOOD FORUM,Environmental Services,ECONOMY AND ENVIRONMENT,FLOOD RESILIENCE COMMUNITY PATHFINDER,"15,746.62"
Rochdale BC,06/01/2014,NATURES NURSERY (HUDDERSFIELD) LTD,Horticultural,EARLY HELP AND SCHOOLS,FREE NURSERY PLACES 2 YEAR OLDS,"4,900.50"
Rochdale BC,06/01/2014,NATURES NURSERY (HUDDERSFIELD) LTD,Horticultural,EARLY HELP AND SCHOOLS,NURSERY EDUCATION GRANT  3YR OLDS,"13,515.84"
Rochdale BC,17/01/2014,NATURESCAPE,Horticultural,ECONOMY AND ENVIRONMENT,BOWLEE AND GARDEN MAILSHOP,800.00
Rochdale BC,31/01/2014,NEIL SIMPSON & SON                   (S),"Works - Construction, Repair & Maintenance",PHYSICAL DIS & OLDER PEOPLE,DISABLED FACILITIES GRANT,"6,900.47"
Rochdale BC,21/01/2014,NEW COLLEGE WORCESTER,Public Bodies,EARLY HELP AND SCHOOLS,NON MAINTAINED POST 16,"12,057.00"
Rochdale BC,02/01/2014,NEW HORIZONS (STOCKPORT) LIMITED,Social Community Care Supplies & Services,CHILDREN�S SOCIAL CARE,EXTERNAL RESIDENTIAL PLACEMENTS,"8,200.00"
Rochdale BC,21/01/2014,NEWBARN LTD,Social Community Care Supplies & Services,LEARNING DIS & MENTAL HEALTH,GENERAL,575.71
Rochdale BC,21/01/2014,NEWBARN LTD,Social Community Care Supplies & Services,LEARNING DIS & MENTAL HEALTH,GENERAL,518.14
Rochdale BC,21/01/2014,NEWBARN LTD,Social Community Care Supplies & Services,LEARNING DIS & MENTAL HEALTH,GENERAL,"1,709.16"
Rochdale BC,06/01/2014,NEWBOLD CHILDRENS CENTRE NURSERY,Financial Services,EARLY HELP AND SCHOOLS,FREE NURSERY PLACES 2 YEAR OLDS,"19,111.95"
Rochdale BC,06/01/2014,NEWBOLD CHILDRENS CENTRE NURSERY,Financial Services,EARLY HELP AND SCHOOLS,NURSERY EDUCATION GRANT  3YR OLDS,"18,021.96"
Rochdale BC,06/01/2014,NEWBOLD COMMUNITY PLAYGROUP,Social Community Care Supplies & Services,EARLY HELP AND SCHOOLS,FREE NURSERY PLACES 2 YEAR OLDS,"1,960.20"
Rochdale BC,06/01/2014,NEWBOLD COMMUNITY PLAYGROUP,Social Community Care Supplies & Services,EARLY HELP AND SCHOOLS,NURSERY EDUCATION GRANT  3YR OLDS,"3,039.30"
Rochdale BC,29/01/2014,NEWLINE ADAPTATIONS LTD,"Works - Construction, Repair & Maintenance",PHYSICAL DIS & OLDER PEOPLE,DISABLED FACILITIES GRANT,"6,050.00"
Rochdale BC,06/01/2014,NHS GREATER MANCHESTER CSU,Healthcare,PUBLIC HEALTH,SPECIALIST PUBLIC HEALTH TEAM,"7,017.67"
Rochdale BC,21/01/2014,NISAI LEARNING,Education,EARLY HELP AND SCHOOLS,POST 16 RDALE PUPILS IN COLLEGES/ISP,"1,500.00"
Rochdale BC,20/01/2014,NO GRAFFITI (MANCHESTER) LTD,Environmental Services,ECONOMY AND ENVIRONMENT,GRAFFITI TEAM,"1,000.00"
Rochdale BC,17/01/2014,NOMS AGENCY,Social Community Care Supplies & Services,CORPORATE SERVICES,DRUGS & ALCOHOL - SPECIALIST D&A SRVC,"3,042.00"
Rochdale BC,06/01/2014,NORDEN PLAYGROUP,Financial Services,EARLY HELP AND SCHOOLS,FREE NURSERY PLACES 2 YEAR OLDS,"1,470.15"
Rochdale BC,06/01/2014,NORDEN PLAYGROUP,Financial Services,EARLY HELP AND SCHOOLS,NURSERY EDUCATION GRANT  3YR OLDS,"2,732.40"
Rochdale BC,09/01/2014,NORNIR LIMITED,Consultancy,EARLY HELP AND SCHOOLS,GENERAL BOROUGHWIDE YOUTH SERVICE,"1,500.00"
Rochdale BC,10/01/2014,NORTH WEST PORTABLES,"Works - Construction, Repair & Maintenance",ECONOMY AND ENVIRONMENT,MISCELLANEOUS ECR,552.00
Rochdale BC,30/12/2013,NORTHENDEN TRAVEL,Human Resources,CHILDREN�S SOCIAL CARE,CIC SOCIAL WORK,963.43
Rochdale BC,02/01/2014,NORTHERNCARE,Social Community Care Supplies & Services,CHILDREN�S SOCIAL CARE,EXTERNAL RESIDENTIAL PLACEMENTS,"15,190.00"
Rochdale BC,09/01/2014,NORTHGATE INFORMATION SOLUTIONS UK LTD,Stationery,FINANCE SERVICES,BLUE BADGES,"1,090.20"
Rochdale BC,09/01/2014,NORTHGATE INFORMATION SOLUTIONS UK LTD,Stationery,FINANCE SERVICES,TECHNICAL SUPPORT,"4,312.50"
Rochdale BC,08/01/2014,NORTHGATE INFORMATION SOLUTIONS UK LTD,Stationery,CORPORATE SERVICES,THIRD PARTY CONTRACTS,"1,225.00"
Rochdale BC,10/01/2014,NORWOOD ELECTRICAL (UK) LTD,Building Construction Materials,PROPERTY AND HIGHWAYS,BUSINESS SUPPORT TEAM,"2,018.35"
Rochdale BC,10/01/2014,NORWOOD ELECTRICAL (UK) LTD,Building Construction Materials,PROPERTY AND HIGHWAYS,SCHOOLS SLA 12/13,"7,242.45"
Rochdale BC,16/01/2014,NPOWER LIMITED,Utilities,PROPERTY AND HIGHWAYS,STREET LIGHTING ENERGY,"179,538.83"
Rochdale BC,23/01/2014,NSL LIMITED,Street & Traffic Management,PROPERTY AND HIGHWAYS,DECRIMINALISATION OF CAR PARKING,"6,148.00"
Rochdale BC,23/01/2014,NSL LIMITED,Street & Traffic Management,PROPERTY AND HIGHWAYS,DECRIMINALISATION OF CAR PARKING,"31,709.39"
Rochdale BC,13/01/2014,OCE FINANCE,Financial Services,CORPORATE SERVICES,PRODUCTION,"6,470.05"
Rochdale BC,31/01/2014,OCE FINANCE,Financial Services,CORPORATE SERVICES,PRODUCTION,"7,043.86"
Rochdale BC,31/01/2014,OCE FINANCE,Financial Services,CORPORATE SERVICES,PRODUCTION,"7,043.86"
Rochdale BC,06/01/2014,OFFICE DEPOT UK LIMITED,Stationery,EARLY HELP AND SCHOOLS,GOVERNORS SERVICES,635.92
Rochdale BC,21/01/2014,OFFICE DEPOT UK LIMITED,Stationery,FINANCE SERVICES,PR MEDIA AND MARKETING,864.64
Rochdale BC,27/01/2014,OLDHAM & ROCHDALE GROUNDWORK TRUST LTD,"Works - Construction, Repair & Maintenance",ECONOMY AND ENVIRONMENT,SKILLS OUTREACH,"7,500.00"
Rochdale BC,28/01/2014,OLDHAM & ROCHDALE GROUNDWORK TRUST LTD,"Works - Construction, Repair & Maintenance",ECONOMY AND ENVIRONMENT,SKILLS OUTREACH,"7,500.00"
Rochdale BC,21/01/2014,OLDHAM COLLEGE,Human Resources,EARLY HELP AND SCHOOLS,POST 16 RDALE PUPILS IN COLLEGES/ISP,"3,057.67"
Rochdale BC,27/01/2014,OLDHAM COMMUNITY LEISURE LTD,Financial Services,EARLY HELP AND SCHOOLS,HEYWOOD - EXTERNAL FUNDED PROJECTS,960.00
Rochdale BC,08/01/2014,OSCAR ASSOCIATES UK LTD,Human Resources,CORPORATE SERVICES,REFRESH PROGRAMME,"1,120.00"
Rochdale BC,14/01/2014,OSCAR ASSOCIATES UK LTD,Human Resources,CORPORATE SERVICES,REFRESH PROGRAMME,560.00
Rochdale BC,20/01/2014,OSCAR ASSOCIATES UK LTD,Human Resources,CORPORATE SERVICES,REFRESH PROGRAMME,700.00
Rochdale BC,31/01/2014,OSCAR ASSOCIATES UK LTD,Human Resources,CORPORATE SERVICES,REFRESH PROGRAMME,700.00
Rochdale BC,06/01/2014,OULDER HILL PLAYGROUP,Financial Services,EARLY HELP AND SCHOOLS,FREE NURSERY PLACES 2 YEAR OLDS,"2,450.25"
Rochdale BC,06/01/2014,OULDER HILL PLAYGROUP,Financial Services,EARLY HELP AND SCHOOLS,NURSERY EDUCATION GRANT  3YR OLDS,"4,058.41"
Rochdale BC,13/01/2014,OVER AUDIO,Education,ECONOMY AND ENVIRONMENT,EQUIPMENT - LEISURE CENTRES,"24,414.40"
Rochdale BC,24/01/2014,OXFORD UNIVERSITY PRESS,Mail Services�,EARLY HELP AND SCHOOLS,EQUALITIES TEAM RESOURCES,611.35
Rochdale BC,06/01/2014,PARENTS AND CHILDREN TOGETHER,Social Community Care Supplies & Services,CHILDREN�S SOCIAL CARE,FOSTERING TEAM,"31,534.00"
Rochdale BC,29/01/2014,PARKWOOD HEALTHCARE LIMITED,Healthcare,PHYSICAL DIS & OLDER PEOPLE,OLDER PEOPLES AGENCY PROVISION,"14,191.66"
Rochdale BC,24/01/2014,PATROL,Facilities & Management Services,PROPERTY AND HIGHWAYS,DECRIMINALISATION OF CAR PARKING,"2,129.40"
Rochdale BC,17/01/2014,PAYNE SECURITY,Building Construction Materials,ECONOMY AND ENVIRONMENT,REG LIC  GENERAL,509.50
Rochdale BC,30/12/2013,PEARL PHARMACY,Healthcare,PUBLIC HEALTH,SEXUAL HEALTH SERVICES,"2,240.92"
Rochdale BC,29/01/2014,PENDLETON RESIDENTIAL CARE,Social Community Care Supplies & Services,LEARNING DIS & MENTAL HEALTH,LD FORUM - PERSONAL BUDGETS,"4,370.00"
Rochdale BC,09/01/2014,PENNINE CARE IN PATIENT SERVICES PRIORY,Healthcare,EARLY HELP AND SCHOOLS,HOSPITAL TUITION,"1,400.00"
Rochdale BC,09/01/2014,PENNINE CARE IN PATIENT SERVICES PRIORY,Healthcare,EARLY HELP AND SCHOOLS,HOSPITAL TUITION,"2,625.00"
Rochdale BC,09/01/2014,PENNINE CARE IN PATIENT SERVICES PRIORY,Healthcare,EARLY HELP AND SCHOOLS,HOSPITAL TUITION,525.00
Rochdale BC,09/01/2014,PENNINE CARE IN PATIENT SERVICES PRIORY,Healthcare,EARLY HELP AND SCHOOLS,HOSPITAL TUITION,700.00
Rochdale BC,10/01/2014,PENNINE CARE NHS TRUST,Social Community Care Supplies & Services,PHYSICAL DIS & OLDER PEOPLE,ADULT CARE HEAD OF SERVICE,"11,111.00"
Rochdale BC,07/01/2014,PENNINE CARE NHS TRUST,Social Community Care Supplies & Services,CHILDREN�S SOCIAL CARE,CAMHS GRANT,"10,578.00"
Rochdale BC,07/01/2014,PENNINE CARE NHS TRUST,Social Community Care Supplies & Services,CHILDREN�S SOCIAL CARE,CAMHS GRANT,"16,194.00"
Rochdale BC,08/01/2014,PENNINE CARE NHS TRUST,Social Community Care Supplies & Services,CHILDREN�S SOCIAL CARE,CAMHS GRANT,"7,770.00"
Rochdale BC,08/01/2014,PENNINE CARE NHS TRUST,Social Community Care Supplies & Services,CHILDREN�S SOCIAL CARE,CAMHS GRANT,"6,102.00"
Rochdale BC,08/01/2014,PENNINE CARE NHS TRUST,Social Community Care Supplies & Services,CHILDREN�S SOCIAL CARE,CAMHS GRANT,"15,057.17"
Rochdale BC,08/01/2014,PENNINE CARE NHS TRUST,Social Community Care Supplies & Services,CHILDREN�S SOCIAL CARE,CAMHS GRANT,"2,484.00"
Rochdale BC,07/01/2014,PENNINE CARE NHS TRUST,Social Community Care Supplies & Services,EARLY HELP AND SCHOOLS,CASTLETON LANGUAGE UNIT,"1,636.00"
Rochdale BC,20/01/2014,PENNINE CARE NHS TRUST,Social Community Care Supplies & Services,EARLY HELP AND SCHOOLS,CASTLETON LANGUAGE UNIT,"4,090.00"
Rochdale BC,02/01/2014,PENNINE CARE NHS TRUST,Social Community Care Supplies & Services,CORPORATE SERVICES,DRUGS & ALCOHOL - SPECIALIST D&A SRVC,"99,010.42"
Rochdale BC,07/01/2014,PENNINE CARE NHS TRUST,Social Community Care Supplies & Services,EARLY HELP AND SCHOOLS,ICAN,"4,269.00"
Rochdale BC,22/01/2014,PENNINE CARE NHS TRUST,Social Community Care Supplies & Services,EARLY HELP AND SCHOOLS,ICAN,"5,692.00"
Rochdale BC,03/01/2014,PENNINE CARE NHS TRUST,Social Community Care Supplies & Services,PHYSICAL DIS & OLDER PEOPLE,OPERATIONAL MANAGER 1 H & C,"3,246.00"
Rochdale BC,31/01/2014,PENNINE CARE NHS TRUST,Social Community Care Supplies & Services,EARLY HELP AND SCHOOLS,PRIMARY AND COM HEALTH,"2,500.00"
Rochdale BC,15/01/2014,PENNINE CARE NHS TRUST,Social Community Care Supplies & Services,EARLY HELP AND SCHOOLS,SEN EARLY YEARS,"13,312.71"
Rochdale BC,22/01/2014,PHOENIX SOFTWARE LIMITED,Information Communication Technology,CORPORATE SERVICES,REFRESH PROGRAMME,791.05
Rochdale BC,17/01/2014,PINSENT MASONS LLP,Legal Services,PHYSICAL DIS & OLDER PEOPLE,ADULT CARE HEAD OF SERVICE,"2,627.00"
Rochdale BC,15/01/2014,PITNEY BOWES POSTAGE BY PHONE,Mail Services�,ECONOMY AND ENVIRONMENT,EM MAIL ROOM,937.57
Rochdale BC,10/01/2014,PLAYBROKERS LTD,Sports & Playground Equipment & Maintenance,ECONOMY AND ENVIRONMENT,PLAYGROUND SERVICES,"4,588.50"
Rochdale BC,21/01/2014,PLP CONSTRUCTION LIMITED,"Works - Construction, Repair & Maintenance",EARLY HELP AND SCHOOLS,HEYBROOK HEATING CONTROL SYSTEM UPGRADE,"4,698.50"
Rochdale BC,22/01/2014,POLICE AND CRIME COMMISSIONER FOR GTR MANCHESTER,Financial Services,CORPORATE SERVICES,DRUGS & ALCOHOL - SPECIALIST D&A SRVC,"8,648.19"
Rochdale BC,31/01/2014,POLICE AND CRIME COMMISSIONER FOR GTR MANCHESTER,Financial Services,CORPORATE SERVICES,DRUGS & ALCOHOL - SPECIALIST D&A SRVC,"2,693.39"
Rochdale BC,27/01/2014,PONTVILLE SCHOOL,Financial Services,EARLY HELP AND SCHOOLS,IND SCHOOLS  RESIDENTIAL,"22,734.00"
Rochdale BC,13/01/2014,POSITIVE STEPS OLDHAM - KICKSTART,Financial Services,EARLY HELP AND SCHOOLS,ROCHDALE CONNEXTIONS PARTNERSHIP,"49,712.00"
Rochdale BC,13/01/2014,POSITIVE STEPS OLDHAM - KICKSTART,Financial Services,EARLY HELP AND SCHOOLS,ROCHDALE CONNEXTIONS PARTNERSHIP,"49,185.50"
Rochdale BC,24/01/2014,POST OFFICE COUNTERS LTD,Clothing,ECONOMY AND ENVIRONMENT,FLEET MAINTENANCE,"2,145.00"
Rochdale BC,30/01/2014,POSTURITE (UK) LTD,Furniture & Soft Furnishings,FINANCE SERVICES,TECHNICAL SUPPORT,"1,107.90"
Rochdale BC,09/01/2014,PR NEWSWIRE EUROPE LTD,Education,FINANCE SERVICES,PR MEDIA AND MARKETING,"1,100.00"
Rochdale BC,29/01/2014,PR NEWSWIRE EUROPE LTD,Education,FINANCE SERVICES,PR MEDIA AND MARKETING,"2,000.00"
Rochdale BC,16/01/2014,PREMIER CARE,Social Community Care Supplies & Services,PHYSICAL DIS & OLDER PEOPLE,NHS DELAYED TRANSFER,500.00
Rochdale BC,03/01/2014,PREMIER CARE,Social Community Care Supplies & Services,PHYSICAL DIS & OLDER PEOPLE,OLDER PEOPLES AGENCY PROVISION,"6,919.05"
Rochdale BC,10/01/2014,PREMIER CARE,Social Community Care Supplies & Services,PHYSICAL DIS & OLDER PEOPLE,OLDER PEOPLES AGENCY PROVISION,"6,798.88"
Rochdale BC,16/01/2014,PREMIER CARE,Social Community Care Supplies & Services,PHYSICAL DIS & OLDER PEOPLE,OLDER PEOPLES AGENCY PROVISION,"6,523.81"
Rochdale BC,24/01/2014,PREMIER CARE,Social Community Care Supplies & Services,PHYSICAL DIS & OLDER PEOPLE,OLDER PEOPLES AGENCY PROVISION,"6,648.66"
Rochdale BC,31/01/2014,PREMIER CARE,Social Community Care Supplies & Services,PHYSICAL DIS & OLDER PEOPLE,OLDER PEOPLES AGENCY PROVISION,"6,765.18"
Rochdale BC,02/01/2014,PRESTIGE NURSING & CARE,Social Community Care Supplies & Services,PHYSICAL DIS & OLDER PEOPLE,NHS DELAYED TRANSFER,"2,148.41"
Rochdale BC,02/01/2014,PRESTIGE NURSING & CARE,Social Community Care Supplies & Services,PHYSICAL DIS & OLDER PEOPLE,NHS DELAYED TRANSFER,"1,658.40"
Rochdale BC,02/01/2014,PRESTIGE NURSING & CARE,Social Community Care Supplies & Services,PHYSICAL DIS & OLDER PEOPLE,NHS DELAYED TRANSFER,"1,804.88"
Rochdale BC,06/01/2014,PRESTIGE SALES AND LETTINGS LTD,Facilities & Management Services,CHILDREN�S SOCIAL CARE,ACCESS AND SUPPORT PREVENTIVE,"1,100.00"
Rochdale BC,16/01/2014,PRIESTLEYS & SMITHIES (ROCHDALE) LIMITED,Social Community Care Supplies & Services,PHYSICAL DIS & OLDER PEOPLE,POOLED ICES,869.85
Rochdale BC,21/01/2014,PRIORY ROSES,Unclassifiable,ECONOMY AND ENVIRONMENT,BOWLEE AND GARDEN MAILSHOP,654.24
Rochdale BC,31/01/2014,PRISM UK MEDICAL LIMITED,Social Community Care Supplies & Services,EARLY HELP AND SCHOOLS,CAPITAL EQUIPMENT DISABLED CHILDREN,"3,103.94"
Rochdale BC,28/01/2014,PRISM UK MEDICAL LIMITED,Social Community Care Supplies & Services,PHYSICAL DIS & OLDER PEOPLE,DISABLED FACILITIES GRANT,"2,259.41"
Rochdale BC,22/01/2014,PRISM UK MEDICAL LIMITED,Social Community Care Supplies & Services,EARLY HELP AND SCHOOLS,DOWLING STREET OCC THERAPY,560.00
Rochdale BC,16/01/2014,PRISM UK MEDICAL LIMITED,Social Community Care Supplies & Services,PHYSICAL DIS & OLDER PEOPLE,POOLED ICES,"1,170.00"
Rochdale BC,16/01/2014,PRISM UK MEDICAL LIMITED,Social Community Care Supplies & Services,PHYSICAL DIS & OLDER PEOPLE,POOLED ICES,"2,553.97"
Rochdale BC,21/01/2014,PRISM UK MEDICAL LIMITED,Social Community Care Supplies & Services,PHYSICAL DIS & OLDER PEOPLE,POOLED ICES,"1,483.75"
Rochdale BC,30/01/2014,PRISM UK MEDICAL LIMITED,Social Community Care Supplies & Services,PHYSICAL DIS & OLDER PEOPLE,POOLED ICES,"1,462.50"
Rochdale BC,31/12/2013,PRISM UK MEDICAL LIMITED,Social Community Care Supplies & Services,PHYSICAL DIS & OLDER PEOPLE,POOLED ICES,"5,599.00"
Rochdale BC,14/01/2014,PROBRAND LIMITED,Information Communication Technology,EARLY HELP AND SCHOOLS,AUTISM,672.70
Rochdale BC,17/01/2014,PROGRESS CARE HOUSING ASSOCIATION LTD,Housing Management,LEARNING DIS & MENTAL HEALTH,LD SUPPORTED LIVING CLUSTER1  RMBC,"3,588.08"
Rochdale BC,30/01/2014,PROGRESS CARE HOUSING ASSOCIATION LTD,Housing Management,LEARNING DIS & MENTAL HEALTH,LD SUPPORTED LIVING CLUSTER1  RMBC,"4,485.10"
Rochdale BC,13/01/2014,PUNJAB CRICKET CLUB,Arts & Leisure Services,CORPORATE SERVICES,MEMBERS SMALL CAPITAL GRANTS,700.00
Rochdale BC,13/01/2014,QUICKHEARTLIMITED,Consultancy,LEARNING DIS & MENTAL HEALTH,ADULT CARE ADMIN,"1,200.00"
Rochdale BC,30/01/2014,R S COMPONENTS,Health & Safety�,ECONOMY AND ENVIRONMENT,1 RIVERSIDE,802.58
Rochdale BC,31/01/2014,RADPAC,Financial Services,EARLY HELP AND SCHOOLS,PLAY DEVELOPMENT TEAM,"32,000.00"
Rochdale BC,01/01/2014,RADPAC,Financial Services,EARLY HELP AND SCHOOLS,SHORT BREAKS REVENUE,"7,425.00"
Rochdale BC,01/01/2014,RAINBOW SCENT,Unclassifiable,EARLY HELP AND SCHOOLS,HEALTH RELATED SHORT BREAKS,"2,500.00"
Rochdale BC,06/01/2014,RAINBOWS END PRIVATE NURSERY,Financial Services,EARLY HELP AND SCHOOLS,FREE NURSERY PLACES 2 YEAR OLDS,"1,960.20"
Rochdale BC,06/01/2014,RAINBOWS END PRIVATE NURSERY,Financial Services,EARLY HELP AND SCHOOLS,NURSERY EDUCATION GRANT  3YR OLDS,"8,102.64"
Rochdale BC,24/01/2014,REACH TRAINING,Human Resources,PUBLIC HEALTH,SUPPORTING CHANGE & COMMUNITIES,510.00
Rochdale BC,24/01/2014,REACH TRAINING,Human Resources,PUBLIC HEALTH,SUPPORTING CHANGE & COMMUNITIES,500.00
Rochdale BC,23/01/2014,REDACTED - PERSONAL DATA,Unclassifiable,EARLY HELP AND SCHOOLS,(TYS) TARGETED YOUTH SUPPORT- EXT FUNDED,"1,000.00"
Rochdale BC,21/01/2014,REDACTED - PERSONAL DATA,Unclassifiable,ECONOMY AND ENVIRONMENT,11 TELFORD WAY,595.00
Rochdale BC,24/01/2014,REDACTED - PERSONAL DATA,Unclassifiable,ECONOMY AND ENVIRONMENT,11 TELFORD WAY,875.00
Rochdale BC,10/01/2014,REDACTED - PERSONAL DATA,Financial Services,LEARNING DIS & MENTAL HEALTH,ADULT PLACEMENT SCHEME,"2,485.92"
Rochdale BC,13/01/2014,REDACTED - PERSONAL DATA,Financial Services,LEARNING DIS & MENTAL HEALTH,ADULT PLACEMENT SCHEME,828.64
Rochdale BC,13/01/2014,REDACTED - PERSONAL DATA,Financial Services,LEARNING DIS & MENTAL HEALTH,ADULT PLACEMENT SCHEME,828.64
Rochdale BC,13/01/2014,REDACTED - PERSONAL DATA,Financial Services,LEARNING DIS & MENTAL HEALTH,ADULT PLACEMENT SCHEME,828.64
Rochdale BC,13/01/2014,REDACTED - PERSONAL DATA,Financial Services,LEARNING DIS & MENTAL HEALTH,ADULT PLACEMENT SCHEME,828.64
Rochdale BC,13/01/2014,REDACTED - PERSONAL DATA,Unclassifiable,LEARNING DIS & MENTAL HEALTH,ADULT PLACEMENT SCHEME,828.64
Rochdale BC,13/01/2014,REDACTED - PERSONAL DATA,Unclassifiable,LEARNING DIS & MENTAL HEALTH,ADULT PLACEMENT SCHEME,828.64
Rochdale BC,13/01/2014,REDACTED - PERSONAL DATA,Unclassifiable,LEARNING DIS & MENTAL HEALTH,ADULT PLACEMENT SCHEME,828.64
Rochdale BC,13/01/2014,REDACTED - PERSONAL DATA,Financial Services,LEARNING DIS & MENTAL HEALTH,ADULT PLACEMENT SCHEME,"1,646.68"
Rochdale BC,13/01/2014,REDACTED - PERSONAL DATA,Financial Services,LEARNING DIS & MENTAL HEALTH,ADULT PLACEMENT SCHEME,828.64
Rochdale BC,13/01/2014,REDACTED - PERSONAL DATA,Financial Services,LEARNING DIS & MENTAL HEALTH,ADULT PLACEMENT SCHEME,828.64
Rochdale BC,13/01/2014,REDACTED - PERSONAL DATA,Financial Services,LEARNING DIS & MENTAL HEALTH,ADULT PLACEMENT SCHEME,828.64
Rochdale BC,13/01/2014,REDACTED - PERSONAL DATA,Financial Services,LEARNING DIS & MENTAL HEALTH,ADULT PLACEMENT SCHEME,828.64
Rochdale BC,13/01/2014,REDACTED - PERSONAL DATA,Unclassifiable,LEARNING DIS & MENTAL HEALTH,ADULT PLACEMENT SCHEME,"1,657.28"
Rochdale BC,14/01/2014,REDACTED - PERSONAL DATA,Unclassifiable,LEARNING DIS & MENTAL HEALTH,ADULT PLACEMENT SCHEME,"1,390.93"
Rochdale BC,23/01/2014,REDACTED - PERSONAL DATA,Unclassifiable,LEARNING DIS & MENTAL HEALTH,AP RESPITE,606.76
Rochdale BC,30/01/2014,REDACTED - PERSONAL DATA,Financial Services,EARLY HELP AND SCHOOLS,ASYLUM SEEKERS,750.00
Rochdale BC,30/01/2014,REDACTED - PERSONAL DATA,Housing Management,CHILDREN�S SOCIAL CARE,ASYLUM SEEKERS,"1,258.77"
Rochdale BC,23/01/2014,REDACTED - PERSONAL DATA,Unclassifiable,CORPORATE SERVICES,BIBS UNIT,604.80
Rochdale BC,07/01/2014,REDACTED - PERSONAL DATA,Unclassifiable,EARLY HELP AND SCHOOLS,BOARSHAW - PLACE PLANNING,"1,065.00"
Rochdale BC,24/01/2014,REDACTED - PERSONAL DATA,Unclassifiable,PROPERTY AND HIGHWAYS,BOARSHAW RD BRIDGE,680.00
Rochdale BC,02/01/2014,REDACTED - PERSONAL DATA,Legal Services,CHILDREN�S SOCIAL CARE,CSC PUBLIC LAW PROCEEDINGS EXTERNAL FEES,924.00
Rochdale BC,08/01/2014,REDACTED - PERSONAL DATA,Unclassifiable,CHILDREN�S SOCIAL CARE,CSC PUBLIC LAW PROCEEDINGS EXTERNAL FEES,660.00
Rochdale BC,09/01/2014,REDACTED - PERSONAL DATA,Unclassifiable,CHILDREN�S SOCIAL CARE,CSC PUBLIC LAW PROCEEDINGS EXTERNAL FEES,568.50
Rochdale BC,09/01/2014,REDACTED - PERSONAL DATA,Unclassifiable,CHILDREN�S SOCIAL CARE,CSC PUBLIC LAW PROCEEDINGS EXTERNAL FEES,"2,340.00"
Rochdale BC,14/01/2014,REDACTED - PERSONAL DATA,Unclassifiable,CHILDREN�S SOCIAL CARE,CSC PUBLIC LAW PROCEEDINGS EXTERNAL FEES,780.00
Rochdale BC,14/01/2014,REDACTED - PERSONAL DATA,Unclassifiable,CHILDREN�S SOCIAL CARE,CSC PUBLIC LAW PROCEEDINGS EXTERNAL FEES,"1,800.00"
Rochdale BC,17/01/2014,REDACTED - PERSONAL DATA,Unclassifiable,CHILDREN�S SOCIAL CARE,CSC PUBLIC LAW PROCEEDINGS EXTERNAL FEES,"2,700.00"
Rochdale BC,17/01/2014,REDACTED - PERSONAL DATA,Unclassifiable,CHILDREN�S SOCIAL CARE,CSC PUBLIC LAW PROCEEDINGS EXTERNAL FEES,"6,720.00"
Rochdale BC,31/01/2014,REDACTED - PERSONAL DATA,Unclassifiable,CHILDREN�S SOCIAL CARE,CSC PUBLIC LAW PROCEEDINGS EXTERNAL FEES,540.00
Rochdale BC,07/01/2014,REDACTED - PERSONAL DATA,Social Community Care Supplies & Services,LEARNING DIS & MENTAL HEALTH,DIRECT PAYMENTS TO CARERS,500.00
Rochdale BC,29/01/2014,REDACTED - PERSONAL DATA,Unclassifiable,EARLY HELP AND SCHOOLS,EARLY YEARS FOUNDATION STAGE 11/12,"2,175.00"
Rochdale BC,13/01/2014,REDACTED - PERSONAL DATA,Social Community Care Supplies & Services,CHILDREN�S SOCIAL CARE,EXTERNAL RESIDENTIAL PLACEMENTS,"10,943.00"
Rochdale BC,02/01/2014,REDACTED - PERSONAL DATA,Human Resources,CHILDREN�S SOCIAL CARE,EXTERNAL RESIDENTIAL PLACEMENTS,"14,734.83"
Rochdale BC,21/01/2014,REDACTED - PERSONAL DATA,Unclassifiable,CHILDREN�S SOCIAL CARE,EXTERNAL RESIDENTIAL PLACEMENTS,630.00
Rochdale BC,06/01/2014,REDACTED - PERSONAL DATA,Unclassifiable,EARLY HELP AND SCHOOLS,FREE NURSERY PLACES 2 YEAR OLDS,980.10
Rochdale BC,06/01/2014,REDACTED - PERSONAL DATA,Unclassifiable,EARLY HELP AND SCHOOLS,FREE NURSERY PLACES 2 YEAR OLDS,"1,470.15"
Rochdale BC,15/01/2014,REDACTED - PERSONAL DATA,Unclassifiable,ECONOMY AND ENVIRONMENT,LANDSCAPE SERVICES,950.00
Rochdale BC,13/01/2014,REDACTED - PERSONAL DATA,Financial Services,LEARNING DIS & MENTAL HEALTH,LD FORUM - ADULT PLACEMENTS,"1,012.44"
Rochdale BC,14/01/2014,REDACTED - PERSONAL DATA,Unclassifiable,LEARNING DIS & MENTAL HEALTH,LD FORUM - ADULT PLACEMENTS,"1,454.32"
Rochdale BC,16/01/2014,REDACTED - PERSONAL DATA,Unclassifiable,LEARNING DIS & MENTAL HEALTH,LD FORUM - ADULT PLACEMENTS,"1,522.90"
Rochdale BC,21/01/2014,REDACTED - PERSONAL DATA,Unclassifiable,ECONOMY AND ENVIRONMENT,LEOPOLD COURT,"2,075.00"
Rochdale BC,07/01/2014,REDACTED - PERSONAL DATA,Unclassifiable,EARLY HELP AND SCHOOLS,LITTLEBOROUGH ROOF REPLACEMENT,"2,149.99"
Rochdale BC,07/01/2014,REDACTED - PERSONAL DATA,Unclassifiable,CHILDREN�S SOCIAL CARE,MANAGEMENT STRUCTURE,"3,342.50"
Rochdale BC,02/01/2014,REDACTED - PERSONAL DATA,Unclassifiable,CORPORATE SERVICES,MASKEW BEQUEST SPECIFIED,"2,500.00"
Rochdale BC,31/01/2014,REDACTED - PERSONAL DATA,Unclassifiable,CORPORATE SERVICES,MASKEW BEQUEST SPECIFIED,625.00
Rochdale BC,06/01/2014,REDACTED - PERSONAL DATA,Unclassifiable,EARLY HELP AND SCHOOLS,NURSERY EDUCATION GRANT  3YR OLDS,858.33
Rochdale BC,06/01/2014,REDACTED - PERSONAL DATA,Unclassifiable,EARLY HELP AND SCHOOLS,NURSERY EDUCATION GRANT  3YR OLDS,558.36
Rochdale BC,06/01/2014,REDACTED - PERSONAL DATA,Unclassifiable,EARLY HELP AND SCHOOLS,NURSERY EDUCATION GRANT  3YR OLDS,588.06
Rochdale BC,06/01/2014,REDACTED - PERSONAL DATA,Unclassifiable,EARLY HELP AND SCHOOLS,NURSERY EDUCATION GRANT  3YR OLDS,858.33
Rochdale BC,06/01/2014,REDACTED - PERSONAL DATA,Unclassifiable,EARLY HELP AND SCHOOLS,NURSERY EDUCATION GRANT  3YR OLDS,558.36
Rochdale BC,06/01/2014,REDACTED - PERSONAL DATA,Unclassifiable,EARLY HELP AND SCHOOLS,NURSERY EDUCATION GRANT  3YR OLDS,558.36
Rochdale BC,06/01/2014,REDACTED - PERSONAL DATA,Unclassifiable,EARLY HELP AND SCHOOLS,NURSERY EDUCATION GRANT  3YR OLDS,558.36
Rochdale BC,06/01/2014,REDACTED - PERSONAL DATA,Unclassifiable,EARLY HELP AND SCHOOLS,NURSERY EDUCATION GRANT  3YR OLDS,558.36
Rochdale BC,17/01/2014,REDACTED - PERSONAL DATA,Unclassifiable,EARLY HELP AND SCHOOLS,NURSERY EDUCATION GRANT  3YR OLDS,"1,120.68"
Rochdale BC,02/01/2014,REDACTED - PERSONAL DATA,Unclassifiable,PHYSICAL DIS & OLDER PEOPLE,OLDER PEOPLES AGENCY PROVISION,"2,084.00"
Rochdale BC,09/01/2014,REDACTED - PERSONAL DATA,Unclassifiable,PHYSICAL DIS & OLDER PEOPLE,OLDER PEOPLES AGENCY PROVISION,"1,380.00"
Rochdale BC,01/01/2014,REDACTED - PERSONAL DATA,Financial Services,EARLY HELP AND SCHOOLS,PERSONALISED BUDGETS,572.24
Rochdale BC,28/01/2014,REDACTED - PERSONAL DATA,Financial Services,EARLY HELP AND SCHOOLS,PERSONALISED BUDGETS,"1,107.27"
Rochdale BC,31/01/2014,REDACTED - PERSONAL DATA,Unclassifiable,ECONOMY AND ENVIRONMENT,S106 DALE MILL - MILNROW MEMORIAL PARK,660.00
Rochdale BC,06/01/2014,REDACTED - PERSONAL DATA,Unclassifiable,CHILDREN�S SOCIAL CARE,SAFEGUARDING CHILDREN BOARD,"10,149.98"
Rochdale BC,06/01/2014,REDACTED - PERSONAL DATA,Unclassifiable,CHILDREN�S SOCIAL CARE,SAFEGUARDING CHILDREN BOARD,"3,945.38"
Rochdale BC,13/01/2014,REDACTED - PERSONAL DATA,Unclassifiable,CHILDREN�S SOCIAL CARE,SAFEGUARDING CHILDREN BOARD,"2,160.36"
Rochdale BC,13/01/2014,REDACTED - PERSONAL DATA,Unclassifiable,CHILDREN�S SOCIAL CARE,SAFEGUARDING CHILDREN BOARD,"1,455.32"
Rochdale BC,17/01/2014,REDACTED - PERSONAL DATA,Unclassifiable,CHILDREN�S SOCIAL CARE,SAFEGUARDING CHILDREN BOARD,"1,639.92"
Rochdale BC,06/01/2014,REDACTED - PERSONAL DATA,Unclassifiable,EARLY HELP AND SCHOOLS,SPONSORED DAY CARE,513.00
Rochdale BC,13/01/2014,REDACTED - PERSONAL DATA,Financial Services,LEARNING DIS & MENTAL HEALTH,SUPPORTED PLACEMENTS,817.56
Rochdale BC,13/01/2014,REDACTED - PERSONAL DATA,Financial Services,LEARNING DIS & MENTAL HEALTH,SUPPORTED PLACEMENTS,817.56
Rochdale BC,13/01/2014,REDACTED - PERSONAL DATA,Financial Services,LEARNING DIS & MENTAL HEALTH,SUPPORTED PLACEMENTS,629.40
Rochdale BC,13/01/2014,REDACTED - PERSONAL DATA,Financial Services,LEARNING DIS & MENTAL HEALTH,SUPPORTED PLACEMENTS,817.56
Rochdale BC,13/01/2014,REDACTED - PERSONAL DATA,Financial Services,LEARNING DIS & MENTAL HEALTH,SUPPORTED PLACEMENTS,817.56
Rochdale BC,13/01/2014,REDACTED - PERSONAL DATA,Financial Services,LEARNING DIS & MENTAL HEALTH,SUPPORTED PLACEMENTS,817.56
Rochdale BC,13/01/2014,REDACTED - PERSONAL DATA,Financial Services,LEARNING DIS & MENTAL HEALTH,SUPPORTED PLACEMENTS,"1,665.56"
Rochdale BC,13/01/2014,REDACTED - PERSONAL DATA,Financial Services,LEARNING DIS & MENTAL HEALTH,SUPPORTED PLACEMENTS,817.56
Rochdale BC,13/01/2014,REDACTED - PERSONAL DATA,Financial Services,LEARNING DIS & MENTAL HEALTH,SUPPORTED PLACEMENTS,817.56
Rochdale BC,13/01/2014,REDACTED - PERSONAL DATA,Financial Services,LEARNING DIS & MENTAL HEALTH,SUPPORTED PLACEMENTS,848.00
Rochdale BC,13/01/2014,REDACTED - PERSONAL DATA,Financial Services,LEARNING DIS & MENTAL HEALTH,SUPPORTED PLACEMENTS,817.56
Rochdale BC,14/01/2014,REDACTED - PERSONAL DATA,Financial Services,LEARNING DIS & MENTAL HEALTH,SUPPORTED PLACEMENTS,"1,696.00"
Rochdale BC,23/01/2014,REDACTED - PERSONAL DATA,Financial Services,LEARNING DIS & MENTAL HEALTH,SUPPORTED PLACEMENTS,"1,060.00"
Rochdale BC,10/01/2014,REDACTED - PERSONAL DATA,Unclassifiable,FINANCE SERVICES,TECHNICAL SUPPORT,600.00
Rochdale BC,06/01/2014,REED BUSINESS INFORMATION LIMITED,Human Resources,CHILDREN�S SOCIAL CARE,CHILDREN'S WORKFORCE DEVELOPMENT,"20,000.00"
Rochdale BC,08/01/2014,REED BUSINESS INFORMATION LIMITED,Human Resources,CORPORATE SERVICES,MANAGEMENT ADMIN,"1,300.00"
Rochdale BC,30/01/2014,REGENDA LIMITED,Housing Management,LEARNING DIS & MENTAL HEALTH,LD SUPPORTED LIVING CLUSTER1  RMBC,920.66
Rochdale BC,30/01/2014,REGENDA LIMITED,Housing Management,LEARNING DIS & MENTAL HEALTH,LD SUPPORTED LIVING CLUSTER1  RMBC,920.66
Rochdale BC,30/01/2014,REGENDA LIMITED,Housing Management,LEARNING DIS & MENTAL HEALTH,LD SUPPORTED LIVING CLUSTER1  RMBC,920.66
Rochdale BC,27/01/2014,RESPITE NORTH WEST LIMITED,Social Community Care Supplies & Services,PHYSICAL DIS & OLDER PEOPLE,CENTRAL FORUM PHYS DIS,"2,009.63"
Rochdale BC,27/01/2014,RESPITE NORTH WEST LIMITED,Social Community Care Supplies & Services,LEARNING DIS & MENTAL HEALTH,GENERAL,"2,009.62"
Rochdale BC,03/01/2014,RESPITE NORTH WEST LIMITED,Social Community Care Supplies & Services,PHYSICAL DIS & OLDER PEOPLE,OLDER PEOPLES AGENCY PROVISION,"1,408.62"
Rochdale BC,10/01/2014,RESPITE NORTH WEST LIMITED,Social Community Care Supplies & Services,PHYSICAL DIS & OLDER PEOPLE,OLDER PEOPLES AGENCY PROVISION,"1,146.14"
Rochdale BC,16/01/2014,RESPITE NORTH WEST LIMITED,Social Community Care Supplies & Services,PHYSICAL DIS & OLDER PEOPLE,OLDER PEOPLES AGENCY PROVISION,785.61
Rochdale BC,24/01/2014,RESPITE NORTH WEST LIMITED,Social Community Care Supplies & Services,PHYSICAL DIS & OLDER PEOPLE,OLDER PEOPLES AGENCY PROVISION,"1,486.16"
Rochdale BC,31/01/2014,RESPITE NORTH WEST LIMITED,Social Community Care Supplies & Services,PHYSICAL DIS & OLDER PEOPLE,OLDER PEOPLES AGENCY PROVISION,"1,502.20"
Rochdale BC,07/01/2014,RESTORE PLC,Environmental Services,EARLY HELP AND SCHOOLS,MAN & ADMIN  MISC INCOME & EXPENDITURE,511.48
Rochdale BC,31/01/2014,RESTORE PLC,Environmental Services,EARLY HELP AND SCHOOLS,MAN & ADMIN  MISC INCOME & EXPENDITURE,569.82
Rochdale BC,31/01/2014,RESTORE PLC,Environmental Services,EARLY HELP AND SCHOOLS,MAN & ADMIN  MISC INCOME & EXPENDITURE,520.13
Rochdale BC,23/01/2014,RHODAR LIMITED,Environmental Services,ECONOMY AND ENVIRONMENT,BALDERSTONE DEMOLITION,"88,309.77"
Rochdale BC,06/01/2014,RHODES PRESCHOOL,Financial Services,EARLY HELP AND SCHOOLS,FREE NURSERY PLACES 2 YEAR OLDS,"1,470.15"
Rochdale BC,06/01/2014,RHODES PRESCHOOL,Financial Services,EARLY HELP AND SCHOOLS,NURSERY EDUCATION GRANT  3YR OLDS,"8,725.86"
Rochdale BC,14/01/2014,RIBA 1834 LTD,Financial Services,ECONOMY AND ENVIRONMENT,SERVICE HEAD  PLAN AND REG,"15,000.00"
Rochdale BC,14/01/2014,RIBA 1834 LTD,Financial Services,ECONOMY AND ENVIRONMENT,SERVICE HEAD  PLAN AND REG,"9,185.10"
Rochdale BC,14/01/2014,RIBA 1834 LTD,Financial Services,ECONOMY AND ENVIRONMENT,SERVICE HEAD  PLAN AND REG,"8,000.00"
Rochdale BC,30/01/2014,RICOH UK LTD,Facilities & Management Services,CORPORATE SERVICES,MANAGEMENT ADMIN,749.96
Rochdale BC,06/01/2014,RIDGETECH LTD,"Works - Construction, Repair & Maintenance",ECONOMY AND ENVIRONMENT,MERCURY ABATEMENT,"1,000.00"
Rochdale BC,06/01/2014,RIGHT START DAY NURSERIES LTD,Social Community Care Supplies & Services,EARLY HELP AND SCHOOLS,FREE NURSERY PLACES 2 YEAR OLDS,"3,920.40"
Rochdale BC,06/01/2014,RIGHT START DAY NURSERIES LTD,Social Community Care Supplies & Services,EARLY HELP AND SCHOOLS,NURSERY EDUCATION GRANT  3YR OLDS,"4,371.84"
Rochdale BC,02/01/2014,RNC ENTERPRISES LTD,Stationery,EARLY HELP AND SCHOOLS,NON MAINTAINED POST 16,"10,317.67"
Rochdale BC,20/01/2014,RNIB EXTERNAL TRAINING SERVICES,Human Resources,PHYSICAL DIS & OLDER PEOPLE,OPERATIONAL MANAGER 1 IAT,"1,722.00"
Rochdale BC,20/01/2014,RNIB EXTERNAL TRAINING SERVICES,Human Resources,PHYSICAL DIS & OLDER PEOPLE,OPERATIONAL MANAGER 1 IAT,"1,050.00"
Rochdale BC,21/01/2014,RNIB EXTERNAL TRAINING SERVICES,Human Resources,PHYSICAL DIS & OLDER PEOPLE,OPERATIONAL MANAGER 1 IAT,"1,722.00"
Rochdale BC,15/01/2014,ROAD SAFETY SERVICE LIMITED,Street & Traffic Management,PROPERTY AND HIGHWAYS,STREET CLOSURE ORDERS,"1,380.00"
Rochdale BC,02/01/2014,ROC NORTHWEST LTD,Human Resources,CHILDREN�S SOCIAL CARE,EXTERNAL RESIDENTIAL PLACEMENTS,"16,430.00"
Rochdale BC,01/01/2014,ROCHDALE & DIST CITIZENS ADVICE BUREAU,Social Community Care Supplies & Services,CORPORATE SERVICES,ADVICE TEAM,"28,167.00"
Rochdale BC,21/01/2014,ROCHDALE & DIST CITIZENS ADVICE BUREAU,Social Community Care Supplies & Services,ECONOMY AND ENVIRONMENT,CAB (MORTGAGE RESCUE),"4,166.67"
Rochdale BC,31/01/2014,ROCHDALE & DIST CITIZENS ADVICE BUREAU,Social Community Care Supplies & Services,EARLY HELP AND SCHOOLS,SUPPORT FOR FAMILIES,"8,000.00"
Rochdale BC,24/01/2014,ROCHDALE & DISTRICT DISABLED ACTION GRP,Social Community Care Supplies & Services,CORPORATE SERVICES,GENERAL EQUAL OPPORTUNITIES,"6,775.00"
Rochdale BC,01/01/2014,ROCHDALE & DISTRICT MIND,Social Community Care Supplies & Services,LEARNING DIS & MENTAL HEALTH,EXTERNALLY COMMISSIONED SERVICES,"33,058.75"
Rochdale BC,27/01/2014,ROCHDALE BOROUGHWIDE HOUSING,Housing Management,ECONOMY AND ENVIRONMENT,ENABLING GENERAL,"6,512.50"
Rochdale BC,28/01/2014,ROCHDALE BOROUGHWIDE HOUSING,Housing Management,FINANCE SERVICES,RENT REBATES,706.62
Rochdale BC,10/01/2014,ROCHDALE BUSINESS VENTURES,Financial Services,CORPORATE SERVICES,ICT OVERHEADS,"2,478.25"
Rochdale BC,03/01/2014,ROCHDALE COMMUNITY SUPPORT TRUST,Social Community Care Supplies & Services,PHYSICAL DIS & OLDER PEOPLE,OLDER PEOPLES AGENCY PROVISION,"4,050.61"
Rochdale BC,10/01/2014,ROCHDALE COMMUNITY SUPPORT TRUST,Social Community Care Supplies & Services,PHYSICAL DIS & OLDER PEOPLE,OLDER PEOPLES AGENCY PROVISION,"3,948.02"
Rochdale BC,16/01/2014,ROCHDALE COMMUNITY SUPPORT TRUST,Social Community Care Supplies & Services,PHYSICAL DIS & OLDER PEOPLE,OLDER PEOPLES AGENCY PROVISION,"4,294.48"
Rochdale BC,24/01/2014,ROCHDALE COMMUNITY SUPPORT TRUST,Social Community Care Supplies & Services,PHYSICAL DIS & OLDER PEOPLE,OLDER PEOPLES AGENCY PROVISION,"4,271.87"
Rochdale BC,31/01/2014,ROCHDALE COMMUNITY SUPPORT TRUST,Social Community Care Supplies & Services,PHYSICAL DIS & OLDER PEOPLE,OLDER PEOPLES AGENCY PROVISION,"4,174.66"
Rochdale BC,16/01/2014,ROCHDALE COMMUNITY TRANSPORT,Public Transport,ECONOMY AND ENVIRONMENT,EDUCATION HOME TO SCHOOL,"1,275.00"
Rochdale BC,16/01/2014,ROCHDALE COMMUNITY TRANSPORT,Public Transport,ECONOMY AND ENVIRONMENT,EDUCATION HOME TO SCHOOL,"1,350.00"
Rochdale BC,16/01/2014,ROCHDALE COMMUNITY TRANSPORT,Public Transport,ECONOMY AND ENVIRONMENT,EDUCATION HOME TO SCHOOL,750.00
Rochdale BC,16/01/2014,ROCHDALE COMMUNITY TRANSPORT,Public Transport,ECONOMY AND ENVIRONMENT,EDUCATION HOME TO SCHOOL,"1,050.00"
Rochdale BC,16/01/2014,ROCHDALE COMMUNITY TRANSPORT,Public Transport,ECONOMY AND ENVIRONMENT,EDUCATION HOME TO SCHOOL,"1,350.00"
Rochdale BC,21/01/2014,ROCHDALE COMMUNITY TRANSPORT,Public Transport,PHYSICAL DIS & OLDER PEOPLE,OLDER PEOPLES AGENCY PROVISION,"1,703.02"
Rochdale BC,21/01/2014,ROCHDALE COMMUNITY TRANSPORT,Public Transport,PHYSICAL DIS & OLDER PEOPLE,OLDER PEOPLES AGENCY PROVISION,"5,106.42"
Rochdale BC,20/01/2014,ROCHDALE CONNECTION TRUST (CHARITY ACCT),Financial Services,CORPORATE SERVICES,CRIME PREVENTION AND COMMUNITY SAFETY,"1,860.00"
Rochdale BC,17/01/2014,ROCHDALE DEVELOPMENT AGENCY,"Works - Construction, Repair & Maintenance",ECONOMY AND ENVIRONMENT,ECONOMIC AFFAIRS EXT GRANTS,"15,494.57"
Rochdale BC,01/01/2014,ROCHDALE DEVELOPMENT AGENCY,"Works - Construction, Repair & Maintenance",ECONOMY AND ENVIRONMENT,ROCHDALE DEVELOPMENT AGENCY,"150,350.00"
Rochdale BC,31/01/2014,ROCHDALE EDUCATION & LEARNING TRUST,Education,EARLY HELP AND SCHOOLS,EARLY YEARS FOUNDATION STAGE 11/12,"11,675.00"
Rochdale BC,06/01/2014,ROCHDALE GATEWAY LEISURE LIMITED,Social Community Care Supplies & Services,LEARNING DIS & MENTAL HEALTH,CARERS COMMISSIONED SERVICES,"5,247.00"
Rochdale BC,08/01/2014,ROCHDALE GATEWAY LEISURE LIMITED,Social Community Care Supplies & Services,LEARNING DIS & MENTAL HEALTH,CARERS COMMISSIONED SERVICES,"5,218.57"
Rochdale BC,08/01/2014,ROCHDALE GATEWAY LEISURE LIMITED,Social Community Care Supplies & Services,LEARNING DIS & MENTAL HEALTH,CARERS COMMISSIONED SERVICES,"5,218.57"
Rochdale BC,27/01/2014,ROCHDALE GATEWAY LEISURE LIMITED,Social Community Care Supplies & Services,LEARNING DIS & MENTAL HEALTH,CARERS COMMISSIONED SERVICES,"11,526.00"
Rochdale BC,09/01/2014,ROCHDALE GATEWAY LEISURE LIMITED,Social Community Care Supplies & Services,LEARNING DIS & MENTAL HEALTH,LD FORUM - PERSONAL BUDGETS,505.50
Rochdale BC,01/01/2014,ROCHDALE GATEWAY LEISURE LIMITED,Social Community Care Supplies & Services,EARLY HELP AND SCHOOLS,SHORT BREAKS REVENUE,"2,425.00"
Rochdale BC,09/01/2014,ROCHDALE HOUSING INITIATIVE,Housing Management,ECONOMY AND ENVIRONMENT,LANDLORD ASSISTANCE,"3,442.26"
Rochdale BC,22/01/2014,ROCHDALE MEDIATION SERVICE,Unclassifiable,CORPORATE SERVICES,SAFER COMMUNITIES COMMISSIONING,"10,000.00"
Rochdale BC,22/01/2014,ROCHDALE MEDIATION SERVICE,Unclassifiable,CORPORATE SERVICES,SAFER COMMUNITIES COMMISSIONING,"1,750.00"
Rochdale BC,17/01/2014,ROCHDALE OCCUPATIONAL HEALTH SERVICE LTD,Healthcare,CORPORATE SERVICES,COURSES SCHOOL SAFETY,520.00
Rochdale BC,23/01/2014,ROCHDALE OCCUPATIONAL HEALTH SERVICE LTD,Healthcare,CORPORATE SERVICES,COURSES SCHOOL SAFETY,650.00
Rochdale BC,08/01/2014,ROCHDALE SIGNS LIMITED,Building Construction Materials,ECONOMY AND ENVIRONMENT,DOMESTIC WASTE,640.00
Rochdale BC,01/01/2014,ROCHDALE WOMENS WELFARE ASSOCIATION,Financial Services,CORPORATE SERVICES,WARDLEWORTH WOMENS CENTRE,"4,550.00"
Rochdale BC,06/01/2014,ROLY POLEYS PRIVATE DAY NURSERY,Social Community Care Supplies & Services,EARLY HELP AND SCHOOLS,FREE NURSERY PLACES 2 YEAR OLDS,"7,840.80"
Rochdale BC,06/01/2014,ROLY POLEYS PRIVATE DAY NURSERY,Social Community Care Supplies & Services,EARLY HELP AND SCHOOLS,NURSERY EDUCATION GRANT  3YR OLDS,"11,754.90"
Rochdale BC,21/01/2014,ROOFSCAPE NW LTD,Building Construction Materials,EARLY HELP AND SCHOOLS,LOWERPLACE ROOF REPLACEMENT,"21,253.75"
Rochdale BC,06/01/2014,ROSS CARE,Social Community Care Supplies & Services,EARLY HELP AND SCHOOLS,CAPITAL EQUIPMENT DISABLED CHILDREN,"9,173.10"
Rochdale BC,06/01/2014,ROSS CARE,Social Community Care Supplies & Services,EARLY HELP AND SCHOOLS,CAPITAL EQUIPMENT DISABLED CHILDREN,"10,803.01"
Rochdale BC,08/01/2014,ROSS CARE,Social Community Care Supplies & Services,EARLY HELP AND SCHOOLS,CAPITAL EQUIPMENT DISABLED CHILDREN,"4,090.01"
Rochdale BC,03/01/2014,ROSS CARE,Social Community Care Supplies & Services,PHYSICAL DIS & OLDER PEOPLE,POOLED ICES,"11,477.42"
Rochdale BC,06/01/2014,ROSS CARE,Social Community Care Supplies & Services,PHYSICAL DIS & OLDER PEOPLE,POOLED ICES,"15,170.91"
Rochdale BC,13/01/2014,ROTHWELL PROMOTIONAL GIFTS LTD,Facilities & Management Services,PUBLIC HEALTH,COMMUNITY HEALTH IMPROVEMENT,"1,003.50"
Rochdale BC,20/01/2014,ROTHWELL PROMOTIONAL GIFTS LTD,Facilities & Management Services,FINANCE SERVICES,PR MEDIA AND MARKETING,910.38
Rochdale BC,22/01/2014,ROTHWELL PROMOTIONAL GIFTS LTD,Facilities & Management Services,ECONOMY AND ENVIRONMENT,RR HEALTHIER CHIP SHOP SCHEME,740.00
Rochdale BC,09/01/2014,ROTHWELL PROMOTIONAL GIFTS LTD,Facilities & Management Services,ECONOMY AND ENVIRONMENT,RR TOBACCO SCHEME,"1,010.00"
Rochdale BC,13/01/2014,ROUTES HEALTHCARE,Social Community Care Supplies & Services,EARLY HELP AND SCHOOLS,DISABILITIES RESPITE CARE,612.00
Rochdale BC,21/01/2014,ROYAL CARS,Public Transport,ECONOMY AND ENVIRONMENT,EDUCATION HOME TO SCHOOL,"1,360.00"
Rochdale BC,21/01/2014,ROYAL CARS,Public Transport,ECONOMY AND ENVIRONMENT,EDUCATION HOME TO SCHOOL,"1,020.00"
Rochdale BC,30/01/2014,ROYAL INSTITUTE OF PUBLIC HEALTH,Unclassifiable,PUBLIC HEALTH,SPECIALIST PUBLIC HEALTH TEAM,"3,500.00"
Rochdale BC,06/01/2014,ROYAL MAIL GROUP PLC,Mail Services�,PHYSICAL DIS & OLDER PEOPLE,OLDER PEOPLES AGENCY PROVISION,626.54
Rochdale BC,13/01/2014,ROYAL MAIL GROUP PLC,Mail Services�,CORPORATE SERVICES,REG ELECTORS GENERAL,765.82
Rochdale BC,02/01/2014,ROYAL MAIL GROUP PLC,Mail Services�,FINANCE SERVICES,TECHNICAL SUPPORT,"1,151.70"
Rochdale BC,23/01/2014,ROYAL MAIL GROUP PLC,Mail Services�,FINANCE SERVICES,TECHNICAL SUPPORT,"1,145.77"
Rochdale BC,07/01/2014,ROYAL NATIONAL INSTITUTE FOR THE DEAF,Financial Services,EARLY HELP AND SCHOOLS,PARENTING RESOURCES GENERAL,532.00
Rochdale BC,09/01/2014,ROYTON MINIBUSES LIMITED,Public Transport,ECONOMY AND ENVIRONMENT,EDUCATION HOME TO SCHOOL,"1,800.00"
Rochdale BC,30/01/2014,S P TRAVEL,Human Resources,ECONOMY AND ENVIRONMENT,EDUCATION HOME TO SCHOOL,"1,800.00"
Rochdale BC,22/01/2014,S T HEATINGS SERVICES LTD,Building Construction Materials,EARLY HELP AND SCHOOLS,BSF COSTS FUNDED BY LAND RECEIPTS,"12,530.00"
Rochdale BC,22/01/2014,SAFE RECORDS MANAGEMENT LTD,Facilities & Management Services,CORPORATE SERVICES,ERDMS - REVENUE,"2,449.55"
Rochdale BC,30/01/2014,SAFE RECORDS MANAGEMENT LTD,Facilities & Management Services,CORPORATE SERVICES,ERDMS - REVENUE,"2,389.05"
Rochdale BC,15/01/2014,SAFEGARD SECURITY SOLUTIONS,Facilities & Management Services,CORPORATE SERVICES,SAFER COMMUNITIES COMMISSIONING,"10,714.30"
Rochdale BC,29/01/2014,SAFEGARD SECURITY SOLUTIONS,Facilities & Management Services,CORPORATE SERVICES,SAFER COMMUNITIES OPER'L & CONT'Y BUDGET,"5,123.00"
Rochdale BC,29/01/2014,SAFEGARD SECURITY SOLUTIONS,Facilities & Management Services,CORPORATE SERVICES,SAFER COMMUNITIES OPER'L & CONT'Y BUDGET,"4,846.00"
Rochdale BC,29/01/2014,SAFEGARD SECURITY SOLUTIONS,Facilities & Management Services,CORPORATE SERVICES,SAFER COMMUNITIES OPER'L & CONT'Y BUDGET,"7,125.00"
Rochdale BC,02/01/2014,SALFORD CITY COUNCIL,Public Bodies,ECONOMY AND ENVIRONMENT,ENVIRONMENTAL CONTROL,"6,900.00"
Rochdale BC,20/01/2014,SALFORD CITY COUNCIL,Public Bodies,CHILDREN�S SOCIAL CARE,INTER AGENCY ADOPTION,"19,000.00"
Rochdale BC,29/01/2014,SALT UNION LIMITED,Highway Equipment & Materials�,ECONOMY AND ENVIRONMENT,CEMETERIES GENERAL,"1,474.31"
Rochdale BC,02/01/2014,SALT UNION LIMITED,Highway Equipment & Materials�,PROPERTY AND HIGHWAYS,Winter Maintenance,"3,996.68"
Rochdale BC,02/01/2014,SALT UNION LIMITED,Highway Equipment & Materials�,PROPERTY AND HIGHWAYS,Winter Maintenance,"4,975.72"
Rochdale BC,02/01/2014,SALT UNION LIMITED,Highway Equipment & Materials�,PROPERTY AND HIGHWAYS,Winter Maintenance,"6,840.42"
Rochdale BC,14/01/2014,SALT UNION LIMITED,Highway Equipment & Materials�,PROPERTY AND HIGHWAYS,Winter Maintenance,"6,316.45"
Rochdale BC,14/01/2014,SALT UNION LIMITED,Highway Equipment & Materials�,PROPERTY AND HIGHWAYS,Winter Maintenance,"7,158.11"
Rochdale BC,14/01/2014,SALT UNION LIMITED,Highway Equipment & Materials�,PROPERTY AND HIGHWAYS,Winter Maintenance,"1,989.88"
Rochdale BC,14/01/2014,SALT UNION LIMITED,Highway Equipment & Materials�,PROPERTY AND HIGHWAYS,Winter Maintenance,"1,983.11"
Rochdale BC,29/01/2014,SALT UNION LIMITED,Highway Equipment & Materials�,PROPERTY AND HIGHWAYS,Winter Maintenance,"1,474.32"
Rochdale BC,06/01/2014,SANDBROOK CC NURSERY,Financial Services,EARLY HELP AND SCHOOLS,FREE NURSERY PLACES 2 YEAR OLDS,"12,741.30"
Rochdale BC,06/01/2014,SANDBROOK CC NURSERY,Financial Services,EARLY HELP AND SCHOOLS,NURSERY EDUCATION GRANT  3YR OLDS,"12,000.48"
Rochdale BC,10/01/2014,SAP (UK) LTD,Information Communication Technology,CORPORATE SERVICES,REFRESH PROGRAMME,"51,130.00"
Rochdale BC,06/01/2014,SCAMPS PRE-SCHOOL PLAYGROUP,Financial Services,EARLY HELP AND SCHOOLS,FREE NURSERY PLACES 2 YEAR OLDS,"5,390.55"
Rochdale BC,06/01/2014,SCAMPS PRE-SCHOOL PLAYGROUP,Financial Services,EARLY HELP AND SCHOOLS,NURSERY EDUCATION GRANT  3YR OLDS,"13,490.53"
Rochdale BC,29/01/2014,SCHOOLS HEALTH EDUCATION UNIT LIMITED,Education,EARLY HELP AND SCHOOLS,HEY MIDD ROCH PCT FUNDING,"5,000.00"
Rochdale BC,14/01/2014,SCOOTA MART LTD,Healthcare,CHILDREN�S SOCIAL CARE,CSC F AND E,"5,942.00"
Rochdale BC,21/01/2014,SEASHELL TRUST,Human Resources,EARLY HELP AND SCHOOLS,NON MAINTAINED POST 16,"11,298.39"
Rochdale BC,06/01/2014,SEEROS PRIVATE DAY NURSURY,Social Community Care Supplies & Services,EARLY HELP AND SCHOOLS,FREE NURSERY PLACES 2 YEAR OLDS,"10,291.05"
Rochdale BC,06/01/2014,SEEROS PRIVATE DAY NURSURY,Social Community Care Supplies & Services,EARLY HELP AND SCHOOLS,NURSERY EDUCATION GRANT  3YR OLDS,"11,682.05"
Rochdale BC,01/01/2014,SHINING STARS SWIMMING SCHEME,Arts & Leisure Services,EARLY HELP AND SCHOOLS,HEALTH RELATED SHORT BREAKS,"4,037.50"
Rochdale BC,06/01/2014,SHUTTERS VILLAGE NURSERY,Financial Services,EARLY HELP AND SCHOOLS,FREE NURSERY PLACES 2 YEAR OLDS,"4,900.50"
Rochdale BC,06/01/2014,SHUTTERS VILLAGE NURSERY,Financial Services,EARLY HELP AND SCHOOLS,NURSERY EDUCATION GRANT  3YR OLDS,"8,242.74"
Rochdale BC,08/01/2014,SILVAPOWER LTD,Utilities,ECONOMY AND ENVIRONMENT,1 RIVERSIDE,"1,287.12"
Rochdale BC,21/01/2014,SILVAPOWER LTD,Utilities,ECONOMY AND ENVIRONMENT,1 RIVERSIDE,892.80
Rochdale BC,08/01/2014,SIMPLE TECHNOLOGY,Information Communication Technology,CORPORATE SERVICES,REFRESH PROGRAMME,"1,205.00"
Rochdale BC,08/01/2014,SIR ROBERT MCALPINE,"Works - Construction, Repair & Maintenance",ECONOMY AND ENVIRONMENT,NEW COUNCIL OFFICES,"50,670.07"
Rochdale BC,01/01/2014,SKYLIGHT CIRCUS ARTS,Arts & Leisure Services,EARLY HELP AND SCHOOLS,SHORT BREAKS REVENUE,852.50
Rochdale BC,06/01/2014,SMALL WORLD NURSERIES LTD,Financial Services,EARLY HELP AND SCHOOLS,FREE NURSERY PLACES 2 YEAR OLDS,"5,390.55"
Rochdale BC,06/01/2014,SMALL WORLD NURSERIES LTD,Financial Services,EARLY HELP AND SCHOOLS,NURSERY EDUCATION GRANT  3YR OLDS,"10,694.61"
Rochdale BC,22/01/2014,SMITHYBRIDGE PRIMARY SCHOOL,Financial Services,EARLY HELP AND SCHOOLS,LOOKED AFTER CHILDREN PUPIL PREMIUM,900.00
Rochdale BC,29/01/2014,SMITHYBRIDGE PRIMARY SCHOOL,Financial Services,EARLY HELP AND SCHOOLS,SEN SUPPORT MAINSTREAM  LEA,"1,536.00"
Rochdale BC,24/01/2014,SMOOTH FM GMG RADIO SALES LTD,Facilities & Management Services,CORPORATE SERVICES,MASKEW BEQUEST SPECIFIED,"1,750.00"
Rochdale BC,27/01/2014,SMOOTH FM GMG RADIO SALES LTD,Facilities & Management Services,CORPORATE SERVICES,MASKEW BEQUEST SPECIFIED,"1,750.00"
Rochdale BC,22/01/2014,SMOOTH FM GMG RADIO SALES LTD,Facilities & Management Services,FINANCE SERVICES,PR MEDIA AND MARKETING,"3,213.86"
Rochdale BC,02/01/2014,SOCIAL CARE SERVICES LIMITED,Social Community Care Supplies & Services,CHILDREN�S SOCIAL CARE,EXTERNAL RESIDENTIAL PLACEMENTS,"9,145.00"
Rochdale BC,09/01/2014,SOFTBOX LTD,Information Communication Technology,CHILDREN�S SOCIAL CARE,HEAD OF SERVICE,"4,426.00"
Rochdale BC,31/01/2014,SOFTCAT LTD,Information Communication Technology,CORPORATE SERVICES,EDIT - SPECIAL PROJECTS,"15,332.45"
Rochdale BC,31/01/2014,SOFTCAT LTD,Information Communication Technology,CORPORATE SERVICES,EDIT - SPECIAL PROJECTS,"2,190.35"
Rochdale BC,15/01/2014,SOLAGEN LIMITED,Highway Equipment & Materials�,PROPERTY AND HIGHWAYS,NON ILLUMINATED SIGNS,750.00
Rochdale BC,14/01/2014,SOMERCOURT LIMITED,Furniture & Soft Furnishings,EARLY HELP AND SCHOOLS,SCHOOLS ACCESS -EQUIPMENT-PRIMARY,599.95
Rochdale BC,01/01/2014,SPARTH COMMUNITY CENTRE,Financial Services,CORPORATE SERVICES,SPARTH COMMUNITY CENTRE,"11,425.00"
Rochdale BC,06/01/2014,SPARTH NURSERY,Financial Services,EARLY HELP AND SCHOOLS,FREE NURSERY PLACES 2 YEAR OLDS,980.10
Rochdale BC,06/01/2014,SPARTH NURSERY,Financial Services,EARLY HELP AND SCHOOLS,NURSERY EDUCATION GRANT  3YR OLDS,"3,049.20"
Rochdale BC,16/01/2014,SPEAK IT LTD,Information Communication Technology,CHILDREN�S SOCIAL CARE,CSC F AND E,"1,412.50"
Rochdale BC,16/01/2014,SPEAK IT LTD,Information Communication Technology,CHILDREN�S SOCIAL CARE,CSC F AND E,"1,247.50"
Rochdale BC,08/01/2014,SPECIALIST COMPUTER CENTRES PLC,Information Communication Technology,CORPORATE SERVICES,REFRESH PROGRAMME,"13,641.30"
Rochdale BC,08/01/2014,SPECIALIST COMPUTER CENTRES PLC,Information Communication Technology,CORPORATE SERVICES,REFRESH PROGRAMME,"4,667.00"
Rochdale BC,08/01/2014,SPECIALIST COMPUTER CENTRES PLC,Information Communication Technology,CORPORATE SERVICES,REFRESH PROGRAMME,"2,700.00"
Rochdale BC,16/01/2014,SPECIALIST COMPUTER CENTRES PLC,Information Communication Technology,CORPORATE SERVICES,REFRESH PROGRAMME,"37,220.50"
Rochdale BC,16/01/2014,SPECIALIST COMPUTER CENTRES PLC,Information Communication Technology,CORPORATE SERVICES,REFRESH PROGRAMME,"2,160.00"
Rochdale BC,30/01/2014,SPECIALIST COMPUTER CENTRES PLC,Information Communication Technology,CORPORATE SERVICES,REFRESH PROGRAMME,"4,667.00"
Rochdale BC,01/01/2014,SPOTLAND COMMUNITY ASSOCIATION LTD,Financial Services,CORPORATE SERVICES,SPOTLAND COMMUNITY CENTRE,"5,588.49"
Rochdale BC,06/01/2014,SPRING WILLOWS PLAYGROUP,Financial Services,EARLY HELP AND SCHOOLS,FREE NURSERY PLACES 2 YEAR OLDS,"2,940.30"
Rochdale BC,06/01/2014,SPRING WILLOWS PLAYGROUP,Financial Services,EARLY HELP AND SCHOOLS,NURSERY EDUCATION GRANT  3YR OLDS,"6,991.38"
Rochdale BC,21/01/2014,SPUR INFORMATION SOLUTIONS LIMITED,Information Communication Technology,PROPERTY AND HIGHWAYS,MOBILE CCTV ENFORCEMENT,"28,150.00"
Rochdale BC,22/01/2014,SSI SCHAEFER LIMITED,Environmental Services,ECONOMY AND ENVIRONMENT,BLUE WASTE PAPER BINS,"13,534.00"
Rochdale BC,27/01/2014,SSI SCHAEFER LIMITED,Environmental Services,ECONOMY AND ENVIRONMENT,BLUE WASTE PAPER BINS,"13,534.00"
Rochdale BC,22/01/2014,ST ANNES ACADEMY,Financial Services,EARLY HELP AND SCHOOLS,LOOKED AFTER CHILDREN PUPIL PREMIUM,"1,800.00"
Rochdale BC,08/01/2014,ST ANNES ACADEMY,Financial Services,EARLY HELP AND SCHOOLS,SEN SUPPORT MAINSTREAM  LEA,"5,806.61"
Rochdale BC,20/01/2014,ST ANNES ACADEMY,Financial Services,EARLY HELP AND SCHOOLS,SEN SUPPORT MAINSTREAM  LEA,"1,813.17"
Rochdale BC,20/01/2014,ST GABRIELS C E PRIMARY SCHOOL,Public Bodies,EARLY HELP AND SCHOOLS,SCHOOLS ACCESS -EQUIPMENT-PRIMARY,"13,897.72"
Rochdale BC,29/01/2014,ST JAMES CE PRIMARY SCHOOL,Facilities & Management Services,EARLY HELP AND SCHOOLS,SEN SUPPORT MAINSTREAM  LEA,906.00
Rochdale BC,02/01/2014,ST JOHNS DOMESTIC LIMITED,"Works - Construction, Repair & Maintenance",PHYSICAL DIS & OLDER PEOPLE,DISABLED FACILITIES GRANT,"2,889.00"
Rochdale BC,06/01/2014,ST JOSEPHS PLAYGROUP,Financial Services,EARLY HELP AND SCHOOLS,FREE NURSERY PLACES 2 YEAR OLDS,"6,860.70"
Rochdale BC,06/01/2014,ST JOSEPHS PLAYGROUP,Financial Services,EARLY HELP AND SCHOOLS,NURSERY EDUCATION GRANT  3YR OLDS,"13,136.40"
Rochdale BC,30/01/2014,ST MARGARETS C E PRIMARY SCHOOL,Financial Services,CORPORATE SERVICES,SUDSIDISED USAGE  HEYWOOD,667.50
Rochdale BC,24/01/2014,ST PAULS CE PRIMARY SCHOOL,Education,EARLY HELP AND SCHOOLS,LOOKED AFTER CHILDREN PUPIL PREMIUM,"5,800.00"
Rochdale BC,28/01/2014,ST PETERS C E PRIMARY SCHOOL,Public Bodies,EARLY HELP AND SCHOOLS,LITTLEBOROUGH REWIRE,"1,761.75"
Rochdale BC,20/01/2014,ST PETERS C E PRIMARY SCHOOL,Public Bodies,EARLY HELP AND SCHOOLS,SCHOOLS ACCESS -EQUIPMENT-PRIMARY,"18,976.50"
Rochdale BC,06/01/2014,ST THOMAS MORE PLAYGROUP,Financial Services,EARLY HELP AND SCHOOLS,NURSERY EDUCATION GRANT  3YR OLDS,"2,293.43"
Rochdale BC,06/01/2014,ST VINCENT`S PRE SCHOOL,Financial Services,EARLY HELP AND SCHOOLS,NURSERY EDUCATION GRANT  3YR OLDS,"7,235.32"
Rochdale BC,09/01/2014,STANNAH LIFT SERVICES LTD,Facilities & Management Services,PHYSICAL DIS & OLDER PEOPLE,DISABLED FACILITIES GRANT,"2,719.00"
Rochdale BC,16/01/2014,STANNAH LIFT SERVICES LTD,Facilities & Management Services,PHYSICAL DIS & OLDER PEOPLE,DISABLED FACILITIES GRANT,"2,519.00"
Rochdale BC,21/01/2014,STANNAH LIFT SERVICES LTD,Facilities & Management Services,PHYSICAL DIS & OLDER PEOPLE,DISABLED FACILITIES GRANT,"4,317.00"
Rochdale BC,21/01/2014,STANNAH LIFT SERVICES LTD,Facilities & Management Services,PHYSICAL DIS & OLDER PEOPLE,DISABLED FACILITIES GRANT,"13,886.00"
Rochdale BC,28/01/2014,STANNAH LIFT SERVICES LTD,Facilities & Management Services,PHYSICAL DIS & OLDER PEOPLE,DISABLED FACILITIES GRANT,"3,947.00"
Rochdale BC,28/01/2014,STANNAH LIFT SERVICES LTD,Facilities & Management Services,PHYSICAL DIS & OLDER PEOPLE,DISABLED FACILITIES GRANT,"1,669.00"
Rochdale BC,28/01/2014,STANNAH LIFT SERVICES LTD,Facilities & Management Services,PHYSICAL DIS & OLDER PEOPLE,DISABLED FACILITIES GRANT,"2,341.00"
Rochdale BC,30/01/2014,STANNAH LIFT SERVICES LTD,Facilities & Management Services,PHYSICAL DIS & OLDER PEOPLE,DISABLED FACILITIES GRANT,"1,728.00"
Rochdale BC,31/01/2014,STANNAH LIFT SERVICES LTD,Facilities & Management Services,PHYSICAL DIS & OLDER PEOPLE,DISABLED FACILITIES GRANT,"2,041.00"
Rochdale BC,31/01/2014,STANNAH LIFT SERVICES LTD,Facilities & Management Services,PHYSICAL DIS & OLDER PEOPLE,DISABLED FACILITIES GRANT,"2,066.00"
Rochdale BC,21/01/2014,STOCKPORT METROPOLITAN BOROUGH COUNCIL,Public Bodies,EARLY HELP AND SCHOOLS,PRE 16 RDALE PUPILS  IN OLA MAINSTREAM,"1,485.00"
Rochdale BC,02/01/2014,STOCKPORT PSYCHOLOGY SERVICES LIMITED,Legal Services,CHILDREN�S SOCIAL CARE,CSC PUBLIC LAW PROCEEDINGS EXTERNAL FEES,725.40
Rochdale BC,08/01/2014,STORM TECHNOLOGIES LIMITED,Information Communication Technology,CORPORATE SERVICES,REFRESH PROGRAMME,"3,757.91"
Rochdale BC,16/01/2014,STORM TECHNOLOGIES LIMITED,Information Communication Technology,CORPORATE SERVICES,REFRESH PROGRAMME,"1,421.20"
Rochdale BC,01/01/2014,SUDDEN & BRIMROD COMMUNITY CENTRE,Financial Services,CORPORATE SERVICES,SUDDEN & BRIMROD CC,"7,325.00"
Rochdale BC,27/01/2014,SUNFLOWER NURSERIES LIMITED,Financial Services,EARLY HELP AND SCHOOLS,2 YEAR OLD TARGETED FREE ENTITLEMENT,"11,733.00"
Rochdale BC,06/01/2014,SUNFLOWER NURSERIES LIMITED,Financial Services,EARLY HELP AND SCHOOLS,FREE NURSERY PLACES 2 YEAR OLDS,"9,310.95"
Rochdale BC,06/01/2014,SUNFLOWER NURSERIES LIMITED,Financial Services,EARLY HELP AND SCHOOLS,NURSERY EDUCATION GRANT  3YR OLDS,"9,875.97"
Rochdale BC,06/01/2014,SUNSHINE PLAYGROUP,Financial Services,EARLY HELP AND SCHOOLS,FREE NURSERY PLACES 2 YEAR OLDS,"3,430.35"
Rochdale BC,06/01/2014,SUNSHINE PLAYGROUP,Financial Services,EARLY HELP AND SCHOOLS,NURSERY EDUCATION GRANT  3YR OLDS,"4,310.46"
Rochdale BC,06/01/2014,SUPERTOTS DAY NURSERY,Financial Services,EARLY HELP AND SCHOOLS,FREE NURSERY PLACES 2 YEAR OLDS,"5,880.60"
Rochdale BC,06/01/2014,SUPERTOTS DAY NURSERY,Financial Services,EARLY HELP AND SCHOOLS,NURSERY EDUCATION GRANT  3YR OLDS,"16,452.61"
Rochdale BC,08/01/2014,SUPPLIES TEAM LIMITED,Information Communication Technology,CORPORATE SERVICES,ICT PRINTING,573.60
Rochdale BC,20/01/2014,SUPPLIES TEAM LIMITED,Information Communication Technology,CORPORATE SERVICES,ICT PRINTING,573.60
Rochdale BC,31/01/2014,SUPPLIES TEAM LIMITED,Information Communication Technology,CORPORATE SERVICES,ICT PRINTING,573.60
Rochdale BC,10/01/2014,SWALEC,Utilities,ECONOMY AND ENVIRONMENT,TOWN CENTRE DEMOLITIONS,775.65
Rochdale BC,20/01/2014,SWALEC,Utilities,ECONOMY AND ENVIRONMENT,TOWN CENTRE DEMOLITIONS,"3,755.55"
Rochdale BC,09/01/2014,SWIFT SECURITY PRODUCTS LTD,Facilities & Management Services,ECONOMY AND ENVIRONMENT,LANDSCAPE SERVICES,"2,994.80"
Rochdale BC,24/01/2014,SWINDON BOROUGH COUNCIL,Public Bodies,CHILDREN�S SOCIAL CARE,INTER AGENCY ADOPTION,"18,000.00"
Rochdale BC,20/01/2014,SYKE BOXING CLUB,Arts & Leisure Services,CORPORATE SERVICES,TOWNSHIP 10/11 ALLOCATED FUNDS,500.00
Rochdale BC,13/01/2014,SYNTAX CONTROLS LIMITED,Unclassifiable,EARLY HELP AND SCHOOLS,HARWOOD PARK,922.00
Rochdale BC,28/01/2014,T CUBED LTD,Consultancy,PHYSICAL DIS & OLDER PEOPLE,CARELINE,849.00
Rochdale BC,29/01/2014,T HAYNES CHORLEY & CO,Facilities & Management Services,CORPORATE SERVICES,BIBS UNIT,"1,656.40"
Rochdale BC,03/01/2014,TARIQ CHOHAN,Unclassifiable,ECONOMY AND ENVIRONMENT,EDUCATION HOME TO SCHOOL,"1,830.00"
Rochdale BC,07/01/2014,TARMAC LIMITED,Highway Equipment & Materials�,PROPERTY AND HIGHWAYS,BWIDE VAR STREETS CW PATCHING,"30,119.53"
Rochdale BC,07/01/2014,TARMAC LIMITED,Highway Equipment & Materials�,PROPERTY AND HIGHWAYS,STAKEHILL DFT SCHEMES,"41,884.83"
Rochdale BC,07/01/2014,TARMAC LIMITED,Highway Equipment & Materials�,PROPERTY AND HIGHWAYS,STAKEHILL DFT SCHEMES,"52,812.67"
Rochdale BC,23/01/2014,TEAM TEACH LIMITED,Human Resources,EARLY HELP AND SCHOOLS,FAIR ACCESS RESOURCES,"1,575.00"
Rochdale BC,06/01/2014,TEDDY BEAR NURSERY LTD,Financial Services,EARLY HELP AND SCHOOLS,FREE NURSERY PLACES 2 YEAR OLDS,"3,920.40"
Rochdale BC,06/01/2014,TEDDY BEAR NURSERY LTD,Financial Services,EARLY HELP AND SCHOOLS,NURSERY EDUCATION GRANT  3YR OLDS,"14,054.04"
Rochdale BC,16/01/2014,TERRY GROUP LTD                      (S),Social Community Care Supplies & Services,PHYSICAL DIS & OLDER PEOPLE,DISABLED FACILITIES GRANT,"8,208.65"
Rochdale BC,30/01/2014,TERRY GROUP LTD                      (S),Social Community Care Supplies & Services,PHYSICAL DIS & OLDER PEOPLE,DISABLED FACILITIES GRANT,"10,774.00"
Rochdale BC,06/01/2014,THE APPLE TREE PRIVATE DAY NURSERY,Social Community Care Supplies & Services,EARLY HELP AND SCHOOLS,NURSERY EDUCATION GRANT  3YR OLDS,"9,033.75"
Rochdale BC,15/01/2014,THE BOND BOARD LIMITED,Housing Management,ECONOMY AND ENVIRONMENT,BOND BOARD,"12,500.00"
Rochdale BC,15/01/2014,THE BOND BOARD LIMITED,Housing Management,ECONOMY AND ENVIRONMENT,RENT GUARANTEE SCHEME,"17,500.00"
Rochdale BC,29/01/2014,THE CHILDREN`S SOCIETY,Financial Services,CHILDREN�S SOCIAL CARE,SPURGEONS CHILDRENS RIGHTS,"24,466.25"
Rochdale BC,14/01/2014,THE DEPAUL TRUST,Social Community Care Supplies & Services,CHILDREN�S SOCIAL CARE,YOT MANAGEMENT,960.00
Rochdale BC,24/01/2014,THE FOUNDATION STAGE FORUM LTD,Financial Services,EARLY HELP AND SCHOOLS,CHILDCARE DEVELOPMENT TEAM,"2,000.00"
Rochdale BC,29/01/2014,THE KAYE PARTNERSHIP,Healthcare,PHYSICAL DIS & OLDER PEOPLE,TRAINING COMMISSIONING,900.00
Rochdale BC,29/01/2014,THE LEAVING CARE COMPANY LIMITED,Social Community Care Supplies & Services,CHILDREN�S SOCIAL CARE,YOUNG PEOPLES SUPPORT TEAM,"3,050.40"
Rochdale BC,10/01/2014,THE LESBIAN & GAY FOUNDATION,Financial Services,PUBLIC HEALTH,SEXUAL HEALTH SERVICES,"6,120.00"
Rochdale BC,14/01/2014,THE MAGIC TOUCH GB LIMITED,Facilities & Management Services,EARLY HELP AND SCHOOLS,CLC RUNNING COSTS 2011/12,"1,159.00"
Rochdale BC,03/01/2014,THE MEARS GROUP,Social Community Care Supplies & Services,PHYSICAL DIS & OLDER PEOPLE,OLDER PEOPLES AGENCY PROVISION,"3,061.65"
Rochdale BC,10/01/2014,THE MEARS GROUP,Social Community Care Supplies & Services,PHYSICAL DIS & OLDER PEOPLE,OLDER PEOPLES AGENCY PROVISION,"2,541.15"
Rochdale BC,16/01/2014,THE MEARS GROUP,Social Community Care Supplies & Services,PHYSICAL DIS & OLDER PEOPLE,OLDER PEOPLES AGENCY PROVISION,"2,648.75"
Rochdale BC,24/01/2014,THE MEARS GROUP,Social Community Care Supplies & Services,PHYSICAL DIS & OLDER PEOPLE,OLDER PEOPLES AGENCY PROVISION,"3,088.65"
Rochdale BC,31/01/2014,THE MEARS GROUP,Social Community Care Supplies & Services,PHYSICAL DIS & OLDER PEOPLE,OLDER PEOPLES AGENCY PROVISION,"3,113.21"
Rochdale BC,01/01/2014,THE NATIONAL AUTISTIC SOCIETY,Human Resources,EARLY HELP AND SCHOOLS,HEALTH RELATED SHORT BREAKS,"3,186.67"
Rochdale BC,06/01/2014,THE OLD LIBRARY PDN,Unclassifiable,EARLY HELP AND SCHOOLS,FREE NURSERY PLACES 2 YEAR OLDS,"5,390.55"
Rochdale BC,06/01/2014,THE OLD LIBRARY PDN,Unclassifiable,EARLY HELP AND SCHOOLS,NURSERY EDUCATION GRANT  3YR OLDS,"7,406.52"
Rochdale BC,02/01/2014,THE PARAMOUNT GROUP,Social Community Care Supplies & Services,CHILDREN�S SOCIAL CARE,EXTERNAL RESIDENTIAL PLACEMENTS,"8,000.00"
Rochdale BC,29/01/2014,THE PARAMOUNT GROUP,Social Community Care Supplies & Services,CHILDREN�S SOCIAL CARE,EXTERNAL RESIDENTIAL PLACEMENTS,"8,000.00"
Rochdale BC,29/01/2014,THE PENNINE ACUTE HOSPITALS NHS TRUST,Healthcare,CORPORATE SERVICES,CORONERS SERVICE GENERAL,"13,749.36"
Rochdale BC,08/01/2014,THE PENNINE ACUTE HOSPITALS NHS TRUST,Healthcare,CORPORATE SERVICES,DRUGS & ALCOHOL - SPECIALIST D&A SRVC,"3,355.07"
Rochdale BC,10/01/2014,THE PENNINE ACUTE HOSPITALS NHS TRUST,Healthcare,CORPORATE SERVICES,MANAGEMENT ADMIN,"16,900.00"
Rochdale BC,02/01/2014,THE PENNINE ACUTE HOSPITALS NHS TRUST,Healthcare,PUBLIC HEALTH,OBESITY COMMISSIONING,"140,043.00"
Rochdale BC,14/01/2014,THE PRIORY GROUP,Healthcare,CHILDREN�S SOCIAL CARE,EXTERNAL RESIDENTIAL PLACEMENTS,"13,751.42"
Rochdale BC,14/01/2014,THE PRIORY GROUP,Healthcare,CHILDREN�S SOCIAL CARE,EXTERNAL RESIDENTIAL PLACEMENTS,"41,254.25"
Rochdale BC,10/01/2014,THE PROTON GROUP LIMITED,Cleaning & Janitorial,ECONOMY AND ENVIRONMENT,FM PRIMARY CATERING OVERH,"12,175.12"
Rochdale BC,02/01/2014,THE TOGETHER TRUST,Social Community Care Supplies & Services,CHILDREN�S SOCIAL CARE,EXTERNAL RESIDENTIAL PLACEMENTS,"3,303.30"
Rochdale BC,02/01/2014,THE TOGETHER TRUST,Social Community Care Supplies & Services,CHILDREN�S SOCIAL CARE,EXTERNAL RESIDENTIAL PLACEMENTS,"3,350.49"
Rochdale BC,02/01/2014,THE TOGETHER TRUST,Social Community Care Supplies & Services,CHILDREN�S SOCIAL CARE,EXTERNAL RESIDENTIAL PLACEMENTS,"3,256.11"
Rochdale BC,02/01/2014,THE TOGETHER TRUST,Social Community Care Supplies & Services,CHILDREN�S SOCIAL CARE,EXTERNAL RESIDENTIAL PLACEMENTS,"3,303.30"
Rochdale BC,02/01/2014,THE TOGETHER TRUST,Social Community Care Supplies & Services,CHILDREN�S SOCIAL CARE,EXTERNAL RESIDENTIAL PLACEMENTS,"3,350.49"
Rochdale BC,02/01/2014,THE TOGETHER TRUST,Social Community Care Supplies & Services,CHILDREN�S SOCIAL CARE,EXTERNAL RESIDENTIAL PLACEMENTS,"3,256.11"
Rochdale BC,13/01/2014,THE TOGETHER TRUST,Social Community Care Supplies & Services,CHILDREN�S SOCIAL CARE,EXTERNAL RESIDENTIAL PLACEMENTS,"2,265.12"
Rochdale BC,13/01/2014,THE TOGETHER TRUST,Social Community Care Supplies & Services,CHILDREN�S SOCIAL CARE,EXTERNAL RESIDENTIAL PLACEMENTS,"3,303.30"
Rochdale BC,13/01/2014,THE TOGETHER TRUST,Social Community Care Supplies & Services,CHILDREN�S SOCIAL CARE,EXTERNAL RESIDENTIAL PLACEMENTS,"3,303.30"
Rochdale BC,13/01/2014,THE TOGETHER TRUST,Social Community Care Supplies & Services,CHILDREN�S SOCIAL CARE,EXTERNAL RESIDENTIAL PLACEMENTS,"11,067.00"
Rochdale BC,13/01/2014,THE TOGETHER TRUST,Social Community Care Supplies & Services,CHILDREN�S SOCIAL CARE,EXTERNAL RESIDENTIAL PLACEMENTS,"10,185.67"
Rochdale BC,13/01/2014,THE TOGETHER TRUST,Social Community Care Supplies & Services,CHILDREN�S SOCIAL CARE,EXTERNAL RESIDENTIAL PLACEMENTS,"10,402.67"
Rochdale BC,13/01/2014,THE TOGETHER TRUST,Social Community Care Supplies & Services,CHILDREN�S SOCIAL CARE,EXTERNAL RESIDENTIAL PLACEMENTS,"10,181.02"
Rochdale BC,13/01/2014,THE TOGETHER TRUST,Social Community Care Supplies & Services,CHILDREN�S SOCIAL CARE,INDEPENDENT FOSTER CARE,"15,742.73"
Rochdale BC,21/01/2014,THE TOGETHER TRUST,Social Community Care Supplies & Services,EARLY HELP AND SCHOOLS,NON MAINTAINED POST 16,"11,433.57"
Rochdale BC,21/01/2014,THE TOGETHER TRUST,Social Community Care Supplies & Services,EARLY HELP AND SCHOOLS,NON MAINTAINED POST 16,"12,831.04"
Rochdale BC,21/01/2014,THE TOGETHER TRUST,Social Community Care Supplies & Services,EARLY HELP AND SCHOOLS,NON MAINTAINED POST 16,"12,209.76"
Rochdale BC,21/01/2014,THE TOGETHER TRUST,Social Community Care Supplies & Services,EARLY HELP AND SCHOOLS,NON MAINTAINED POST 16,"2,000.00"
Rochdale BC,21/01/2014,THE TOGETHER TRUST,Social Community Care Supplies & Services,EARLY HELP AND SCHOOLS,NON MAINTAINED POST 16,"2,000.00"
Rochdale BC,21/01/2014,THE TOGETHER TRUST,Social Community Care Supplies & Services,EARLY HELP AND SCHOOLS,NON MAINTAINED POST 16,"2,000.00"
Rochdale BC,21/01/2014,THE TOGETHER TRUST,Social Community Care Supplies & Services,EARLY HELP AND SCHOOLS,NON MAINTAINED POST 16,"2,000.00"
Rochdale BC,21/01/2014,THE TOGETHER TRUST,Social Community Care Supplies & Services,EARLY HELP AND SCHOOLS,NON MAINTAINED POST 16,"2,000.00"
Rochdale BC,21/01/2014,THE TOGETHER TRUST,Social Community Care Supplies & Services,EARLY HELP AND SCHOOLS,NON MAINTAINED POST 16,"2,000.00"
Rochdale BC,22/01/2014,THE TOGETHER TRUST,Social Community Care Supplies & Services,EARLY HELP AND SCHOOLS,PRE 16 RDALE PUPILS IN NON MAINTAINED,"9,729.13"
Rochdale BC,22/01/2014,THE TOGETHER TRUST,Social Community Care Supplies & Services,EARLY HELP AND SCHOOLS,PRE 16 RDALE PUPILS IN NON MAINTAINED,"8,202.10"
Rochdale BC,22/01/2014,THE TOGETHER TRUST,Social Community Care Supplies & Services,EARLY HELP AND SCHOOLS,PRE 16 RDALE PUPILS IN NON MAINTAINED,"8,202.10"
Rochdale BC,22/01/2014,THE TOGETHER TRUST,Social Community Care Supplies & Services,EARLY HELP AND SCHOOLS,PRE 16 RDALE PUPILS IN NON MAINTAINED,"9,854.11"
Rochdale BC,01/01/2014,THE TOGETHER TRUST,Social Community Care Supplies & Services,EARLY HELP AND SCHOOLS,SHORT BREAKS REVENUE,"2,458.33"
Rochdale BC,15/01/2014,THE TRAFFIC ENFORCEMENT CENTRE,Street & Traffic Management,PROPERTY AND HIGHWAYS,DECRIMINALISATION OF CAR PARKING,"10,000.00"
Rochdale BC,30/01/2014,THE UNIVERSITY OF MANCHESTER,Human Resources,PHYSICAL DIS & OLDER PEOPLE,MENTAL HEALTH CAPACITY ACT GRANT,665.00
Rochdale BC,27/01/2014,THE UNIVERSITY OF SALFORD,Human Resources,CHILDREN�S SOCIAL CARE,ASYE - DFE,550.00
Rochdale BC,27/01/2014,THE UNIVERSITY OF SALFORD,Human Resources,CHILDREN�S SOCIAL CARE,ASYE - DFE,550.00
Rochdale BC,27/01/2014,THE UNIVERSITY OF SALFORD,Human Resources,CHILDREN�S SOCIAL CARE,ASYE - DFE,550.00
Rochdale BC,31/12/2013,THE UNIVERSITY OF SALFORD,Human Resources,CHILDREN�S SOCIAL CARE,CWDC EXISTING SCHEMES,550.00
Rochdale BC,28/01/2014,THE WATERWAYS TRUST,Arts & Leisure Services,ECONOMY AND ENVIRONMENT,ROCHDALE CANAL,"132,904.83"
Rochdale BC,28/01/2014,THE WATERWAYS TRUST,Arts & Leisure Services,ECONOMY AND ENVIRONMENT,ROCHDALE CANAL,"132,904.83"
Rochdale BC,06/01/2014,THE WILLOWS PRIVATE DAY NURSERY,Financial Services,EARLY HELP AND SCHOOLS,FREE NURSERY PLACES 2 YEAR OLDS,"3,430.35"
Rochdale BC,06/01/2014,THE WILLOWS PRIVATE DAY NURSERY,Financial Services,EARLY HELP AND SCHOOLS,FREE NURSERY PLACES 2 YEAR OLDS,"2,940.30"
Rochdale BC,06/01/2014,THE WILLOWS PRIVATE DAY NURSERY,Financial Services,EARLY HELP AND SCHOOLS,NURSERY EDUCATION GRANT  3YR OLDS,"15,530.34"
Rochdale BC,29/01/2014,THE WOODSIDE MEDICAL CENTRE,Healthcare,PUBLIC HEALTH,SEXUAL HEALTH SERVICES,871.23
Rochdale BC,28/01/2014,THOMAS KERSHAW BUILDERS LTD,"Works - Construction, Repair & Maintenance",EARLY HELP AND SCHOOLS,BRIMROD TOILET REFURBISHMENT & SECURITY,586.15
Rochdale BC,16/01/2014,THUS,Information Communication Technology,CORPORATE SERVICES,THIRD PARTY CONTRACTS,"2,428.52"
Rochdale BC,16/01/2014,TICKETS.COM LTD,Arts & Leisure Services,CORPORATE SERVICES,THIRD PARTY CONTRACTS,"1,423.18"
Rochdale BC,07/01/2014,TIMOTHY JAMES CONSULTANCY LTD,Human Resources,CHILDREN�S SOCIAL CARE,MANAGEMENT STRUCTURE,"1,800.00"
Rochdale BC,07/01/2014,TIMOTHY JAMES CONSULTANCY LTD,Human Resources,CHILDREN�S SOCIAL CARE,MANAGEMENT STRUCTURE,800.00
Rochdale BC,07/01/2014,TIMOTHY JAMES CONSULTANCY LTD,Human Resources,CHILDREN�S SOCIAL CARE,MANAGEMENT STRUCTURE,"2,000.00"
Rochdale BC,16/01/2014,TIMOTHY JAMES CONSULTANCY LTD,Human Resources,CHILDREN�S SOCIAL CARE,MANAGEMENT STRUCTURE,"2,000.00"
Rochdale BC,17/01/2014,TIMOTHY JAMES CONSULTANCY LTD,Human Resources,CHILDREN�S SOCIAL CARE,MANAGEMENT STRUCTURE,"1,600.00"
Rochdale BC,28/01/2014,TIMOTHY JAMES CONSULTANCY LTD,Human Resources,CHILDREN�S SOCIAL CARE,MANAGEMENT STRUCTURE,"2,000.00"
Rochdale BC,28/01/2014,TIMOTHY JAMES CONSULTANCY LTD,Human Resources,CHILDREN�S SOCIAL CARE,MANAGEMENT STRUCTURE,"1,600.00"
Rochdale BC,28/01/2014,TIMOTHY JAMES CONSULTANCY LTD,Human Resources,CHILDREN�S SOCIAL CARE,MANAGEMENT STRUCTURE,800.00
Rochdale BC,06/01/2014,TINKERBELL CHILDRENS DAY NURSERY,Financial Services,EARLY HELP AND SCHOOLS,FREE NURSERY PLACES 2 YEAR OLDS,"4,900.50"
Rochdale BC,06/01/2014,TINKERBELL CHILDRENS DAY NURSERY,Financial Services,EARLY HELP AND SCHOOLS,NURSERY EDUCATION GRANT  3YR OLDS,"5,670.72"
Rochdale BC,01/01/2014,TOGETHER WORKING FOR WELLBEING,Social Community Care Supplies & Services,LEARNING DIS & MENTAL HEALTH,EXTERNALLY COMMISSIONED SERVICES,"13,539.00"
Rochdale BC,13/01/2014,TOGETHER WORKING FOR WELLBEING,Social Community Care Supplies & Services,LEARNING DIS & MENTAL HEALTH,GENERAL,"1,019.76"
Rochdale BC,13/01/2014,TOGETHER WORKING FOR WELLBEING,Social Community Care Supplies & Services,LEARNING DIS & MENTAL HEALTH,GENERAL,"1,019.76"
Rochdale BC,06/01/2014,TOGETHER WORKING FOR WELLBEING,Social Community Care Supplies & Services,PHYSICAL DIS & OLDER PEOPLE,OLDER PEOPLES AGENCY PROVISION,"17,650.00"
Rochdale BC,06/01/2014,TOMAX BUILDING SERVICES LTD,"Works - Construction, Repair & Maintenance",ECONOMY AND ENVIRONMENT,LOCK 50 (55K PA),"1,361.00"
Rochdale BC,09/01/2014,TOTAL PHYSIOTHERAPY LIMITED,Healthcare,FINANCE SERVICES,BLUE BADGES,750.00
Rochdale BC,06/01/2014,TOTS JUNCTION,Financial Services,EARLY HELP AND SCHOOLS,FREE NURSERY PLACES 2 YEAR OLDS,"1,960.20"
Rochdale BC,06/01/2014,TOTS JUNCTION,Financial Services,EARLY HELP AND SCHOOLS,NURSERY EDUCATION GRANT  3YR OLDS,"5,991.48"
Rochdale BC,07/01/2014,TRAFFORD MBC,Social Community Care Supplies & Services,FINANCE SERVICES,CORPORATE PROCUREMENT,"11,359.00"
Rochdale BC,08/01/2014,TRAKM8 LIMITED,Vehicle Management,ECONOMY AND ENVIRONMENT,EMS TRANSFORMATION PROJECT PHASE 1 REV,"1,836.00"
Rochdale BC,16/01/2014,TRANSITIONAL PLUS CARE COMM INT CO LTD,Financial Services,CHILDREN�S SOCIAL CARE,YOUNG PEOPLES SUPPORT TEAM,"25,287.14"
Rochdale BC,30/01/2014,TRANSPORT FOR GREATER MANCHESTER,Financial Services,PROPERTY AND HIGHWAYS,HIP BRIDGE STREET/PILSWORTH ROAD JUNCTIO,"1,350.00"
Rochdale BC,30/01/2014,TRANSPORT FOR GREATER MANCHESTER,Financial Services,PROPERTY AND HIGHWAYS,HIP MANCHESTER ROAD,780.00
Rochdale BC,06/01/2014,TREETOPS NURSERY,Financial Services,EARLY HELP AND SCHOOLS,NURSERY EDUCATION GRANT  3YR OLDS,"4,816.68"
Rochdale BC,07/01/2014,TRICHO TECH LTD,Healthcare,CHILDREN�S SOCIAL CARE,CSC PUBLIC LAW PROCEEDINGS EXTERNAL FEES,600.00
Rochdale BC,01/01/2014,TRINITY METHODIST CHURCH,Financial Services,LEARNING DIS & MENTAL HEALTH,DAY SERVICES MANAGEMENT/ADMIN,"1,000.00"
Rochdale BC,22/01/2014,TRINITY MIRROR NORTH WEST & NORTH WALES LTD,Education,FINANCE SERVICES,PR MEDIA AND MARKETING,525.69
Rochdale BC,23/01/2014,TRINITY MIRROR NORTH WEST & NORTH WALES LTD,Education,FINANCE SERVICES,PR MEDIA AND MARKETING,721.99
Rochdale BC,09/01/2014,TRINITY MIRROR NORTH WEST & NORTH WALES LTD,Education,ECONOMY AND ENVIRONMENT,RETROFIT,"1,985.64"
Rochdale BC,31/01/2014,TRIX CHILDCARE LTD,Financial Services,CHILDREN�S SOCIAL CARE,HEAD OF SERVICE,"1,150.00"
Rochdale BC,27/01/2014,TSL EDUCATION LIMITED,Human Resources,EARLY HELP AND SCHOOLS,PERSONNEL,699.12
